Body,Body Name,Date,TransNo,Amount � (Excl VAT),Supplier name,Supplier ID,Expense Area,Expense Type,Expense Code,,
http://opendatacommunities.org/id/london-borough-council/sutton,London Borough of Sutton,15/02/2018,6930487,"2,030.00",3C Payment UK Ltd,22191,"Environment, Housing & Regeneration Directorate",Other,Y450,,
http://opendatacommunities.org/id/london-borough-council/sutton,London Borough of Sutton,09/05/2018,6930488,455,A T Sound Hire,10306,Resources Directorate,Materials - General,F100,,
http://opendatacommunities.org/id/london-borough-council/sutton,London Borough of Sutton,18/05/2018,40194287,"2,280.00",Abbeyfield Kent Society,28532,Peoples Services Directorate,Residential Care - Ext Provider,G310,,
http://opendatacommunities.org/id/london-borough-council/sutton,London Borough of Sutton,25/05/2018,6931509,"6,687.44",Ability Housing Association,23287,Peoples Services Directorate,Rent - General,D650,,
http://opendatacommunities.org/id/london-borough-council/sutton,London Borough of Sutton,25/05/2018,6931510,836.92,Ability Housing Association,23287,Peoples Services Directorate,Rent - General,D650,,
http://opendatacommunities.org/id/london-borough-council/sutton,London Borough of Sutton,23/04/2018,6929688,921.69,Absolute Care Services Ltd,10021,Peoples Services Directorate,Homecare Core Services,G336,,
http://opendatacommunities.org/id/london-borough-council/sutton,London Borough of Sutton,30/04/2018,6930012,921.69,Absolute Care Services Ltd,10021,Peoples Services Directorate,Homecare Core Services,G336,,
http://opendatacommunities.org/id/london-borough-council/sutton,London Borough of Sutton,07/05/2018,6930458,921.69,Absolute Care Services Ltd,10021,Peoples Services Directorate,Homecare Core Services,G336,,
http://opendatacommunities.org/id/london-borough-council/sutton,London Borough of Sutton,07/05/2018,6930459,"5,766.81",Absolute Care Services Ltd,10021,Peoples Services Directorate,Homecare Core Services,G336,,
http://opendatacommunities.org/id/london-borough-council/sutton,London Borough of Sutton,07/05/2018,6930460,"5,070.19",Absolute Care Services Ltd,10021,Peoples Services Directorate,Homecare Core Services,G336,,
http://opendatacommunities.org/id/london-borough-council/sutton,London Borough of Sutton,07/05/2018,6930461,"4,851.00",Absolute Care Services Ltd,10021,Peoples Services Directorate,Homecare Core Services,G336,,
http://opendatacommunities.org/id/london-borough-council/sutton,London Borough of Sutton,14/05/2018,6930932,"4,851.00",Absolute Care Services Ltd,10021,Peoples Services Directorate,Homecare Core Services,G336,,
http://opendatacommunities.org/id/london-borough-council/sutton,London Borough of Sutton,14/05/2018,6930933,"5,070.19",Absolute Care Services Ltd,10021,Peoples Services Directorate,Homecare Core Services,G336,,
http://opendatacommunities.org/id/london-borough-council/sutton,London Borough of Sutton,14/05/2018,6930934,"5,766.81",Absolute Care Services Ltd,10021,Peoples Services Directorate,Homecare Core Services,G336,,
http://opendatacommunities.org/id/london-borough-council/sutton,London Borough of Sutton,14/05/2018,6930936,921.69,Absolute Care Services Ltd,10021,Peoples Services Directorate,Homecare Core Services,G336,,
http://opendatacommunities.org/id/london-borough-council/sutton,London Borough of Sutton,21/05/2018,6931232,"5,070.19",Absolute Care Services Ltd,10021,Peoples Services Directorate,Homecare Core Services,G336,,
http://opendatacommunities.org/id/london-borough-council/sutton,London Borough of Sutton,21/05/2018,6931233,"4,851.00",Absolute Care Services Ltd,10021,Peoples Services Directorate,Homecare Core Services,G336,,
http://opendatacommunities.org/id/london-borough-council/sutton,London Borough of Sutton,21/05/2018,6931234,"5,766.81",Absolute Care Services Ltd,10021,Peoples Services Directorate,Homecare Core Services,G336,,
http://opendatacommunities.org/id/london-borough-council/sutton,London Borough of Sutton,21/05/2018,6931235,921.69,Absolute Care Services Ltd,10021,Peoples Services Directorate,Homecare Core Services,G336,,
http://opendatacommunities.org/id/london-borough-council/sutton,London Borough of Sutton,28/05/2018,6931708,"5,070.19",Absolute Care Services Ltd,10021,Peoples Services Directorate,Homecare Core Services,G336,,
http://opendatacommunities.org/id/london-borough-council/sutton,London Borough of Sutton,28/05/2018,6931709,"4,851.00",Absolute Care Services Ltd,10021,Peoples Services Directorate,Homecare Core Services,G336,,
http://opendatacommunities.org/id/london-borough-council/sutton,London Borough of Sutton,28/05/2018,6931710,"5,766.81",Absolute Care Services Ltd,10021,Peoples Services Directorate,Homecare Core Services,G336,,
http://opendatacommunities.org/id/london-borough-council/sutton,London Borough of Sutton,29/04/2018,40190492,426.56,Absolute Care Services Ltd,10021,Peoples Services Directorate,Home Care,G334,,
http://opendatacommunities.org/id/london-borough-council/sutton,London Borough of Sutton,29/04/2018,40190493,433.44,Absolute Care Services Ltd,10021,Peoples Services Directorate,Home Care,G334,,
http://opendatacommunities.org/id/london-borough-council/sutton,London Borough of Sutton,29/04/2018,40190521,471.28,Absolute Care Services Ltd,10021,Peoples Services Directorate,Home Care,G334,,
http://opendatacommunities.org/id/london-borough-council/sutton,London Borough of Sutton,22/04/2018,40190684,471.28,Absolute Care Services Ltd,10021,Peoples Services Directorate,Home Care,G334,,
http://opendatacommunities.org/id/london-borough-council/sutton,London Borough of Sutton,22/04/2018,40190778,426.56,Absolute Care Services Ltd,10021,Peoples Services Directorate,Home Care,G334,,
http://opendatacommunities.org/id/london-borough-council/sutton,London Borough of Sutton,22/04/2018,40190779,433.44,Absolute Care Services Ltd,10021,Peoples Services Directorate,Home Care,G334,,
http://opendatacommunities.org/id/london-borough-council/sutton,London Borough of Sutton,29/04/2018,40190894,497.35,Absolute Care Services Ltd,10021,Peoples Services Directorate,Home Care,G334,,
http://opendatacommunities.org/id/london-borough-council/sutton,London Borough of Sutton,29/04/2018,40191000,490.25,Absolute Care Services Ltd,10021,Peoples Services Directorate,Home Care,G334,,
http://opendatacommunities.org/id/london-borough-council/sutton,London Borough of Sutton,29/04/2018,40191006,447.62,Absolute Care Services Ltd,10021,Peoples Services Directorate,Home Care,G334,,
http://opendatacommunities.org/id/london-borough-council/sutton,London Borough of Sutton,22/04/2018,40191015,447.62,Absolute Care Services Ltd,10021,Peoples Services Directorate,Home Care,G334,,
http://opendatacommunities.org/id/london-borough-council/sutton,London Borough of Sutton,22/04/2018,40191037,596.82,Absolute Care Services Ltd,10021,Peoples Services Directorate,Home Care,G334,,
http://opendatacommunities.org/id/london-borough-council/sutton,London Borough of Sutton,22/04/2018,40191054,426.3,Absolute Care Services Ltd,10021,Peoples Services Directorate,Home Care,G334,,
http://opendatacommunities.org/id/london-borough-council/sutton,London Borough of Sutton,22/04/2018,40191066,483.15,Absolute Care Services Ltd,10021,Peoples Services Directorate,Home Care,G334,,
http://opendatacommunities.org/id/london-borough-council/sutton,London Borough of Sutton,22/04/2018,40191073,447.62,Absolute Care Services Ltd,10021,Peoples Services Directorate,Home Care,G334,,
http://opendatacommunities.org/id/london-borough-council/sutton,London Borough of Sutton,22/04/2018,40191074,468.93,Absolute Care Services Ltd,10021,Peoples Services Directorate,Home Care,G334,,
http://opendatacommunities.org/id/london-borough-council/sutton,London Borough of Sutton,22/04/2018,40191082,547.09,Absolute Care Services Ltd,10021,Peoples Services Directorate,Home Care,G334,,
http://opendatacommunities.org/id/london-borough-council/sutton,London Borough of Sutton,22/04/2018,40191116,447.62,Absolute Care Services Ltd,10021,Peoples Services Directorate,Home Care,G334,,
http://opendatacommunities.org/id/london-borough-council/sutton,London Borough of Sutton,22/04/2018,40191119,497.35,Absolute Care Services Ltd,10021,Peoples Services Directorate,Home Care,G334,,
http://opendatacommunities.org/id/london-borough-council/sutton,London Borough of Sutton,22/04/2018,40191137,440.51,Absolute Care Services Ltd,10021,Peoples Services Directorate,Home Care,G334,,
http://opendatacommunities.org/id/london-borough-council/sutton,London Borough of Sutton,29/04/2018,40191149,447.62,Absolute Care Services Ltd,10021,Peoples Services Directorate,Home Care,G334,,
http://opendatacommunities.org/id/london-borough-council/sutton,London Borough of Sutton,29/04/2018,40193942,601.27,Absolute Care Services Ltd,10021,Peoples Services Directorate,Home Care,G334,,
http://opendatacommunities.org/id/london-borough-council/sutton,London Borough of Sutton,29/04/2018,40193949,500.84,Absolute Care Services Ltd,10021,Peoples Services Directorate,Home Care,G334,,
http://opendatacommunities.org/id/london-borough-council/sutton,London Borough of Sutton,22/04/2018,40194104,543.46,Absolute Care Services Ltd,10021,Peoples Services Directorate,Home Care,G334,,
http://opendatacommunities.org/id/london-borough-council/sutton,London Borough of Sutton,29/04/2018,40194120,589.72,Absolute Care Services Ltd,10021,Peoples Services Directorate,Home Care,G334,,
http://opendatacommunities.org/id/london-borough-council/sutton,London Borough of Sutton,29/04/2018,40194121,596.82,Absolute Care Services Ltd,10021,Peoples Services Directorate,Home Care,G334,,
http://opendatacommunities.org/id/london-borough-council/sutton,London Borough of Sutton,22/04/2018,40194130,500.84,Absolute Care Services Ltd,10021,Peoples Services Directorate,Home Care,G334,,
http://opendatacommunities.org/id/london-borough-council/sutton,London Borough of Sutton,06/05/2018,40195070,447.62,Absolute Care Services Ltd,10021,Peoples Services Directorate,Home Care,G334,,
http://opendatacommunities.org/id/london-borough-council/sutton,London Borough of Sutton,06/05/2018,40195096,471.28,Absolute Care Services Ltd,10021,Peoples Services Directorate,Home Care,G334,,
http://opendatacommunities.org/id/london-borough-council/sutton,London Borough of Sutton,06/05/2018,40195138,447.62,Absolute Care Services Ltd,10021,Peoples Services Directorate,Home Care,G334,,
http://opendatacommunities.org/id/london-borough-council/sutton,London Borough of Sutton,06/05/2018,40195140,497.35,Absolute Care Services Ltd,10021,Peoples Services Directorate,Home Care,G334,,
http://opendatacommunities.org/id/london-borough-council/sutton,London Borough of Sutton,06/05/2018,40195190,426.56,Absolute Care Services Ltd,10021,Peoples Services Directorate,Home Care,G334,,
http://opendatacommunities.org/id/london-borough-council/sutton,London Borough of Sutton,06/05/2018,40195191,433.44,Absolute Care Services Ltd,10021,Peoples Services Directorate,Home Care,G334,,
http://opendatacommunities.org/id/london-borough-council/sutton,London Borough of Sutton,06/05/2018,40195197,555.02,Absolute Care Services Ltd,10021,Peoples Services Directorate,Home Care,G334,,
http://opendatacommunities.org/id/london-borough-council/sutton,London Borough of Sutton,06/05/2018,40195204,500.84,Absolute Care Services Ltd,10021,Peoples Services Directorate,Home Care,G334,,
http://opendatacommunities.org/id/london-borough-council/sutton,London Borough of Sutton,06/05/2018,40195470,589.72,Absolute Care Services Ltd,10021,Peoples Services Directorate,Home Care,G334,,
http://opendatacommunities.org/id/london-borough-council/sutton,London Borough of Sutton,06/05/2018,40195471,603.93,Absolute Care Services Ltd,10021,Peoples Services Directorate,Home Care,G334,,
http://opendatacommunities.org/id/london-borough-council/sutton,London Borough of Sutton,13/05/2018,40197026,589.72,Absolute Care Services Ltd,10021,Peoples Services Directorate,Home Care,G334,,
http://opendatacommunities.org/id/london-borough-council/sutton,London Borough of Sutton,13/05/2018,40197027,596.82,Absolute Care Services Ltd,10021,Peoples Services Directorate,Home Care,G334,,
http://opendatacommunities.org/id/london-borough-council/sutton,London Borough of Sutton,13/05/2018,40197147,447.62,Absolute Care Services Ltd,10021,Peoples Services Directorate,Home Care,G334,,
http://opendatacommunities.org/id/london-borough-council/sutton,London Borough of Sutton,13/05/2018,40197170,471.28,Absolute Care Services Ltd,10021,Peoples Services Directorate,Home Care,G334,,
http://opendatacommunities.org/id/london-borough-council/sutton,London Borough of Sutton,13/05/2018,40197198,447.62,Absolute Care Services Ltd,10021,Peoples Services Directorate,Home Care,G334,,
http://opendatacommunities.org/id/london-borough-council/sutton,London Borough of Sutton,13/05/2018,40197199,497.35,Absolute Care Services Ltd,10021,Peoples Services Directorate,Home Care,G334,,
http://opendatacommunities.org/id/london-borough-council/sutton,London Borough of Sutton,13/05/2018,40197237,426.56,Absolute Care Services Ltd,10021,Peoples Services Directorate,Home Care,G334,,
http://opendatacommunities.org/id/london-borough-council/sutton,London Borough of Sutton,13/05/2018,40197238,433.44,Absolute Care Services Ltd,10021,Peoples Services Directorate,Home Care,G334,,
http://opendatacommunities.org/id/london-borough-council/sutton,London Borough of Sutton,13/05/2018,40197243,601.27,Absolute Care Services Ltd,10021,Peoples Services Directorate,Home Care,G334,,
http://opendatacommunities.org/id/london-borough-council/sutton,London Borough of Sutton,13/05/2018,40197251,500.84,Absolute Care Services Ltd,10021,Peoples Services Directorate,Home Care,G334,,
http://opendatacommunities.org/id/london-borough-council/sutton,London Borough of Sutton,30/04/2018,6930002,"1,200.00",AC Education,32166,Peoples Services Directorate,LAC - Education,F269,,
http://opendatacommunities.org/id/london-borough-council/sutton,London Borough of Sutton,30/04/2018,1254565,"2,368.00",Access Mobility Transport Ltd,27456,Peoples Services Directorate,Hired Peoples Transport (Children),E072,,
http://opendatacommunities.org/id/london-borough-council/sutton,London Borough of Sutton,30/04/2018,1254566,760,Access Mobility Transport Ltd,27456,Peoples Services Directorate,Hired Peoples Transport (Children),E072,,
http://opendatacommunities.org/id/london-borough-council/sutton,London Borough of Sutton,22/03/2018,40189946,670.68,Achieving For Children Limited,28009,Peoples Services Directorate,Foster Parents,G326,,
http://opendatacommunities.org/id/london-borough-council/sutton,London Borough of Sutton,01/02/2018,6931451,"2,481.48",Acorn Homes UK Ltd,25726,Peoples Services Directorate,Approved Lodgings,H323,,
http://opendatacommunities.org/id/london-borough-council/sutton,London Borough of Sutton,01/04/2018,40189973,"1,007.13",Acorn Homes UK Ltd,25726,Peoples Services Directorate,Residential Care-Children,G330,,
http://opendatacommunities.org/id/london-borough-council/sutton,London Borough of Sutton,18/05/2018,40194276,"2,903.20",Acorn Lodge,15804,Peoples Services Directorate,Residential Care - Ext Provider,G310,,
http://opendatacommunities.org/id/london-borough-council/sutton,London Borough of Sutton,18/05/2018,40194362,"3,042.36",Acorn Residential Home,15828,Peoples Services Directorate,Residential Care - Ext Provider,G310,,
http://opendatacommunities.org/id/london-borough-council/sutton,London Borough of Sutton,08/09/2017,5016418,"1,250.12",Action on Addiction,28886,Peoples Services Directorate,Residential Care - Client Cont ( Net Paymt ),G351,,
http://opendatacommunities.org/id/london-borough-council/sutton,London Borough of Sutton,09/05/2018,1254674,"122,043.93",Adecco Uk Ltd,10059,Resources Directorate,Suspense/Holding Accounts,X550,,
http://opendatacommunities.org/id/london-borough-council/sutton,London Borough of Sutton,11/05/2018,1254681,"121,193.66",Adecco Uk Ltd,10059,Resources Directorate,Suspense/Holding Accounts,X550,,
http://opendatacommunities.org/id/london-borough-council/sutton,London Borough of Sutton,16/05/2018,1254878,"137,799.19",Adecco Uk Ltd,10059,Resources Directorate,Suspense/Holding Accounts,X550,,
http://opendatacommunities.org/id/london-borough-council/sutton,London Borough of Sutton,23/05/2018,1256007,"169,437.45",Adecco Uk Ltd,10059,Resources Directorate,Suspense/Holding Accounts,X550,,
http://opendatacommunities.org/id/london-borough-council/sutton,London Borough of Sutton,06/10/2017,5016416,"5,385.71",Addiction Recovery Centres Ltd,23357,Peoples Services Directorate,Residential Care - Ext Provider,G310,,
http://opendatacommunities.org/id/london-borough-council/sutton,London Borough of Sutton,18/05/2018,40194258,"2,520.00",Addiction Recovery Centres Ltd,23357,Peoples Services Directorate,Interim Placements - Ext Provider,G317,,
http://opendatacommunities.org/id/london-borough-council/sutton,London Borough of Sutton,18/05/2018,40194966,900,Addiction Recovery Centres Ltd,23357,Peoples Services Directorate,Interim Placements - Ext Provider,G317,,
http://opendatacommunities.org/id/london-borough-council/sutton,London Borough of Sutton,30/04/2018,6931145,"2,689.41",Advanced Demand Side Management Ltd,26989,Resources Directorate,Water - Metered,D690,,
http://opendatacommunities.org/id/london-borough-council/sutton,London Borough of Sutton,15/03/2018,6929313,744.7,Advanced Health & Care,23939,Peoples Services Directorate,Telephones - Other Expenses,F373,,
http://opendatacommunities.org/id/london-borough-council/sutton,London Borough of Sutton,12/05/2017,6929372,809.52,Advanced Health & Care,23939,Peoples Services Directorate,Telephones - Other Expenses,F373,,
http://opendatacommunities.org/id/london-borough-council/sutton,London Borough of Sutton,20/04/2017,6929373,776.08,Advanced Health & Care,23939,Peoples Services Directorate,Telephones - Other Expenses,F373,,
http://opendatacommunities.org/id/london-borough-council/sutton,London Borough of Sutton,16/10/2017,6929376,753.44,Advanced Health & Care,23939,Peoples Services Directorate,Telephones - Other Expenses,F373,,
http://opendatacommunities.org/id/london-borough-council/sutton,London Borough of Sutton,18/08/2017,6929377,867.28,Advanced Health & Care,23939,Peoples Services Directorate,Telephones - Other Expenses,F373,,
http://opendatacommunities.org/id/london-borough-council/sutton,London Borough of Sutton,17/07/2017,6929378,823.6,Advanced Health & Care,23939,Peoples Services Directorate,Telephones - Other Expenses,F373,,
http://opendatacommunities.org/id/london-borough-council/sutton,London Borough of Sutton,20/06/2017,6929379,888,Advanced Health & Care,23939,Peoples Services Directorate,Telephones - Other Expenses,F373,,
http://opendatacommunities.org/id/london-borough-council/sutton,London Borough of Sutton,18/09/2017,6929380,780.88,Advanced Health & Care,23939,Peoples Services Directorate,Telephones - Other Expenses,F373,,
http://opendatacommunities.org/id/london-borough-council/sutton,London Borough of Sutton,26/04/2018,40189913,"3,581.39",Affinity Fostering Services Ltd,26535,Peoples Services Directorate,Foster Parents,G326,,
http://opendatacommunities.org/id/london-borough-council/sutton,London Borough of Sutton,18/05/2018,6931269,"1,493.58",Agilisys Professional Services Ltd,24209,Resources Directorate,Fees - Bailiffs,F302,,
http://opendatacommunities.org/id/london-borough-council/sutton,London Borough of Sutton,18/05/2018,40194375,"7,511.00",Aims Care Partnership (Leighton House Ltd),12628,Peoples Services Directorate,Residential Care - Ext Provider,G310,,
http://opendatacommunities.org/id/london-borough-council/sutton,London Borough of Sutton,18/05/2018,40194386,"5,278.00",Aitch Care Homes,20446,Peoples Services Directorate,Residential Care - Ext Provider,G310,,
http://opendatacommunities.org/id/london-borough-council/sutton,London Borough of Sutton,18/05/2018,40194527,"8,400.16",Aitch Care Homes,20446,Peoples Services Directorate,Residential Care - Ext Provider,G310,,
http://opendatacommunities.org/id/london-borough-council/sutton,London Borough of Sutton,01/04/2018,6930127,"8,000.00",AJB Consulting Ltd,32138,Chief Executive's Directorate,Fees - Consultants (Ad Hoc),F283,,
http://opendatacommunities.org/id/london-borough-council/sutton,London Borough of Sutton,10/05/2018,6930620,939.6,Alastair Fyfe Photography Ltd,32165,Resources Directorate,Members Expenses - Other,F402,,
http://opendatacommunities.org/id/london-borough-council/sutton,London Borough of Sutton,15/05/2018,6930926,509,Alere Toxicology Plc,24389,Peoples Services Directorate,Children Assessments,G329,,
http://opendatacommunities.org/id/london-borough-council/sutton,London Borough of Sutton,01/05/2018,6930408,"1,426.80",All Security Ltd,97190,"Environment, Housing & Regeneration Directorate",Agency Services,G431,,
http://opendatacommunities.org/id/london-borough-council/sutton,London Borough of Sutton,30/04/2018,40189900,552,All4U Fostering Ltd,30193,Peoples Services Directorate,Foster Parents,G326,,
http://opendatacommunities.org/id/london-borough-council/sutton,London Borough of Sutton,24/04/2018,6930037,"1,247.00",Allen Lane Ltd,18334,Resources Directorate,Agency Staff - Other,A301,,
http://opendatacommunities.org/id/london-borough-council/sutton,London Borough of Sutton,02/05/2018,6930125,870,Allen Lane Ltd,18334,Resources Directorate,Agency Staff - Other,A301,,
http://opendatacommunities.org/id/london-borough-council/sutton,London Borough of Sutton,01/05/2018,6930237,"1,247.00",Allen Lane Ltd,18334,Resources Directorate,Agency Staff - Other,A301,,
http://opendatacommunities.org/id/london-borough-council/sutton,London Borough of Sutton,01/05/2018,6930238,"1,566.00",Allen Lane Ltd,18334,Resources Directorate,Agency Staff - Other,A301,,
http://opendatacommunities.org/id/london-borough-council/sutton,London Borough of Sutton,01/05/2018,6930239,"1,617.65",Allen Lane Ltd,18334,Resources Directorate,Agency Staff - Other,A301,,
http://opendatacommunities.org/id/london-borough-council/sutton,London Borough of Sutton,08/05/2018,6930456,870,Allen Lane Ltd,18334,Resources Directorate,Agency Staff - Other,A301,,
http://opendatacommunities.org/id/london-borough-council/sutton,London Borough of Sutton,09/05/2018,6930534,"1,294.12",Allen Lane Ltd,18334,Resources Directorate,Agency Staff - Other,A301,,
http://opendatacommunities.org/id/london-borough-council/sutton,London Borough of Sutton,08/05/2018,6930535,"1,247.00",Allen Lane Ltd,18334,Resources Directorate,Agency Staff - Other,A301,,
http://opendatacommunities.org/id/london-borough-council/sutton,London Borough of Sutton,09/05/2018,6930536,"1,566.00",Allen Lane Ltd,18334,Resources Directorate,Agency Staff - Other,A301,,
http://opendatacommunities.org/id/london-borough-council/sutton,London Borough of Sutton,15/05/2018,6930986,"1,044.00",Allen Lane Ltd,18334,Resources Directorate,Agency Staff - Other,A301,,
http://opendatacommunities.org/id/london-borough-council/sutton,London Borough of Sutton,15/05/2018,6931039,"1,247.00",Allen Lane Ltd,18334,Resources Directorate,Agency Staff - Other,A301,,
http://opendatacommunities.org/id/london-borough-council/sutton,London Borough of Sutton,15/05/2018,6931040,"1,392.00",Allen Lane Ltd,18334,Resources Directorate,Agency Staff - Other,A301,,
http://opendatacommunities.org/id/london-borough-council/sutton,London Borough of Sutton,15/05/2018,6931044,"1,294.12",Allen Lane Ltd,18334,Resources Directorate,Agency Staff - Other,A301,,
http://opendatacommunities.org/id/london-borough-council/sutton,London Borough of Sutton,22/05/2018,6931326,"1,218.00",Allen Lane Ltd,18334,Resources Directorate,Agency Staff - Other,A301,,
http://opendatacommunities.org/id/london-borough-council/sutton,London Borough of Sutton,22/05/2018,6931375,"1,566.00",Allen Lane Ltd,18334,Resources Directorate,Agency Staff - Other,A301,,
http://opendatacommunities.org/id/london-borough-council/sutton,London Borough of Sutton,22/05/2018,6931376,"1,617.65",Allen Lane Ltd,18334,Resources Directorate,Agency Staff - Other,A301,,
http://opendatacommunities.org/id/london-borough-council/sutton,London Borough of Sutton,22/05/2018,6931377,"1,247.00",Allen Lane Ltd,18334,Resources Directorate,Agency Staff - Other,A301,,
http://opendatacommunities.org/id/london-borough-council/sutton,London Borough of Sutton,30/05/2018,6931676,522,Allen Lane Ltd,18334,Resources Directorate,Agency Staff - Other,A301,,
http://opendatacommunities.org/id/london-borough-council/sutton,London Borough of Sutton,29/05/2018,6931686,"1,247.00",Allen Lane Ltd,18334,Resources Directorate,Agency Staff - Other,A301,,
http://opendatacommunities.org/id/london-borough-council/sutton,London Borough of Sutton,29/05/2018,6931687,"1,566.00",Allen Lane Ltd,18334,Resources Directorate,Agency Staff - Other,A301,,
http://opendatacommunities.org/id/london-borough-council/sutton,London Borough of Sutton,18/05/2018,40194587,"3,625.00",Alliance Care (Dale Homes) Ltd T/A Uplands Care Home,26835,Peoples Services Directorate,Nursing Care - Ext Provider,G311,,
http://opendatacommunities.org/id/london-borough-council/sutton,London Borough of Sutton,18/05/2018,40194322,"4,454.16",Allied Care (Mhs) Ltd,10145,Peoples Services Directorate,Residential Care - Ext Provider,G310,,
http://opendatacommunities.org/id/london-borough-council/sutton,London Borough of Sutton,01/05/2018,6930157,"1,750.00",Alljos Services Ltd,99815,"Environment, Housing & Regeneration Directorate",Grants -Made,Y610,,
http://opendatacommunities.org/id/london-borough-council/sutton,London Borough of Sutton,01/05/2018,6930220,"1,392.25",Allstar Business Solutions,24482,"Environment, Housing & Regeneration Directorate",Fuel Etc,E030,,
http://opendatacommunities.org/id/london-borough-council/sutton,London Borough of Sutton,18/05/2018,40194330,"4,400.00",Allswell Care Services Ltd,20761,Peoples Services Directorate,Residential Care - Ext Provider,G310,,
http://opendatacommunities.org/id/london-borough-council/sutton,London Borough of Sutton,18/05/2018,40194378,"6,370.00",Allswell Care Services Ltd,20761,Peoples Services Directorate,Residential Care - Ext Provider,G310,,
http://opendatacommunities.org/id/london-borough-council/sutton,London Borough of Sutton,18/05/2018,40194419,"3,480.00",Allswell Care Services Ltd,20761,Peoples Services Directorate,Residential Care - Ext Provider,G310,,
http://opendatacommunities.org/id/london-borough-council/sutton,London Borough of Sutton,04/04/2018,40189863,"12,857.10",Amegreen Childrens Services,27145,Peoples Services Directorate,Residential Care-Children,G330,,
http://opendatacommunities.org/id/london-borough-council/sutton,London Borough of Sutton,30/04/2018,6930541,"20,210.00",Ameo Professional Services Ltd,27868,Resources Directorate,Internal Fees - Project Management,Y180,,
http://opendatacommunities.org/id/london-borough-council/sutton,London Borough of Sutton,30/04/2018,6930542,"18,992.00",Ameo Professional Services Ltd,27868,Chief Executive's Directorate,Fees - Consultants (Ad Hoc),F283,,
http://opendatacommunities.org/id/london-borough-council/sutton,London Borough of Sutton,23/04/2018,6930200,"2,850.00",Andy Stewart,26808,"Environment, Housing & Regeneration Directorate",Bed and Breakfast Accommodation,G400,,
http://opendatacommunities.org/id/london-borough-council/sutton,London Borough of Sutton,01/05/2018,6930080,"2,360.00",Angel Lettings,18658,"Environment, Housing & Regeneration Directorate",Bed and Breakfast Accommodation,G400,,
http://opendatacommunities.org/id/london-borough-council/sutton,London Borough of Sutton,30/04/2018,6930228,"5,719.17",Apetito Ltd,10206,Chief Executive's Directorate,Provisions - General,F150,,
http://opendatacommunities.org/id/london-borough-council/sutton,London Borough of Sutton,01/05/2018,6930523,"4,729.50",APL Properties,26226,"Environment, Housing & Regeneration Directorate",Bed and Breakfast Accommodation,G400,,
http://opendatacommunities.org/id/london-borough-council/sutton,London Borough of Sutton,12/04/2018,6931003,"8,825.00",Aquaneed Ltd,99815,"Environment, Housing & Regeneration Directorate",Grants -Made,Y610,,
http://opendatacommunities.org/id/london-borough-council/sutton,London Borough of Sutton,06/04/2018,6930303,"9,529.93",Architype Ltd,25419,Peoples Services Directorate,External Fees  - Architects,Y100,,
http://opendatacommunities.org/id/london-borough-council/sutton,London Borough of Sutton,09/05/2018,6930906,"1,865.00",Architype Ltd,25419,Peoples Services Directorate,External Fees  - Architects,Y100,,
http://opendatacommunities.org/id/london-borough-council/sutton,London Borough of Sutton,08/05/2018,6931427,"7,500.00",Architype Ltd,25419,Peoples Services Directorate,External Fees  - Architects,Y100,,
http://opendatacommunities.org/id/london-borough-council/sutton,London Borough of Sutton,09/05/2018,6931428,"9,529.53",Architype Ltd,25419,Peoples Services Directorate,External Fees  - Architects,Y100,,
http://opendatacommunities.org/id/london-borough-council/sutton,London Borough of Sutton,18/04/2018,6930141,"3,355.00",Archway Building Consultancy,30049,Peoples Services Directorate,External Fees  - Other,Y130,,
http://opendatacommunities.org/id/london-borough-council/sutton,London Borough of Sutton,29/03/2018,6930167,700,Archway Building Consultancy,30049,Peoples Services Directorate,Building Works -Main Contractor,Y350,,
http://opendatacommunities.org/id/london-borough-council/sutton,London Borough of Sutton,30/04/2018,6930825,"1,377.50",Archway Building Consultancy,30049,Peoples Services Directorate,External Fees  - Other,Y130,,
http://opendatacommunities.org/id/london-borough-council/sutton,London Borough of Sutton,06/04/2018,40189895,"17,785.71",Area Camden Ltd,29908,Peoples Services Directorate,Residential Care-Children,G330,,
http://opendatacommunities.org/id/london-borough-council/sutton,London Borough of Sutton,25/05/2018,6931525,"4,620.00",Argus Software Ltd,32133,"Environment, Housing & Regeneration Directorate",Other Services,F340,,
http://opendatacommunities.org/id/london-borough-council/sutton,London Borough of Sutton,04/05/2018,6930612,"7,973.33",Arnold & Self,16110,"Environment, Housing & Regeneration Directorate",Bed and Breakfast Accommodation,G400,,
http://opendatacommunities.org/id/london-borough-council/sutton,London Borough of Sutton,26/03/2018,6931221,"198,535.68",Arthur J Gallagher Insurance Brokers Ltd,30209,Resources Directorate,Insurance Premiums (Other),F330,,
http://opendatacommunities.org/id/london-borough-council/sutton,London Borough of Sutton,29/03/2018,6931335,"67,172.00",Arthur J Gallagher Insurance Brokers Ltd,30209,Resources Directorate,Insurance Premiums (Other),F330,,
http://opendatacommunities.org/id/london-borough-council/sutton,London Borough of Sutton,30/03/2018,6931196,"4,500.00",Arts Network Sutton,25704,Chief Executive's Directorate,Arts Programme,F306,,
http://opendatacommunities.org/id/london-borough-council/sutton,London Borough of Sutton,27/04/2018,6930996,481.7,Ashtead Plant Hire Co Limited,10290,"Environment, Housing & Regeneration Directorate",Nature Conservation,G014,,
http://opendatacommunities.org/id/london-borough-council/sutton,London Borough of Sutton,18/05/2018,40194432,"5,492.48",Aspens Charities,30002,Peoples Services Directorate,Residential Care - Ext Provider,G310,,
http://opendatacommunities.org/id/london-borough-council/sutton,London Borough of Sutton,30/04/2018,6930788,868,Assetgrove Lettings Ltd,28820,"Environment, Housing & Regeneration Directorate",Bed and Breakfast Accommodation,G400,,
http://opendatacommunities.org/id/london-borough-council/sutton,London Borough of Sutton,30/04/2018,6930795,630,Assetgrove Lettings Ltd,28820,"Environment, Housing & Regeneration Directorate",Bed and Breakfast Accommodation,G400,,
http://opendatacommunities.org/id/london-borough-council/sutton,London Borough of Sutton,30/04/2018,6930798,"1,197.00",Assetgrove Lettings Ltd,28820,"Environment, Housing & Regeneration Directorate",Bed and Breakfast Accommodation,G400,,
http://opendatacommunities.org/id/london-borough-council/sutton,London Borough of Sutton,30/04/2018,6930800,"1,020.00",Assetgrove Lettings Ltd,28820,"Environment, Housing & Regeneration Directorate",Bed and Breakfast Accommodation,G400,,
http://opendatacommunities.org/id/london-borough-council/sutton,London Borough of Sutton,30/04/2018,6930801,"1,200.00",Assetgrove Lettings Ltd,28820,"Environment, Housing & Regeneration Directorate",Bed and Breakfast Accommodation,G400,,
http://opendatacommunities.org/id/london-borough-council/sutton,London Borough of Sutton,30/04/2018,6930802,496,Assetgrove Lettings Ltd,28820,"Environment, Housing & Regeneration Directorate",Bed and Breakfast Accommodation,G400,,
http://opendatacommunities.org/id/london-borough-council/sutton,London Borough of Sutton,30/04/2018,6930803,"1,567.50",Assetgrove Lettings Ltd,28820,"Environment, Housing & Regeneration Directorate",Bed and Breakfast Accommodation,G400,,
http://opendatacommunities.org/id/london-borough-council/sutton,London Borough of Sutton,30/04/2018,6930804,"1,050.00",Assetgrove Lettings Ltd,28820,"Environment, Housing & Regeneration Directorate",Bed and Breakfast Accommodation,G400,,
http://opendatacommunities.org/id/london-borough-council/sutton,London Borough of Sutton,30/04/2018,6930805,"1,050.00",Assetgrove Lettings Ltd,28820,"Environment, Housing & Regeneration Directorate",Bed and Breakfast Accommodation,G400,,
http://opendatacommunities.org/id/london-borough-council/sutton,London Borough of Sutton,30/04/2018,6930862,"1,020.00",Assetgrove Lettings Ltd,28820,"Environment, Housing & Regeneration Directorate",Bed and Breakfast Accommodation,G400,,
http://opendatacommunities.org/id/london-borough-council/sutton,London Borough of Sutton,30/04/2018,6930863,"1,020.00",Assetgrove Lettings Ltd,28820,"Environment, Housing & Regeneration Directorate",Bed and Breakfast Accommodation,G400,,
http://opendatacommunities.org/id/london-borough-council/sutton,London Borough of Sutton,30/04/2018,6930864,930,Assetgrove Lettings Ltd,28820,"Environment, Housing & Regeneration Directorate",Bed and Breakfast Accommodation,G400,,
http://opendatacommunities.org/id/london-borough-council/sutton,London Borough of Sutton,30/04/2018,6930865,"1,197.00",Assetgrove Lettings Ltd,28820,"Environment, Housing & Regeneration Directorate",Bed and Breakfast Accommodation,G400,,
http://opendatacommunities.org/id/london-borough-council/sutton,London Borough of Sutton,30/04/2018,6930866,930,Assetgrove Lettings Ltd,28820,"Environment, Housing & Regeneration Directorate",Bed and Breakfast Accommodation,G400,,
http://opendatacommunities.org/id/london-borough-council/sutton,London Borough of Sutton,30/04/2018,6930867,"1,197.00",Assetgrove Lettings Ltd,28820,"Environment, Housing & Regeneration Directorate",Bed and Breakfast Accommodation,G400,,
http://opendatacommunities.org/id/london-borough-council/sutton,London Borough of Sutton,30/04/2018,6930869,930,Assetgrove Lettings Ltd,28820,"Environment, Housing & Regeneration Directorate",Bed and Breakfast Accommodation,G400,,
http://opendatacommunities.org/id/london-borough-council/sutton,London Borough of Sutton,30/04/2018,6930912,"1,197.00",Assetgrove Lettings Ltd,28820,"Environment, Housing & Regeneration Directorate",Bed and Breakfast Accommodation,G400,,
http://opendatacommunities.org/id/london-borough-council/sutton,London Borough of Sutton,30/04/2018,6930913,930,Assetgrove Lettings Ltd,28820,"Environment, Housing & Regeneration Directorate",Bed and Breakfast Accommodation,G400,,
http://opendatacommunities.org/id/london-borough-council/sutton,London Borough of Sutton,30/04/2018,6930914,930,Assetgrove Lettings Ltd,28820,"Environment, Housing & Regeneration Directorate",Bed and Breakfast Accommodation,G400,,
http://opendatacommunities.org/id/london-borough-council/sutton,London Borough of Sutton,30/04/2018,6930915,930,Assetgrove Lettings Ltd,28820,"Environment, Housing & Regeneration Directorate",Bed and Breakfast Accommodation,G400,,
http://opendatacommunities.org/id/london-borough-council/sutton,London Borough of Sutton,30/04/2018,6930916,930,Assetgrove Lettings Ltd,28820,"Environment, Housing & Regeneration Directorate",Bed and Breakfast Accommodation,G400,,
http://opendatacommunities.org/id/london-borough-council/sutton,London Borough of Sutton,30/04/2018,6930917,"1,197.00",Assetgrove Lettings Ltd,28820,"Environment, Housing & Regeneration Directorate",Bed and Breakfast Accommodation,G400,,
http://opendatacommunities.org/id/london-borough-council/sutton,London Borough of Sutton,30/04/2018,6930918,930,Assetgrove Lettings Ltd,28820,"Environment, Housing & Regeneration Directorate",Bed and Breakfast Accommodation,G400,,
http://opendatacommunities.org/id/london-borough-council/sutton,London Borough of Sutton,30/04/2018,6930919,930,Assetgrove Lettings Ltd,28820,"Environment, Housing & Regeneration Directorate",Bed and Breakfast Accommodation,G400,,
http://opendatacommunities.org/id/london-borough-council/sutton,London Borough of Sutton,30/04/2018,6930921,"1,197.00",Assetgrove Lettings Ltd,28820,"Environment, Housing & Regeneration Directorate",Bed and Breakfast Accommodation,G400,,
http://opendatacommunities.org/id/london-borough-council/sutton,London Borough of Sutton,30/04/2018,6930937,"1,197.00",Assetgrove Lettings Ltd,28820,"Environment, Housing & Regeneration Directorate",Bed and Breakfast Accommodation,G400,,
http://opendatacommunities.org/id/london-borough-council/sutton,London Borough of Sutton,30/04/2018,6930938,930,Assetgrove Lettings Ltd,28820,"Environment, Housing & Regeneration Directorate",Bed and Breakfast Accommodation,G400,,
http://opendatacommunities.org/id/london-borough-council/sutton,London Borough of Sutton,30/04/2018,6930939,496,Assetgrove Lettings Ltd,28820,"Environment, Housing & Regeneration Directorate",Bed and Breakfast Accommodation,G400,,
http://opendatacommunities.org/id/london-borough-council/sutton,London Borough of Sutton,30/04/2018,6930940,"1,197.00",Assetgrove Lettings Ltd,28820,"Environment, Housing & Regeneration Directorate",Bed and Breakfast Accommodation,G400,,
http://opendatacommunities.org/id/london-borough-council/sutton,London Borough of Sutton,30/04/2018,6930941,"1,230.00",Assetgrove Lettings Ltd,28820,"Environment, Housing & Regeneration Directorate",Bed and Breakfast Accommodation,G400,,
http://opendatacommunities.org/id/london-borough-council/sutton,London Borough of Sutton,30/04/2018,6930942,930,Assetgrove Lettings Ltd,28820,"Environment, Housing & Regeneration Directorate",Bed and Breakfast Accommodation,G400,,
http://opendatacommunities.org/id/london-borough-council/sutton,London Borough of Sutton,30/04/2018,6930943,"1,197.00",Assetgrove Lettings Ltd,28820,"Environment, Housing & Regeneration Directorate",Bed and Breakfast Accommodation,G400,,
http://opendatacommunities.org/id/london-borough-council/sutton,London Borough of Sutton,30/04/2018,6930944,"1,020.00",Assetgrove Lettings Ltd,28820,"Environment, Housing & Regeneration Directorate",Bed and Breakfast Accommodation,G400,,
http://opendatacommunities.org/id/london-borough-council/sutton,London Borough of Sutton,30/04/2018,6930945,"1,197.00",Assetgrove Lettings Ltd,28820,"Environment, Housing & Regeneration Directorate",Bed and Breakfast Accommodation,G400,,
http://opendatacommunities.org/id/london-borough-council/sutton,London Borough of Sutton,30/04/2018,6930946,"1,020.00",Assetgrove Lettings Ltd,28820,"Environment, Housing & Regeneration Directorate",Bed and Breakfast Accommodation,G400,,
http://opendatacommunities.org/id/london-borough-council/sutton,London Borough of Sutton,30/04/2018,6930947,930,Assetgrove Lettings Ltd,28820,"Environment, Housing & Regeneration Directorate",Bed and Breakfast Accommodation,G400,,
http://opendatacommunities.org/id/london-borough-council/sutton,London Borough of Sutton,30/04/2018,6930948,930,Assetgrove Lettings Ltd,28820,"Environment, Housing & Regeneration Directorate",Bed and Breakfast Accommodation,G400,,
http://opendatacommunities.org/id/london-borough-council/sutton,London Borough of Sutton,30/04/2018,6930949,930,Assetgrove Lettings Ltd,28820,"Environment, Housing & Regeneration Directorate",Bed and Breakfast Accommodation,G400,,
http://opendatacommunities.org/id/london-borough-council/sutton,London Borough of Sutton,30/04/2018,6931344,"1,197.00",Assetgrove Lettings Ltd,28820,"Environment, Housing & Regeneration Directorate",Bed and Breakfast Accommodation,G400,,
http://opendatacommunities.org/id/london-borough-council/sutton,London Borough of Sutton,18/05/2018,40194391,"3,639.72",Assurance Care Services Ltd T/A Christ the King Residential Care Homes,27458,Peoples Services Directorate,Residential Care - Ext Provider,G310,,
http://opendatacommunities.org/id/london-borough-council/sutton,London Borough of Sutton,18/05/2018,6931202,"15,600.00",Auditel Rental & Services Ltd,26901,Resources Directorate,Other Equipment-Hire,F070,,
http://opendatacommunities.org/id/london-borough-council/sutton,London Borough of Sutton,18/05/2018,40194245,"4,580.72",Autism & Aspergers Care Services,10327,Peoples Services Directorate,Residential Care - Ext Provider,G310,,
http://opendatacommunities.org/id/london-borough-council/sutton,London Borough of Sutton,18/05/2018,40194290,"2,805.00",Avante Ltd (Weybourne),24009,Peoples Services Directorate,Residential Care - Ext Provider,G310,,
http://opendatacommunities.org/id/london-borough-council/sutton,London Borough of Sutton,11/05/2018,6930634,750,Axiom Traffic Ltd,23141,"Environment, Housing & Regeneration Directorate","Surveys, Trial Holes Etc",Y200,,
http://opendatacommunities.org/id/london-borough-council/sutton,London Borough of Sutton,11/05/2018,6930635,540,Axiom Traffic Ltd,23141,"Environment, Housing & Regeneration Directorate","Surveys, Trial Holes Etc",Y200,,
http://opendatacommunities.org/id/london-borough-council/sutton,London Borough of Sutton,30/03/2018,6930188,"2,000.00",Bahbak Hashemi-Nezhad,97697,"Environment, Housing & Regeneration Directorate",Fees - Consultants (Ad Hoc),F283,,
http://opendatacommunities.org/id/london-borough-council/sutton,London Borough of Sutton,31/10/2017,6930181,"21,416.00",Baily Garner LLP,21501,Peoples Services Directorate,External Fees  - Other,Y130,,
http://opendatacommunities.org/id/london-borough-council/sutton,London Borough of Sutton,02/05/2018,1254136,600,Bandon Hill Pre-School,10357,Peoples Services Directorate,Non-Maintained Childrens' Nurseries - 3 & 4 yr olds,G405,,
http://opendatacommunities.org/id/london-borough-council/sutton,London Borough of Sutton,10/04/2018,6930312,"56,433.78",Bandon Hill Primary,10372,Peoples Services Directorate,Equipment -General,Y520,,
http://opendatacommunities.org/id/london-borough-council/sutton,London Borough of Sutton,30/04/2018,40194907,"3,491.10",Banya,10375,Peoples Services Directorate,Foster Parents,G326,,
http://opendatacommunities.org/id/london-borough-council/sutton,London Borough of Sutton,30/04/2018,40194908,"3,491.10",Banya,10375,Peoples Services Directorate,Foster Parents,G326,,
http://opendatacommunities.org/id/london-borough-council/sutton,London Borough of Sutton,17/04/2018,40189893,"3,444.30",Barnardo's,10370,Peoples Services Directorate,Foster Parents,G326,,
http://opendatacommunities.org/id/london-borough-council/sutton,London Borough of Sutton,16/05/2018,40194925,585,Barnardo's,10370,Peoples Services Directorate,Provider Contract Payments,F470,,
http://opendatacommunities.org/id/london-borough-council/sutton,London Borough of Sutton,16/05/2018,40194929,575.75,Barnardo's,10370,Peoples Services Directorate,Provider Contract Payments,F470,,
http://opendatacommunities.org/id/london-borough-council/sutton,London Borough of Sutton,16/05/2018,40194932,585,Barnardo's,10370,Peoples Services Directorate,Provider Contract Payments,F470,,
http://opendatacommunities.org/id/london-borough-council/sutton,London Borough of Sutton,16/05/2018,40194933,765,Barnardo's,10370,Peoples Services Directorate,Provider Contract Payments,F470,,
http://opendatacommunities.org/id/london-borough-council/sutton,London Borough of Sutton,16/05/2018,40194934,540,Barnardo's,10370,Peoples Services Directorate,Provider Contract Payments,F470,,
http://opendatacommunities.org/id/london-borough-council/sutton,London Borough of Sutton,16/05/2018,40194935,799,Barnardo's,10370,Peoples Services Directorate,Provider Contract Payments,F470,,
http://opendatacommunities.org/id/london-borough-council/sutton,London Borough of Sutton,16/05/2018,40194937,"1,029.00",Barnardo's,10370,Peoples Services Directorate,Provider Contract Payments,F470,,
http://opendatacommunities.org/id/london-borough-council/sutton,London Borough of Sutton,16/05/2018,40194938,588,Barnardo's,10370,Peoples Services Directorate,Provider Contract Payments,F470,,
http://opendatacommunities.org/id/london-borough-council/sutton,London Borough of Sutton,16/05/2018,40194940,516,Barnardo's,10370,Peoples Services Directorate,Provider Contract Payments,F470,,
http://opendatacommunities.org/id/london-borough-council/sutton,London Borough of Sutton,16/05/2018,40194941,857.5,Barnardo's,10370,Peoples Services Directorate,Provider Contract Payments,F470,,
http://opendatacommunities.org/id/london-borough-council/sutton,London Borough of Sutton,16/05/2018,40194944,470,Barnardo's,10370,Peoples Services Directorate,Provider Contract Payments,F470,,
http://opendatacommunities.org/id/london-borough-council/sutton,London Borough of Sutton,16/05/2018,40194945,470,Barnardo's,10370,Peoples Services Directorate,Provider Contract Payments,F470,,
http://opendatacommunities.org/id/london-borough-council/sutton,London Borough of Sutton,08/05/2018,6930503,"23,750.00",BB Legal Limited Client Account,99827,Peoples Services Directorate,Purchase Price,Y010,,
http://opendatacommunities.org/id/london-borough-council/sutton,London Borough of Sutton,01/04/2018,40194905,"3,835.80",Be My Family Fostering Agency,25179,Peoples Services Directorate,Foster Parents,G326,,
http://opendatacommunities.org/id/london-borough-council/sutton,London Borough of Sutton,01/04/2018,40194906,"3,475.80",Be My Family Fostering Agency,25179,Peoples Services Directorate,Foster Parents,G326,,
http://opendatacommunities.org/id/london-borough-council/sutton,London Borough of Sutton,08/09/2017,5016415,"1,287.14",Beaumont Lodge Ltd,16849,Peoples Services Directorate,Nursing Care - Ext Provider,G311,,
http://opendatacommunities.org/id/london-borough-council/sutton,London Borough of Sutton,30/04/2018,6930049,"62,000.00",Beddington Bid Ltd,26888,"Environment, Housing & Regeneration Directorate",External Fees  - Other,Y130,,
http://opendatacommunities.org/id/london-borough-council/sutton,London Borough of Sutton,15/04/2018,6931415,"1,024.83",Bellville-Homes Ltd,26490,"Environment, Housing & Regeneration Directorate",General Office Expenses,F235,,
http://opendatacommunities.org/id/london-borough-council/sutton,London Borough of Sutton,01/05/2018,6931416,"1,024.83",Bellville-Homes Ltd,26490,"Environment, Housing & Regeneration Directorate",General Office Expenses,F235,,
http://opendatacommunities.org/id/london-borough-council/sutton,London Borough of Sutton,07/03/2018,6931076,560,Belmontview House Ltd (Mrs R Mulalazi),28831,Peoples Services Directorate,Accommodation - Bed and Breakfast,H202,,
http://opendatacommunities.org/id/london-borough-council/sutton,London Borough of Sutton,20/03/2018,40189830,"14,807.71",Benjamin UK Ltd,23244,Peoples Services Directorate,Residential Care-Children,G330,,
http://opendatacommunities.org/id/london-borough-council/sutton,London Borough of Sutton,10/04/2018,40189833,"3,055.67",Benjamin UK Ltd,23244,Peoples Services Directorate,Residential Care-Children,G330,,
http://opendatacommunities.org/id/london-borough-council/sutton,London Borough of Sutton,18/05/2018,40194588,"2,332.00",Bertinaley Care Ltd T/A Angel Lodge,27109,Peoples Services Directorate,Interim Placements - Ext Provider,G317,,
http://opendatacommunities.org/id/london-borough-council/sutton,London Borough of Sutton,01/05/2018,40189214,484,Best at Home Domiciliary Care Services Ltd,30159,Peoples Services Directorate,Home Care,G334,,
http://opendatacommunities.org/id/london-borough-council/sutton,London Borough of Sutton,08/05/2018,40191764,592,Best at Home Domiciliary Care Services Ltd,30159,Peoples Services Directorate,Home Care,G334,,
http://opendatacommunities.org/id/london-borough-council/sutton,London Borough of Sutton,08/05/2018,40191767,484,Best at Home Domiciliary Care Services Ltd,30159,Peoples Services Directorate,Home Care,G334,,
http://opendatacommunities.org/id/london-borough-council/sutton,London Borough of Sutton,08/05/2018,40191768,614,Best at Home Domiciliary Care Services Ltd,30159,Peoples Services Directorate,Home Care,G334,,
http://opendatacommunities.org/id/london-borough-council/sutton,London Borough of Sutton,01/05/2018,40191769,614,Best at Home Domiciliary Care Services Ltd,30159,Peoples Services Directorate,Home Care,G334,,
http://opendatacommunities.org/id/london-borough-council/sutton,London Borough of Sutton,23/04/2018,40191771,680,Best at Home Domiciliary Care Services Ltd,30159,Peoples Services Directorate,Home Care,G334,,
http://opendatacommunities.org/id/london-borough-council/sutton,London Borough of Sutton,23/04/2018,40191772,981,Best at Home Domiciliary Care Services Ltd,30159,Peoples Services Directorate,Home Care,G334,,
http://opendatacommunities.org/id/london-borough-council/sutton,London Borough of Sutton,23/04/2018,40191774,981,Best at Home Domiciliary Care Services Ltd,30159,Peoples Services Directorate,Home Care,G334,,
http://opendatacommunities.org/id/london-borough-council/sutton,London Borough of Sutton,08/05/2018,40191775,976.98,Best at Home Domiciliary Care Services Ltd,30159,Peoples Services Directorate,Home Care,G334,,
http://opendatacommunities.org/id/london-borough-council/sutton,London Borough of Sutton,08/05/2018,40191786,639.99,Best at Home Domiciliary Care Services Ltd,30159,Peoples Services Directorate,Home Care,G334,,
http://opendatacommunities.org/id/london-borough-council/sutton,London Borough of Sutton,08/05/2018,40191787,769.98,Best at Home Domiciliary Care Services Ltd,30159,Peoples Services Directorate,Home Care,G334,,
http://opendatacommunities.org/id/london-borough-council/sutton,London Borough of Sutton,08/05/2018,40191788,725.97,Best at Home Domiciliary Care Services Ltd,30159,Peoples Services Directorate,Home Care,G334,,
http://opendatacommunities.org/id/london-borough-council/sutton,London Borough of Sutton,30/04/2018,6931045,"2,261.00",Bestcourt UK Ltd,10441,"Environment, Housing & Regeneration Directorate",Bed and Breakfast Accommodation,G400,,
http://opendatacommunities.org/id/london-borough-council/sutton,London Borough of Sutton,18/05/2018,40194301,"2,800.00",Beverley Lodge Nursing Home,10434,Peoples Services Directorate,Nursing Care - Ext Provider,G311,,
http://opendatacommunities.org/id/london-borough-council/sutton,London Borough of Sutton,18/05/2018,40194407,"3,400.00",Beverley Lodge Nursing Home,10434,Peoples Services Directorate,Nursing Care - Ext Provider,G311,,
http://opendatacommunities.org/id/london-borough-council/sutton,London Borough of Sutton,18/05/2018,40194443,"2,226.40",Beverley Lodge Nursing Home,10434,Peoples Services Directorate,Nursing Care - Ext Provider,G311,,
http://opendatacommunities.org/id/london-borough-council/sutton,London Borough of Sutton,18/05/2018,40194599,"3,380.00",Beverley Lodge Nursing Home,10434,Peoples Services Directorate,Nursing Care - Ext Provider,G311,,
http://opendatacommunities.org/id/london-borough-council/sutton,London Borough of Sutton,18/05/2018,40194973,"17,371.42",Beverley Lodge Nursing Home,10434,Peoples Services Directorate,Nursing Care - Ext Provider,G311,,
http://opendatacommunities.org/id/london-borough-council/sutton,London Borough of Sutton,30/04/2018,40190866,491,Beyond Community Care Services Ltd,29933,Peoples Services Directorate,Home Care,G334,,
http://opendatacommunities.org/id/london-borough-council/sutton,London Borough of Sutton,30/04/2018,40190868,490,Beyond Community Care Services Ltd,29933,Peoples Services Directorate,Home Care,G334,,
http://opendatacommunities.org/id/london-borough-council/sutton,London Borough of Sutton,30/04/2018,40190869,637,Beyond Community Care Services Ltd,29933,Peoples Services Directorate,Home Care,G334,,
http://opendatacommunities.org/id/london-borough-council/sutton,London Borough of Sutton,08/05/2018,40195540,491,Beyond Community Care Services Ltd,29933,Peoples Services Directorate,Home Care,G334,,
http://opendatacommunities.org/id/london-borough-council/sutton,London Borough of Sutton,08/05/2018,40195542,490,Beyond Community Care Services Ltd,29933,Peoples Services Directorate,Home Care,G334,,
http://opendatacommunities.org/id/london-borough-council/sutton,London Borough of Sutton,08/05/2018,40195543,637,Beyond Community Care Services Ltd,29933,Peoples Services Directorate,Home Care,G334,,
http://opendatacommunities.org/id/london-borough-council/sutton,London Borough of Sutton,14/05/2018,40197063,490,Beyond Community Care Services Ltd,29933,Peoples Services Directorate,Home Care,G334,,
http://opendatacommunities.org/id/london-borough-council/sutton,London Borough of Sutton,14/05/2018,40197068,491,Beyond Community Care Services Ltd,29933,Peoples Services Directorate,Home Care,G334,,
http://opendatacommunities.org/id/london-borough-council/sutton,London Borough of Sutton,14/05/2018,40197072,637,Beyond Community Care Services Ltd,29933,Peoples Services Directorate,Home Care,G334,,
http://opendatacommunities.org/id/london-borough-council/sutton,London Borough of Sutton,21/05/2018,40197122,491,Beyond Community Care Services Ltd,29933,Peoples Services Directorate,Home Care,G334,,
http://opendatacommunities.org/id/london-borough-council/sutton,London Borough of Sutton,21/05/2018,40197124,490,Beyond Community Care Services Ltd,29933,Peoples Services Directorate,Home Care,G334,,
http://opendatacommunities.org/id/london-borough-council/sutton,London Borough of Sutton,21/05/2018,40197125,637,Beyond Community Care Services Ltd,29933,Peoples Services Directorate,Home Care,G334,,
http://opendatacommunities.org/id/london-borough-council/sutton,London Borough of Sutton,10/05/2018,6930691,"1,192.50",Blinky Media,27832,Resources Directorate,Miscellaneous Expenses,F620,,
http://opendatacommunities.org/id/london-borough-council/sutton,London Borough of Sutton,05/05/2018,6930985,"4,879.22",Bloom Procurement Services Ltd,29692,Chief Executive's Directorate,Contractual Consultant Fees,G430,,
http://opendatacommunities.org/id/london-borough-council/sutton,London Borough of Sutton,01/04/2018,1254095,"12,199.77",Blossom House Lower School,10507,Peoples Services Directorate,Independent Schools,G325,,
http://opendatacommunities.org/id/london-borough-council/sutton,London Borough of Sutton,01/04/2018,1254096,"10,783.08",Blossom House Lower School,10507,Peoples Services Directorate,Independent Schools,G325,,
http://opendatacommunities.org/id/london-borough-council/sutton,London Borough of Sutton,01/04/2018,1254097,"12,350.00",Blossom House Lower School,10507,Peoples Services Directorate,Independent Schools,G325,,
http://opendatacommunities.org/id/london-borough-council/sutton,London Borough of Sutton,01/04/2018,1254098,"10,783.08",Blossom House Lower School,10507,Peoples Services Directorate,Independent Schools,G325,,
http://opendatacommunities.org/id/london-borough-council/sutton,London Borough of Sutton,01/04/2018,1254099,"20,516.67",Blossom House Lower School,10507,Peoples Services Directorate,Independent Schools,G325,,
http://opendatacommunities.org/id/london-borough-council/sutton,London Borough of Sutton,25/04/2018,1254100,"-2,000.00",Blossom House Lower School,10507,Peoples Services Directorate,Independent Schools,G325,,
http://opendatacommunities.org/id/london-borough-council/sutton,London Borough of Sutton,01/04/2018,1254101,"11,950.00",Blossom House Lower School,10507,Peoples Services Directorate,Independent Schools,G325,,
http://opendatacommunities.org/id/london-borough-council/sutton,London Borough of Sutton,01/04/2018,1254102,"11,008.80",Blossom House Lower School,10507,Peoples Services Directorate,Independent Schools,G325,,
http://opendatacommunities.org/id/london-borough-council/sutton,London Borough of Sutton,01/04/2018,1254103,"14,350.00",Blossom House Lower School,10507,Peoples Services Directorate,Independent Schools,G325,,
http://opendatacommunities.org/id/london-borough-council/sutton,London Borough of Sutton,01/04/2018,1254104,"13,950.00",Blossom House Lower School,10507,Peoples Services Directorate,Independent Schools,G325,,
http://opendatacommunities.org/id/london-borough-council/sutton,London Borough of Sutton,01/04/2018,1254105,"12,199.77",Blossom House Lower School,10507,Peoples Services Directorate,Independent Schools,G325,,
http://opendatacommunities.org/id/london-borough-council/sutton,London Borough of Sutton,01/04/2018,1254106,"10,783.08",Blossom House Lower School,10507,Peoples Services Directorate,Independent Schools,G325,,
http://opendatacommunities.org/id/london-borough-council/sutton,London Borough of Sutton,01/04/2018,1254107,"19,850.00",Blossom House Lower School,10507,Peoples Services Directorate,Independent Schools,G325,,
http://opendatacommunities.org/id/london-borough-council/sutton,London Borough of Sutton,01/04/2018,1254108,"12,199.77",Blossom House Lower School,10507,Peoples Services Directorate,Independent Schools,G325,,
http://opendatacommunities.org/id/london-borough-council/sutton,London Borough of Sutton,01/04/2018,1254109,"16,570.27",Blossom House Lower School,10507,Peoples Services Directorate,Independent Schools,G325,,
http://opendatacommunities.org/id/london-borough-council/sutton,London Borough of Sutton,01/04/2018,1254830,"14,350.00",Blossom House Lower School,10507,Peoples Services Directorate,Independent Schools,G325,,
http://opendatacommunities.org/id/london-borough-council/sutton,London Borough of Sutton,05/04/2018,40190452,"4,674.38",Bolinda UK Ltd,10558,Chief Executive's Directorate,Books,F006,,
http://opendatacommunities.org/id/london-borough-council/sutton,London Borough of Sutton,31/01/2018,6931315,420,Bottomline Technologies Ltd,25145,Resources Directorate,Fees - Computer Software,F384,,
http://opendatacommunities.org/id/london-borough-council/sutton,London Borough of Sutton,02/05/2018,6930197,"22,500.00",Boys & Maughan Solicitors,99827,Peoples Services Directorate,Purchase Price,Y010,,
http://opendatacommunities.org/id/london-borough-council/sutton,London Borough of Sutton,30/04/2018,6931518,"206,357.88",Breyer Group Plc,97044,Peoples Services Directorate,Building Works -Main Contractor,Y350,,
http://opendatacommunities.org/id/london-borough-council/sutton,London Borough of Sutton,18/05/2018,40194267,"2,034.96",Bridge House Care Centre,10620,Peoples Services Directorate,Nursing Care - Ext Provider,G311,,
http://opendatacommunities.org/id/london-borough-council/sutton,London Borough of Sutton,18/05/2018,40194323,"3,600.00",Bridge House Care Centre,10620,Peoples Services Directorate,Nursing Care - Ext Provider,G311,,
http://opendatacommunities.org/id/london-borough-council/sutton,London Borough of Sutton,18/05/2018,40194324,"3,360.00",Bridge House Care Centre,10620,Peoples Services Directorate,Nursing Care - Ext Provider,G311,,
http://opendatacommunities.org/id/london-borough-council/sutton,London Borough of Sutton,18/05/2018,40194325,"2,033.92",Bridge House Care Centre,10620,Peoples Services Directorate,Nursing Care - Ext Provider,G311,,
http://opendatacommunities.org/id/london-borough-council/sutton,London Borough of Sutton,18/05/2018,40194340,"2,671.43",Bridge House Care Centre,10620,Peoples Services Directorate,Nursing Care - Short Term Placements,G328,,
http://opendatacommunities.org/id/london-borough-council/sutton,London Borough of Sutton,18/05/2018,40194368,"3,380.00",Bridge House Care Centre,10620,Peoples Services Directorate,Nursing Care - Ext Provider,G311,,
http://opendatacommunities.org/id/london-borough-council/sutton,London Borough of Sutton,18/05/2018,40194369,"1,996.00",Bridge House Care Centre,10620,Peoples Services Directorate,Nursing Care - Ext Provider,G311,,
http://opendatacommunities.org/id/london-borough-council/sutton,London Borough of Sutton,18/05/2018,40194418,"3,200.00",Bridge House Care Centre,10620,Peoples Services Directorate,Nursing Care - Ext Provider,G311,,
http://opendatacommunities.org/id/london-borough-council/sutton,London Borough of Sutton,18/05/2018,40194562,"1,942.48",Bridge House Care Centre,10620,Peoples Services Directorate,Nursing Care - Ext Provider,G311,,
http://opendatacommunities.org/id/london-borough-council/sutton,London Borough of Sutton,18/05/2018,40194617,"3,000.00",Bridge House Care Centre,10620,Peoples Services Directorate,Nursing Care - Ext Provider,G311,,
http://opendatacommunities.org/id/london-borough-council/sutton,London Borough of Sutton,01/04/2018,6930159,459,Bridget Povey,25866,Peoples Services Directorate,Non-Maintained Childrens' Nurseries - 3 & 4 yr olds,G405,,
http://opendatacommunities.org/id/london-borough-council/sutton,London Borough of Sutton,02/04/2018,40189883,"2,978.57",Brighter Futures Foster Care Ltd,27648,Peoples Services Directorate,Foster Parents,G326,,
http://opendatacommunities.org/id/london-borough-council/sutton,London Borough of Sutton,02/04/2018,40189884,"2,978.57",Brighter Futures Foster Care Ltd,27648,Peoples Services Directorate,Foster Parents,G326,,
http://opendatacommunities.org/id/london-borough-council/sutton,London Borough of Sutton,02/04/2018,40189885,"3,685.71",Brighter Futures Foster Care Ltd,27648,Peoples Services Directorate,Foster Parents,G326,,
http://opendatacommunities.org/id/london-borough-council/sutton,London Borough of Sutton,02/04/2018,40189886,"2,768.57",Brighter Futures Foster Care Ltd,27648,Peoples Services Directorate,Foster Parents,G326,,
http://opendatacommunities.org/id/london-borough-council/sutton,London Borough of Sutton,26/04/2018,6930756,"1,544.92",British Gas,10641,"Environment, Housing & Regeneration Directorate",Gas - General,D610,,
http://opendatacommunities.org/id/london-borough-council/sutton,London Borough of Sutton,18/05/2018,40194302,"2,710.40",British Home & Hospital For Incurables,10589,Peoples Services Directorate,Nursing Care - Ext Provider,G311,,
http://opendatacommunities.org/id/london-borough-council/sutton,London Borough of Sutton,18/05/2018,40194444,"2,439.36",British Home & Hospital For Incurables,10589,Peoples Services Directorate,Nursing Care - Ext Provider,G311,,
http://opendatacommunities.org/id/london-borough-council/sutton,London Borough of Sutton,15/05/2018,6931108,"2,072.00",British Parking Association,10607,"Environment, Housing & Regeneration Directorate",Subscriptions - General,F450,,
http://opendatacommunities.org/id/london-borough-council/sutton,London Borough of Sutton,18/05/2018,40194303,"3,380.00",Broadlands Nursing Home,10586,Peoples Services Directorate,Nursing Care - Ext Provider,G311,,
http://opendatacommunities.org/id/london-borough-council/sutton,London Borough of Sutton,18/05/2018,40194304,"3,380.00",Broadlands Nursing Home,10586,Peoples Services Directorate,Nursing Care - Ext Provider,G311,,
http://opendatacommunities.org/id/london-borough-council/sutton,London Borough of Sutton,18/05/2018,40194408,"2,945.00",Broadlands Nursing Home,10586,Peoples Services Directorate,Nursing Care - Ext Provider,G311,,
http://opendatacommunities.org/id/london-borough-council/sutton,London Borough of Sutton,18/05/2018,40194409,"1,835.60",Broadlands Nursing Home,10586,Peoples Services Directorate,Nursing Care - Ext Provider,G311,,
http://opendatacommunities.org/id/london-borough-council/sutton,London Borough of Sutton,18/05/2018,40194600,"3,277.16",Broadlands Nursing Home,10586,Peoples Services Directorate,Nursing Care - Ext Provider,G311,,
http://opendatacommunities.org/id/london-borough-council/sutton,London Borough of Sutton,18/05/2018,40194586,"3,180.00",Broadreach House Charity,28699,Peoples Services Directorate,Interim Placements - Ext Provider,G317,,
http://opendatacommunities.org/id/london-borough-council/sutton,London Borough of Sutton,30/04/2018,1255054,"1,815.00",Brunswick Cars 9761/1961276/Loc09,10611,Peoples Services Directorate,Hired Peoples Transport (Children),E072,,
http://opendatacommunities.org/id/london-borough-council/sutton,London Borough of Sutton,30/04/2018,1255055,"4,942.00",Brunswick Cars 9761/1961276/Loc09,10611,Peoples Services Directorate,Hired Peoples Transport (Children),E072,,
http://opendatacommunities.org/id/london-borough-council/sutton,London Borough of Sutton,30/04/2018,1255056,"3,107.50",Brunswick Cars 9761/1961276/Loc09,10611,Peoples Services Directorate,Hired Peoples Transport (Children),E072,,
http://opendatacommunities.org/id/london-borough-council/sutton,London Borough of Sutton,30/04/2018,1255057,"1,925.00",Brunswick Cars 9761/1961276/Loc09,10611,Peoples Services Directorate,Hired Peoples Transport (Children),E072,,
http://opendatacommunities.org/id/london-borough-council/sutton,London Borough of Sutton,30/04/2018,1255058,"3,395.00",Brunswick Cars 9761/1961276/Loc09,10611,Peoples Services Directorate,Hired Peoples Transport (Children),E072,,
http://opendatacommunities.org/id/london-borough-council/sutton,London Borough of Sutton,30/04/2018,1255060,"2,950.00",Brunswick Cars 9761/1961276/Loc09,10611,Peoples Services Directorate,Hired Peoples Transport (Children),E072,,
http://opendatacommunities.org/id/london-borough-council/sutton,London Borough of Sutton,30/04/2018,1255061,"2,670.00",Brunswick Cars 9761/1961276/Loc09,10611,Peoples Services Directorate,Hired Peoples Transport (Children),E072,,
http://opendatacommunities.org/id/london-borough-council/sutton,London Borough of Sutton,30/04/2018,1255062,"2,286.00",Brunswick Cars 9761/1961276/Loc09,10611,Peoples Services Directorate,Hired Peoples Transport (Children),E072,,
http://opendatacommunities.org/id/london-borough-council/sutton,London Borough of Sutton,30/04/2018,1255063,"2,180.00",Brunswick Cars 9761/1961276/Loc09,10611,Peoples Services Directorate,Hired Peoples Transport (Children),E072,,
http://opendatacommunities.org/id/london-borough-council/sutton,London Borough of Sutton,30/04/2018,1255064,"5,686.00",Brunswick Cars 9761/1961276/Loc09,10611,Peoples Services Directorate,Hired Peoples Transport (Children),E072,,
http://opendatacommunities.org/id/london-borough-council/sutton,London Borough of Sutton,30/04/2018,1255065,"4,488.00",Brunswick Cars 9761/1961276/Loc09,10611,Peoples Services Directorate,Hired Peoples Transport (Children),E072,,
http://opendatacommunities.org/id/london-borough-council/sutton,London Borough of Sutton,30/04/2018,1255066,"6,243.00",Brunswick Cars 9761/1961276/Loc09,10611,Peoples Services Directorate,Hired Peoples Transport (Children),E072,,
http://opendatacommunities.org/id/london-borough-council/sutton,London Borough of Sutton,30/04/2018,1255067,"1,144.00",Brunswick Cars 9761/1961276/Loc09,10611,Peoples Services Directorate,Hired Peoples Transport (Children),E072,,
http://opendatacommunities.org/id/london-borough-council/sutton,London Borough of Sutton,30/04/2018,1255068,"1,970.00",Brunswick Cars 9761/1961276/Loc09,10611,Peoples Services Directorate,Hired Peoples Transport (Children),E072,,
http://opendatacommunities.org/id/london-borough-council/sutton,London Borough of Sutton,30/04/2018,1255069,"1,721.50",Brunswick Cars 9761/1961276/Loc09,10611,Peoples Services Directorate,Hired Peoples Transport (Children),E072,,
http://opendatacommunities.org/id/london-borough-council/sutton,London Borough of Sutton,30/04/2018,1255070,"2,717.00",Brunswick Cars 9761/1961276/Loc09,10611,Peoples Services Directorate,Hired Peoples Transport (Children),E072,,
http://opendatacommunities.org/id/london-borough-council/sutton,London Borough of Sutton,30/04/2018,1255071,"2,002.00",Brunswick Cars 9761/1961276/Loc09,10611,Peoples Services Directorate,Hired Peoples Transport (Children),E072,,
http://opendatacommunities.org/id/london-borough-council/sutton,London Borough of Sutton,30/04/2018,1255072,"1,824.00",Brunswick Cars 9761/1961276/Loc09,10611,Peoples Services Directorate,Hired Peoples Transport (Children),E072,,
http://opendatacommunities.org/id/london-borough-council/sutton,London Borough of Sutton,30/04/2018,1255073,"1,769.00",Brunswick Cars 9761/1961276/Loc09,10611,Peoples Services Directorate,Hired Peoples Transport (Children),E072,,
http://opendatacommunities.org/id/london-borough-council/sutton,London Borough of Sutton,30/04/2018,1255074,"2,150.00",Brunswick Cars 9761/1961276/Loc09,10611,Peoples Services Directorate,Hired Peoples Transport (Children),E072,,
http://opendatacommunities.org/id/london-borough-council/sutton,London Borough of Sutton,30/04/2018,1255075,"1,721.00",Brunswick Cars 9761/1961276/Loc09,10611,Peoples Services Directorate,Hired Peoples Transport (Children),E072,,
http://opendatacommunities.org/id/london-borough-council/sutton,London Borough of Sutton,30/04/2018,1255076,"1,130.00",Brunswick Cars 9761/1961276/Loc09,10611,Peoples Services Directorate,Hired Peoples Transport (Children),E072,,
http://opendatacommunities.org/id/london-borough-council/sutton,London Borough of Sutton,30/04/2018,1255077,"2,057.00",Brunswick Cars 9761/1961276/Loc09,10611,Peoples Services Directorate,Hired Peoples Transport (Children),E072,,
http://opendatacommunities.org/id/london-borough-council/sutton,London Borough of Sutton,30/04/2018,1255078,"2,464.00",Brunswick Cars 9761/1961276/Loc09,10611,Peoples Services Directorate,Hired Peoples Transport (Children),E072,,
http://opendatacommunities.org/id/london-borough-council/sutton,London Borough of Sutton,30/04/2018,1255079,"2,414.00",Brunswick Cars 9761/1961276/Loc09,10611,Peoples Services Directorate,Hired Peoples Transport (Children),E072,,
http://opendatacommunities.org/id/london-borough-council/sutton,London Borough of Sutton,30/04/2018,1255080,"3,910.50",Brunswick Cars 9761/1961276/Loc09,10611,Peoples Services Directorate,Hired Peoples Transport (Children),E072,,
http://opendatacommunities.org/id/london-borough-council/sutton,London Borough of Sutton,30/04/2018,1255081,"1,639.00",Brunswick Cars 9761/1961276/Loc09,10611,Peoples Services Directorate,Hired Peoples Transport (Children),E072,,
http://opendatacommunities.org/id/london-borough-council/sutton,London Borough of Sutton,30/04/2018,1255082,"1,664.00",Brunswick Cars 9761/1961276/Loc09,10611,Peoples Services Directorate,Hired Peoples Transport (Children),E072,,
http://opendatacommunities.org/id/london-borough-council/sutton,London Borough of Sutton,30/04/2018,1255083,"2,682.00",Brunswick Cars 9761/1961276/Loc09,10611,Peoples Services Directorate,Hired Peoples Transport (Children),E072,,
http://opendatacommunities.org/id/london-borough-council/sutton,London Borough of Sutton,30/04/2018,1255084,"2,100.00",Brunswick Cars 9761/1961276/Loc09,10611,Peoples Services Directorate,Hired Peoples Transport (Children),E072,,
http://opendatacommunities.org/id/london-borough-council/sutton,London Borough of Sutton,30/04/2018,1255085,"1,309.00",Brunswick Cars 9761/1961276/Loc09,10611,Peoples Services Directorate,Hired Peoples Transport (Children),E072,,
http://opendatacommunities.org/id/london-borough-council/sutton,London Borough of Sutton,30/04/2018,1255086,"3,312.00",Brunswick Cars 9761/1961276/Loc09,10611,Peoples Services Directorate,Hired Peoples Transport (Children),E072,,
http://opendatacommunities.org/id/london-borough-council/sutton,London Borough of Sutton,30/04/2018,1255087,"1,820.00",Brunswick Cars 9761/1961276/Loc09,10611,Peoples Services Directorate,Hired Peoples Transport (Children),E072,,
http://opendatacommunities.org/id/london-borough-council/sutton,London Borough of Sutton,30/04/2018,1255088,"2,040.00",Brunswick Cars 9761/1961276/Loc09,10611,Peoples Services Directorate,Hired Peoples Transport (Children),E072,,
http://opendatacommunities.org/id/london-borough-council/sutton,London Borough of Sutton,30/04/2018,1255089,"1,950.00",Brunswick Cars 9761/1961276/Loc09,10611,Peoples Services Directorate,Hired Peoples Transport (Children),E072,,
http://opendatacommunities.org/id/london-borough-council/sutton,London Borough of Sutton,30/04/2018,1255090,"1,032.00",Brunswick Cars 9761/1961276/Loc09,10611,Peoples Services Directorate,Hired Peoples Transport (Children),E072,,
http://opendatacommunities.org/id/london-borough-council/sutton,London Borough of Sutton,30/04/2018,1255091,"2,915.00",Brunswick Cars 9761/1961276/Loc09,10611,Peoples Services Directorate,Hired Peoples Transport (Children),E072,,
http://opendatacommunities.org/id/london-borough-council/sutton,London Borough of Sutton,30/04/2018,1255092,"2,838.00",Brunswick Cars 9761/1961276/Loc09,10611,Peoples Services Directorate,Hired Peoples Transport (Children),E072,,
http://opendatacommunities.org/id/london-borough-council/sutton,London Borough of Sutton,30/04/2018,1255093,860,Brunswick Cars 9761/1961276/Loc09,10611,Peoples Services Directorate,Hired Peoples Transport (Children),E072,,
http://opendatacommunities.org/id/london-borough-council/sutton,London Borough of Sutton,30/04/2018,1255094,"1,034.00",Brunswick Cars 9761/1961276/Loc09,10611,Peoples Services Directorate,Hired Peoples Transport (Children),E072,,
http://opendatacommunities.org/id/london-borough-council/sutton,London Borough of Sutton,30/04/2018,1255095,"1,078.00",Brunswick Cars 9761/1961276/Loc09,10611,Peoples Services Directorate,Hired Peoples Transport (Children),E072,,
http://opendatacommunities.org/id/london-borough-council/sutton,London Borough of Sutton,30/04/2018,1255096,"1,520.00",Brunswick Cars 9761/1961276/Loc09,10611,Peoples Services Directorate,Hired Peoples Transport (Children),E072,,
http://opendatacommunities.org/id/london-borough-council/sutton,London Borough of Sutton,30/04/2018,1255097,"2,010.00",Brunswick Cars 9761/1961276/Loc09,10611,Peoples Services Directorate,Hired Peoples Transport (Children),E072,,
http://opendatacommunities.org/id/london-borough-council/sutton,London Borough of Sutton,30/04/2018,1255098,"1,850.00",Brunswick Cars 9761/1961276/Loc09,10611,Peoples Services Directorate,Hired Peoples Transport (Children),E072,,
http://opendatacommunities.org/id/london-borough-council/sutton,London Borough of Sutton,30/04/2018,1255099,"1,298.00",Brunswick Cars 9761/1961276/Loc09,10611,Peoples Services Directorate,Hired Peoples Transport (Children),E072,,
http://opendatacommunities.org/id/london-borough-council/sutton,London Borough of Sutton,30/04/2018,1255100,"1,200.00",Brunswick Cars 9761/1961276/Loc09,10611,Peoples Services Directorate,Hired Peoples Transport (Children),E072,,
http://opendatacommunities.org/id/london-borough-council/sutton,London Borough of Sutton,30/04/2018,1255101,"1,177.00",Brunswick Cars 9761/1961276/Loc09,10611,Peoples Services Directorate,Hired Peoples Transport (Children),E072,,
http://opendatacommunities.org/id/london-borough-council/sutton,London Borough of Sutton,30/04/2018,1255102,810,Brunswick Cars 9761/1961276/Loc09,10611,Peoples Services Directorate,Hired Peoples Transport (Children),E072,,
http://opendatacommunities.org/id/london-borough-council/sutton,London Borough of Sutton,30/04/2018,1255103,"1,190.00",Brunswick Cars 9761/1961276/Loc09,10611,Peoples Services Directorate,Hired Peoples Transport (Children),E072,,
http://opendatacommunities.org/id/london-borough-council/sutton,London Borough of Sutton,30/04/2018,1255104,"1,180.00",Brunswick Cars 9761/1961276/Loc09,10611,Peoples Services Directorate,Hired Peoples Transport (Children),E072,,
http://opendatacommunities.org/id/london-borough-council/sutton,London Borough of Sutton,30/04/2018,1255105,"1,353.00",Brunswick Cars 9761/1961276/Loc09,10611,Peoples Services Directorate,Hired Peoples Transport (Children),E072,,
http://opendatacommunities.org/id/london-borough-council/sutton,London Borough of Sutton,30/04/2018,1255106,"1,221.00",Brunswick Cars 9761/1961276/Loc09,10611,Peoples Services Directorate,Hired Peoples Transport (Children),E072,,
http://opendatacommunities.org/id/london-borough-council/sutton,London Borough of Sutton,30/04/2018,1255107,"2,475.00",Brunswick Cars 9761/1961276/Loc09,10611,Peoples Services Directorate,Hired Peoples Transport (Children),E072,,
http://opendatacommunities.org/id/london-borough-council/sutton,London Borough of Sutton,30/04/2018,1255108,"3,784.00",Brunswick Cars 9761/1961276/Loc09,10611,Peoples Services Directorate,Hired Peoples Transport (Children),E072,,
http://opendatacommunities.org/id/london-borough-council/sutton,London Borough of Sutton,30/04/2018,1255110,785,Brunswick Cars 9761/1961276/Loc09,10611,Peoples Services Directorate,Hired Peoples Transport (Children),E072,,
http://opendatacommunities.org/id/london-borough-council/sutton,London Borough of Sutton,30/04/2018,1255111,"1,364.00",Brunswick Cars 9761/1961276/Loc09,10611,Peoples Services Directorate,Hired Peoples Transport (Children),E072,,
http://opendatacommunities.org/id/london-borough-council/sutton,London Borough of Sutton,30/04/2018,1255112,"1,280.00",Brunswick Cars 9761/1961276/Loc09,10611,Peoples Services Directorate,Hired Peoples Transport (Children),E072,,
http://opendatacommunities.org/id/london-borough-council/sutton,London Borough of Sutton,30/04/2018,1255113,"1,500.00",Brunswick Cars 9761/1961276/Loc09,10611,Peoples Services Directorate,Hired Peoples Transport (Children),E072,,
http://opendatacommunities.org/id/london-borough-council/sutton,London Borough of Sutton,30/04/2018,1255115,"2,460.00",Brunswick Cars 9761/1961276/Loc09,10611,Peoples Services Directorate,Hired Peoples Transport (Children),E072,,
http://opendatacommunities.org/id/london-borough-council/sutton,London Borough of Sutton,30/04/2018,1255116,627,Brunswick Cars 9761/1961276/Loc09,10611,Peoples Services Directorate,Hired Peoples Transport (Children),E072,,
http://opendatacommunities.org/id/london-borough-council/sutton,London Borough of Sutton,30/04/2018,1255117,950,Brunswick Cars 9761/1961276/Loc09,10611,Peoples Services Directorate,Hired Peoples Transport (Children),E072,,
http://opendatacommunities.org/id/london-borough-council/sutton,London Borough of Sutton,02/05/2018,1254138,600,Bumpsa Daisies Nurserys,10727,Peoples Services Directorate,Non-Maintained Childrens' Nurseries - 3 & 4 yr olds,G405,,
http://opendatacommunities.org/id/london-borough-council/sutton,London Borough of Sutton,02/05/2018,1254171,600,Bumpsa Daisies Nurserys,10727,Peoples Services Directorate,Non-Maintained Childrens' Nurseries - 2 Year Olds,G404,,
http://opendatacommunities.org/id/london-borough-council/sutton,London Borough of Sutton,18/05/2018,40194283,"3,436.00",Bupa Care Services,10175,Peoples Services Directorate,Nursing Care - Ext Provider,G311,,
http://opendatacommunities.org/id/london-borough-council/sutton,London Borough of Sutton,18/05/2018,40194581,"3,400.00",Bupa Care Services,10175,Peoples Services Directorate,Nursing Care - Ext Provider,G311,,
http://opendatacommunities.org/id/london-borough-council/sutton,London Borough of Sutton,18/05/2018,40194249,"2,439.56",Burlington Nursing Home Ltd,19236,Peoples Services Directorate,Nursing Care - Ext Provider,G311,,
http://opendatacommunities.org/id/london-borough-council/sutton,London Borough of Sutton,02/05/2018,1254172,"1,200.00",Busy Bees Day Nurseries Ltd - Cheam,24079,Peoples Services Directorate,Non-Maintained Childrens' Nurseries - 2 Year Olds,G404,,
http://opendatacommunities.org/id/london-borough-council/sutton,London Borough of Sutton,02/05/2018,1254139,600,Busy Bees Day Nursery at Carshalton,24082,Peoples Services Directorate,Non-Maintained Childrens' Nurseries - 3 & 4 yr olds,G405,,
http://opendatacommunities.org/id/london-borough-council/sutton,London Borough of Sutton,18/05/2018,40194483,"7,824.28",Butterfly's Care Homes Ltd,28860,Peoples Services Directorate,Residential Care - Ext Provider,G310,,
http://opendatacommunities.org/id/london-borough-council/sutton,London Borough of Sutton,01/05/2018,40189953,"4,559.40",By The Bridge Ltd,25655,Peoples Services Directorate,Foster Parents,G326,,
http://opendatacommunities.org/id/london-borough-council/sutton,London Borough of Sutton,01/05/2018,40189954,"3,786.64",By The Bridge Ltd,25655,Peoples Services Directorate,Foster Parents,G326,,
http://opendatacommunities.org/id/london-borough-council/sutton,London Borough of Sutton,01/05/2018,40189955,"3,786.64",By The Bridge Ltd,25655,Peoples Services Directorate,Foster Parents,G326,,
http://opendatacommunities.org/id/london-borough-council/sutton,London Borough of Sutton,01/05/2018,40189956,"4,246.50",By The Bridge Ltd,25655,Peoples Services Directorate,Foster Parents,G326,,
http://opendatacommunities.org/id/london-borough-council/sutton,London Borough of Sutton,01/05/2018,40189957,"4,596.21",By The Bridge Ltd,25655,Peoples Services Directorate,Foster Parents,G326,,
http://opendatacommunities.org/id/london-borough-council/sutton,London Borough of Sutton,20/04/2018,6929581,912,C.E.R Investments Ltd,26967,"Environment, Housing & Regeneration Directorate",Temporary Protection - Homeless Persons,H300,,
http://opendatacommunities.org/id/london-borough-council/sutton,London Borough of Sutton,23/05/2018,6931411,912,C.E.R Investments Ltd,26967,"Environment, Housing & Regeneration Directorate",Temporary Protection - Homeless Persons,H300,,
http://opendatacommunities.org/id/london-borough-council/sutton,London Borough of Sutton,19/03/2018,6930823,"12,930.00",Cablesheer (Asbestos) Ltd,97730,Peoples Services Directorate,Building Works -Main Contractor,Y350,,
http://opendatacommunities.org/id/london-borough-council/sutton,London Borough of Sutton,01/04/2018,40189864,"4,285.80",Caldecott Fostering Ltd,26730,Peoples Services Directorate,Foster Parents,G326,,
http://opendatacommunities.org/id/london-borough-council/sutton,London Borough of Sutton,18/05/2018,40194344,"4,705.24",Cambian Asperger Syndrome Services Ltd,12082,Peoples Services Directorate,Residential Care - Ext Provider,G310,,
http://opendatacommunities.org/id/london-borough-council/sutton,London Borough of Sutton,27/03/2018,40189854,"22,410.00",Cambian Childcare Ltd,26117,Peoples Services Directorate,Residential Care-Children,G330,,
http://opendatacommunities.org/id/london-borough-council/sutton,London Borough of Sutton,11/04/2018,6930017,573,Cansford Laboratories Ltd,29902,Peoples Services Directorate,Children Assessments,G329,,
http://opendatacommunities.org/id/london-borough-council/sutton,London Borough of Sutton,18/05/2018,40194489,"3,821.84",Canterbury Oast Trust,10755,Peoples Services Directorate,Residential Care - Ext Provider,G310,,
http://opendatacommunities.org/id/london-borough-council/sutton,London Borough of Sutton,20/05/2018,6930352,450,Capita Business Services Ltd,10780,Chief Executive's Directorate,General Office Expenses,F235,,
http://opendatacommunities.org/id/london-borough-council/sutton,London Borough of Sutton,13/04/2018,40189887,"5,554.20",Capstone Foster Care (South East) Ltd,16360,Peoples Services Directorate,Foster Parents,G326,,
http://opendatacommunities.org/id/london-borough-council/sutton,London Borough of Sutton,13/04/2018,40189888,"3,321.60",Capstone Foster Care (South East) Ltd,16360,Peoples Services Directorate,Foster Parents,G326,,
http://opendatacommunities.org/id/london-borough-council/sutton,London Borough of Sutton,18/05/2018,40194548,"2,267.40",Care Base(Redhill)Ltd t/a Acorn Court Care Home,24206,Peoples Services Directorate,Residential Care - Ext Provider,G310,,
http://opendatacommunities.org/id/london-borough-council/sutton,London Borough of Sutton,01/05/2018,6930175,"5,585.08",Care Connections Ltd,10798,Peoples Services Directorate,Supported Living - Ext Provider,G306,,
http://opendatacommunities.org/id/london-borough-council/sutton,London Borough of Sutton,01/05/2018,6930176,"1,722.73",Care Connections Ltd,10798,Peoples Services Directorate,Supported Living - Ext Provider,G306,,
http://opendatacommunities.org/id/london-borough-council/sutton,London Borough of Sutton,18/05/2018,40194305,"3,080.00",Care Direct Uk Ltd  (David House),27080,Peoples Services Directorate,Residential Care - Ext Provider,G310,,
http://opendatacommunities.org/id/london-borough-council/sutton,London Borough of Sutton,18/05/2018,40194446,"3,053.24",Care Direct Uk Ltd  (David House),27080,Peoples Services Directorate,Residential Care - Ext Provider,G310,,
http://opendatacommunities.org/id/london-borough-council/sutton,London Borough of Sutton,30/04/2018,6930138,"1,453.20",Care Monitoring 2000 Ltd,20716,Resources Directorate,Internal Fees - Project Management,Y180,,
http://opendatacommunities.org/id/london-borough-council/sutton,London Borough of Sutton,18/05/2018,40194275,"4,000.00",Care UK Homecare Ltd,10853,Peoples Services Directorate,Nursing Care - Ext Provider,G311,,
http://opendatacommunities.org/id/london-borough-council/sutton,London Borough of Sutton,18/05/2018,40194377,708.8,Care UK Homecare Ltd,10853,Peoples Services Directorate,Nursing Care - 3rd party top up payment,G360,,
http://opendatacommunities.org/id/london-borough-council/sutton,London Borough of Sutton,01/04/2018,40191792,"4,732.00",Care Unlimited Domcare Ltd,28906,Peoples Services Directorate,Supported Living - Ext Provider,G306,,
http://opendatacommunities.org/id/london-borough-council/sutton,London Borough of Sutton,01/04/2018,40191793,"4,060.00",Care Unlimited Domcare Ltd,28906,Peoples Services Directorate,Supported Living - Ext Provider,G306,,
http://opendatacommunities.org/id/london-borough-council/sutton,London Borough of Sutton,01/04/2018,40191794,"4,060.00",Care Unlimited Domcare Ltd,28906,Peoples Services Directorate,Supported Living - Ext Provider,G306,,
http://opendatacommunities.org/id/london-borough-council/sutton,London Borough of Sutton,01/04/2018,40191795,"4,060.00",Care Unlimited Domcare Ltd,28906,Peoples Services Directorate,Supported Living - Ext Provider,G306,,
http://opendatacommunities.org/id/london-borough-council/sutton,London Borough of Sutton,01/04/2018,40191796,"4,060.00",Care Unlimited Domcare Ltd,28906,Peoples Services Directorate,Supported Living - Ext Provider,G306,,
http://opendatacommunities.org/id/london-borough-council/sutton,London Borough of Sutton,18/05/2018,40194289,"2,200.00",Care Unlimited Group Ltd,10774,Peoples Services Directorate,Interim Placements - Ext Provider,G317,,
http://opendatacommunities.org/id/london-borough-council/sutton,London Borough of Sutton,18/05/2018,40194394,"1,692.00",Care Unlimited Group Ltd,10774,Peoples Services Directorate,Residential Care - Ext Provider,G310,,
http://opendatacommunities.org/id/london-borough-council/sutton,London Borough of Sutton,18/05/2018,40194481,"1,780.00",Care Unlimited Group Ltd,10774,Peoples Services Directorate,Residential Care - Ext Provider,G310,,
http://opendatacommunities.org/id/london-borough-council/sutton,London Borough of Sutton,18/05/2018,40194585,"2,550.00",Care Unlimited Group Ltd,10774,Peoples Services Directorate,Interim Placements - Ext Provider,G317,,
http://opendatacommunities.org/id/london-borough-council/sutton,London Borough of Sutton,09/04/2017,40189142,712.08,Caremark (Sutton),25541,Peoples Services Directorate,Home Care,G334,,
http://opendatacommunities.org/id/london-borough-council/sutton,London Borough of Sutton,16/04/2017,40189143,743.38,Caremark (Sutton),25541,Peoples Services Directorate,Home Care,G334,,
http://opendatacommunities.org/id/london-borough-council/sutton,London Borough of Sutton,26/02/2017,40189150,587.58,Caremark (Sutton),25541,Peoples Services Directorate,Home Care,G334,,
http://opendatacommunities.org/id/london-borough-council/sutton,London Borough of Sutton,03/05/2018,40193915,"2,565.00",Caremark (Sutton),25541,Peoples Services Directorate,Home Care,G334,,
http://opendatacommunities.org/id/london-borough-council/sutton,London Borough of Sutton,29/04/2018,40193966,712.08,Caremark (Sutton),25541,Peoples Services Directorate,Home Care,G334,,
http://opendatacommunities.org/id/london-borough-council/sutton,London Borough of Sutton,25/02/2018,40194013,712.08,Caremark (Sutton),25541,Peoples Services Directorate,Home Care,G334,,
http://opendatacommunities.org/id/london-borough-council/sutton,London Borough of Sutton,15/04/2018,40194014,727.73,Caremark (Sutton),25541,Peoples Services Directorate,Home Care,G334,,
http://opendatacommunities.org/id/london-borough-council/sutton,London Borough of Sutton,25/02/2018,40194027,606.44,Caremark (Sutton),25541,Peoples Services Directorate,Home Care,G334,,
http://opendatacommunities.org/id/london-borough-council/sutton,London Borough of Sutton,25/02/2018,40194036,712.08,Caremark (Sutton),25541,Peoples Services Directorate,Home Care,G334,,
http://opendatacommunities.org/id/london-borough-council/sutton,London Borough of Sutton,15/04/2018,40194037,712.08,Caremark (Sutton),25541,Peoples Services Directorate,Home Care,G334,,
http://opendatacommunities.org/id/london-borough-council/sutton,London Borough of Sutton,19/04/2018,40194078,"1,917.00",Caremark (Sutton),25541,Peoples Services Directorate,Home Care,G334,,
http://opendatacommunities.org/id/london-borough-council/sutton,London Borough of Sutton,19/04/2018,40194096,"2,412.00",Caremark (Sutton),25541,Peoples Services Directorate,Home Care,G334,,
http://opendatacommunities.org/id/london-borough-council/sutton,London Borough of Sutton,26/04/2018,40194097,"2,502.00",Caremark (Sutton),25541,Peoples Services Directorate,Home Care,G334,,
http://opendatacommunities.org/id/london-borough-council/sutton,London Borough of Sutton,29/04/2018,40194155,712.08,Caremark (Sutton),25541,Peoples Services Directorate,Home Care,G334,,
http://opendatacommunities.org/id/london-borough-council/sutton,London Borough of Sutton,25/02/2018,40194160,618.18,Caremark (Sutton),25541,Peoples Services Directorate,Home Care,G334,,
http://opendatacommunities.org/id/london-borough-council/sutton,London Borough of Sutton,10/05/2018,40195539,"2,538.00",Caremark (Sutton),25541,Peoples Services Directorate,Home Care,G334,,
http://opendatacommunities.org/id/london-borough-council/sutton,London Borough of Sutton,17/05/2018,40195552,"2,538.00",Caremark (Sutton),25541,Peoples Services Directorate,Home Care,G334,,
http://opendatacommunities.org/id/london-borough-council/sutton,London Borough of Sutton,13/05/2018,40195563,712.08,Caremark (Sutton),25541,Peoples Services Directorate,Home Care,G334,,
http://opendatacommunities.org/id/london-borough-council/sutton,London Borough of Sutton,13/05/2018,40195565,602.53,Caremark (Sutton),25541,Peoples Services Directorate,Home Care,G334,,
http://opendatacommunities.org/id/london-borough-council/sutton,London Borough of Sutton,18/05/2018,40194332,"5,270.48",Caretech Community Services Ltd,10791,Peoples Services Directorate,Residential Care - Ext Provider,G310,,
http://opendatacommunities.org/id/london-borough-council/sutton,London Borough of Sutton,18/05/2018,40194382,"5,270.48",Caretech Community Services Ltd,10791,Peoples Services Directorate,Residential Care - Ext Provider,G310,,
http://opendatacommunities.org/id/london-borough-council/sutton,London Borough of Sutton,18/05/2018,40194383,"5,270.48",Caretech Community Services Ltd,10791,Peoples Services Directorate,Residential Care - Ext Provider,G310,,
http://opendatacommunities.org/id/london-borough-council/sutton,London Borough of Sutton,18/05/2018,40194627,"5,405.88",Caretech Community Services Ltd,10791,Peoples Services Directorate,Residential Care - Ext Provider,G310,,
http://opendatacommunities.org/id/london-borough-council/sutton,London Borough of Sutton,10/05/2018,1254843,"34,287.92",Carew Academy,25284,Peoples Services Directorate,Place Funding,G063,,
http://opendatacommunities.org/id/london-borough-council/sutton,London Borough of Sutton,10/05/2018,1254843,"18,200.00",Carew Academy,25284,Peoples Services Directorate,Top-up Funding,G064,,
http://opendatacommunities.org/id/london-borough-council/sutton,London Borough of Sutton,10/05/2018,1254843,"3,300.00",Carew Academy,25284,Peoples Services Directorate,Payments to Schools,G065,,
http://opendatacommunities.org/id/london-borough-council/sutton,London Borough of Sutton,04/05/2018,6931217,500,Carey Haslam,29932,Resources Directorate,Subscriptions - General,F450,,
http://opendatacommunities.org/id/london-borough-council/sutton,London Borough of Sutton,03/04/2018,40189395,"1,340.00",Carlene House,10763,Peoples Services Directorate,Supported Living - Ext Provider,G306,,
http://opendatacommunities.org/id/london-borough-council/sutton,London Borough of Sutton,03/04/2018,40189410,"1,340.00",Carlene House,10763,Peoples Services Directorate,Supported Living - Ext Provider,G306,,
http://opendatacommunities.org/id/london-borough-council/sutton,London Borough of Sutton,18/05/2018,40194317,"2,682.68",Carlene House,10763,Peoples Services Directorate,Residential Care - Ext Provider,G310,,
http://opendatacommunities.org/id/london-borough-council/sutton,London Borough of Sutton,18/05/2018,40194363,"2,625.28",Carlene House,10763,Peoples Services Directorate,Residential Care - Ext Provider,G310,,
http://opendatacommunities.org/id/london-borough-council/sutton,London Borough of Sutton,18/05/2018,40194460,"2,740.64",Carlene House,10763,Peoples Services Directorate,Residential Care - Ext Provider,G310,,
http://opendatacommunities.org/id/london-borough-council/sutton,London Borough of Sutton,18/05/2018,40194461,"2,654.68",Carlene House,10763,Peoples Services Directorate,Residential Care - Ext Provider,G310,,
http://opendatacommunities.org/id/london-borough-council/sutton,London Borough of Sutton,18/05/2018,40194462,"2,630.60",Carlene House,10763,Peoples Services Directorate,Residential Care - Ext Provider,G310,,
http://opendatacommunities.org/id/london-borough-council/sutton,London Borough of Sutton,18/05/2018,40194463,"4,440.00",Carlene House,10763,Peoples Services Directorate,Residential Care - Ext Provider,G310,,
http://opendatacommunities.org/id/london-borough-council/sutton,London Borough of Sutton,18/05/2018,40194560,"2,625.28",Carlene House,10763,Peoples Services Directorate,Residential Care - Ext Provider,G310,,
http://opendatacommunities.org/id/london-borough-council/sutton,London Borough of Sutton,11/05/2018,6930659,"28,500.00",Carpenter & Co Client Account,99827,Peoples Services Directorate,Purchase Price,Y010,,
http://opendatacommunities.org/id/london-borough-council/sutton,London Borough of Sutton,30/04/2018,40191486,617.65,Carshalton News,10752,Chief Executive's Directorate,Books,F006,,
http://opendatacommunities.org/id/london-borough-council/sutton,London Borough of Sutton,28/02/2018,6930565,"5,054.00",Carter Jonas LLP,30103,"Environment, Housing & Regeneration Directorate",Surveyors Fees,Y030,,
http://opendatacommunities.org/id/london-borough-council/sutton,London Borough of Sutton,02/05/2018,1254140,600,Caterpillars Day Nursery,28020,Peoples Services Directorate,Non-Maintained Childrens' Nurseries - 3 & 4 yr olds,G405,,
http://opendatacommunities.org/id/london-borough-council/sutton,London Borough of Sutton,12/05/2018,6930785,"1,055.95",Caysh Enterprise Cic,28016,Peoples Services Directorate,Approved Lodgings,H323,,
http://opendatacommunities.org/id/london-borough-council/sutton,London Borough of Sutton,16/03/2018,6931151,"17,903.38",Caysh Enterprise Cic,28016,"Environment, Housing & Regeneration Directorate",Supporting People - Teenage Parent Services,H247,,
http://opendatacommunities.org/id/london-borough-council/sutton,London Borough of Sutton,31/05/2018,1255364,"29,666.67",Caysh Housing Project,23133,"Environment, Housing & Regeneration Directorate",Supporting People - Teenage Parent Services,H247,,
http://opendatacommunities.org/id/london-borough-council/sutton,London Borough of Sutton,14/05/2018,6930875,"1,322.10",Caysh Housing Project,23133,Peoples Services Directorate,Approved Lodgings,H323,,
http://opendatacommunities.org/id/london-borough-council/sutton,London Borough of Sutton,14/05/2018,6930877,"1,340.70",Caysh Housing Project,23133,Peoples Services Directorate,Approved Lodgings,H323,,
http://opendatacommunities.org/id/london-borough-council/sutton,London Borough of Sutton,14/05/2018,6930878,"1,251.00",Caysh Housing Project,23133,Peoples Services Directorate,Approved Lodgings,H323,,
http://opendatacommunities.org/id/london-borough-council/sutton,London Borough of Sutton,14/05/2018,6930879,"1,379.70",Caysh Housing Project,23133,Peoples Services Directorate,Approved Lodgings,H323,,
http://opendatacommunities.org/id/london-borough-council/sutton,London Borough of Sutton,14/05/2018,6930880,"1,340.70",Caysh Housing Project,23133,Peoples Services Directorate,Approved Lodgings,H323,,
http://opendatacommunities.org/id/london-borough-council/sutton,London Borough of Sutton,14/05/2018,6930881,"1,251.04",Caysh Housing Project,23133,Peoples Services Directorate,Approved Lodgings,H323,,
http://opendatacommunities.org/id/london-borough-council/sutton,London Borough of Sutton,14/05/2018,6930882,"1,141.80",Caysh Housing Project,23133,Peoples Services Directorate,Approved Lodgings,H323,,
http://opendatacommunities.org/id/london-borough-council/sutton,London Borough of Sutton,14/05/2018,6930883,"1,379.70",Caysh Housing Project,23133,Peoples Services Directorate,Approved Lodgings,H323,,
http://opendatacommunities.org/id/london-borough-council/sutton,London Borough of Sutton,14/05/2018,6930884,"1,215.60",Caysh Housing Project,23133,Peoples Services Directorate,Approved Lodgings,H323,,
http://opendatacommunities.org/id/london-borough-council/sutton,London Borough of Sutton,14/05/2018,6930885,"1,340.66",Caysh Housing Project,23133,Peoples Services Directorate,Approved Lodgings,H323,,
http://opendatacommunities.org/id/london-borough-council/sutton,London Borough of Sutton,14/05/2018,6930886,"1,379.70",Caysh Housing Project,23133,Peoples Services Directorate,Approved Lodgings,H323,,
http://opendatacommunities.org/id/london-borough-council/sutton,London Borough of Sutton,14/05/2018,6930956,"-1,134.81",Caysh Housing Project,23133,Peoples Services Directorate,Approved Lodgings,H323,,
http://opendatacommunities.org/id/london-borough-council/sutton,London Borough of Sutton,29/03/2018,6930000,859.64,Central & North West London Nhs Foundation Trust,28976,Chief Executive's Directorate,Provider Contract Payments,F470,,
http://opendatacommunities.org/id/london-borough-council/sutton,London Borough of Sutton,03/05/2018,6931278,650.3,Central & North West London Nhs Foundation Trust,28976,Chief Executive's Directorate,Provider Contract Payments,F470,,
http://opendatacommunities.org/id/london-borough-council/sutton,London Borough of Sutton,09/05/2018,6930575,"2,601.20",Central London Community Healthcare NHS Trust,29865,Chief Executive's Directorate,Provider Contract Payments,F470,,
http://opendatacommunities.org/id/london-borough-council/sutton,London Borough of Sutton,01/04/2018,40189857,"5,785.80",Channels & Choices Theraputic Fostering Ltd,25665,Peoples Services Directorate,Foster Parents,G326,,
http://opendatacommunities.org/id/london-borough-council/sutton,London Borough of Sutton,01/04/2018,40189875,"5,785.80",Channels & Choices Theraputic Fostering Ltd,25665,Peoples Services Directorate,Foster Parents,G326,,
http://opendatacommunities.org/id/london-borough-council/sutton,London Borough of Sutton,02/05/2018,1254141,"1,200.00",Cheam Baptist Church Pre-School,10924,Peoples Services Directorate,Non-Maintained Childrens' Nurseries - 3 & 4 yr olds,G405,,
http://opendatacommunities.org/id/london-borough-council/sutton,London Borough of Sutton,02/05/2018,1254174,600,Cheam Baptist Church Pre-School,10924,Peoples Services Directorate,Non-Maintained Childrens' Nurseries - 2 Year Olds,G404,,
http://opendatacommunities.org/id/london-borough-council/sutton,London Borough of Sutton,30/04/2018,1254572,660,Cheam Station Cars,15604,Peoples Services Directorate,Hired Peoples Transport (Children),E072,,
http://opendatacommunities.org/id/london-borough-council/sutton,London Borough of Sutton,30/04/2018,1254573,"1,400.00",Cheam Station Cars,15604,Peoples Services Directorate,Hired Peoples Transport (Children),E072,,
http://opendatacommunities.org/id/london-borough-council/sutton,London Borough of Sutton,30/04/2018,1254574,"2,205.00",Cheam Station Cars,15604,Peoples Services Directorate,Hired Peoples Transport (Children),E072,,
http://opendatacommunities.org/id/london-borough-council/sutton,London Borough of Sutton,30/04/2018,1254575,602,Cheam Station Cars,15604,Peoples Services Directorate,Hired Peoples Transport (Children),E072,,
http://opendatacommunities.org/id/london-borough-council/sutton,London Borough of Sutton,30/04/2018,1254576,"1,976.00",Cheam Station Cars,15604,Peoples Services Directorate,Hired Peoples Transport (Children),E072,,
http://opendatacommunities.org/id/london-borough-council/sutton,London Borough of Sutton,30/04/2018,1254578,"1,870.00",Cheam Station Cars,15604,Peoples Services Directorate,Hired Peoples Transport (Children),E072,,
http://opendatacommunities.org/id/london-borough-council/sutton,London Borough of Sutton,30/04/2018,1254579,"1,100.00",Cheam Station Cars,15604,Peoples Services Directorate,Hired Peoples Transport (Children),E072,,
http://opendatacommunities.org/id/london-borough-council/sutton,London Borough of Sutton,30/04/2018,1254580,660,Cheam Station Cars,15604,Peoples Services Directorate,Hired Peoples Transport (Children),E072,,
http://opendatacommunities.org/id/london-borough-council/sutton,London Borough of Sutton,30/04/2018,1254581,500,Cheam Station Cars,15604,Peoples Services Directorate,Hired Peoples Transport (Children),E072,,
http://opendatacommunities.org/id/london-borough-council/sutton,London Borough of Sutton,30/04/2018,1254583,"1,160.00",Cheam Station Cars,15604,Peoples Services Directorate,Hired Peoples Transport (Children),E072,,
http://opendatacommunities.org/id/london-borough-council/sutton,London Borough of Sutton,30/04/2018,1254585,560,Cheam Station Cars,15604,Peoples Services Directorate,Hired Peoples Transport (Children),E072,,
http://opendatacommunities.org/id/london-borough-council/sutton,London Borough of Sutton,30/04/2018,1254586,"1,188.00",Cheam Station Cars,15604,Peoples Services Directorate,Hired Peoples Transport (Children),E072,,
http://opendatacommunities.org/id/london-borough-council/sutton,London Borough of Sutton,30/04/2018,1254587,"1,650.00",Cheam Station Cars,15604,Peoples Services Directorate,Hired Peoples Transport (Children),E072,,
http://opendatacommunities.org/id/london-borough-council/sutton,London Borough of Sutton,30/04/2018,1254588,640,Cheam Station Cars,15604,Peoples Services Directorate,Hired Peoples Transport (Children),E072,,
http://opendatacommunities.org/id/london-borough-council/sutton,London Borough of Sutton,30/04/2018,1254589,"1,532.00",Cheam Station Cars,15604,Peoples Services Directorate,Hired Peoples Transport (Children),E072,,
http://opendatacommunities.org/id/london-borough-council/sutton,London Borough of Sutton,30/04/2018,1254590,"1,560.00",Cheam Station Cars,15604,Peoples Services Directorate,Hired Peoples Transport (Children),E072,,
http://opendatacommunities.org/id/london-borough-council/sutton,London Borough of Sutton,30/04/2018,1254591,570,Cheam Station Cars,15604,Peoples Services Directorate,Hired Peoples Transport (Children),E072,,
http://opendatacommunities.org/id/london-borough-council/sutton,London Borough of Sutton,30/04/2018,1254594,980,Cheam Station Cars,15604,Peoples Services Directorate,Hired Peoples Transport (Children),E072,,
http://opendatacommunities.org/id/london-borough-council/sutton,London Borough of Sutton,30/04/2018,1254595,"1,585.00",Cheam Station Cars,15604,Peoples Services Directorate,Hired Peoples Transport (Children),E072,,
http://opendatacommunities.org/id/london-borough-council/sutton,London Borough of Sutton,30/04/2018,1254596,500,Cheam Station Cars,15604,Peoples Services Directorate,Hired Peoples Transport (Children),E072,,
http://opendatacommunities.org/id/london-borough-council/sutton,London Borough of Sutton,30/04/2018,1254597,770,Cheam Station Cars,15604,Peoples Services Directorate,Hired Peoples Transport (Children),E072,,
http://opendatacommunities.org/id/london-borough-council/sutton,London Borough of Sutton,30/04/2018,1254598,450,Cheam Station Cars,15604,Peoples Services Directorate,Hired Peoples Transport (Children),E072,,
http://opendatacommunities.org/id/london-borough-council/sutton,London Borough of Sutton,30/04/2018,1254599,450,Cheam Station Cars,15604,Peoples Services Directorate,Hired Peoples Transport (Children),E072,,
http://opendatacommunities.org/id/london-borough-council/sutton,London Borough of Sutton,18/05/2018,40194352,"3,400.00",Chegworth Nursing Home Bayswift Ltd,10908,Peoples Services Directorate,Nursing Care - Ext Provider,G311,,
http://opendatacommunities.org/id/london-borough-council/sutton,London Borough of Sutton,18/05/2018,40194445,"3,400.00",Chegworth Nursing Home Bayswift Ltd,10908,Peoples Services Directorate,Nursing Care - Ext Provider,G311,,
http://opendatacommunities.org/id/london-borough-council/sutton,London Borough of Sutton,18/05/2018,40194550,"3,400.00",Chegworth Nursing Home Bayswift Ltd,10908,Peoples Services Directorate,Nursing Care - Ext Provider,G311,,
http://opendatacommunities.org/id/london-borough-council/sutton,London Borough of Sutton,18/05/2018,40194551,"2,781.64",Chegworth Nursing Home Bayswift Ltd,10908,Peoples Services Directorate,Nursing Care - Ext Provider,G311,,
http://opendatacommunities.org/id/london-borough-council/sutton,London Borough of Sutton,18/05/2018,40194552,"1,032.98",Chegworth Nursing Home Bayswift Ltd,10908,Peoples Services Directorate,Nursing Care - Ext Provider,G311,,
http://opendatacommunities.org/id/london-borough-council/sutton,London Borough of Sutton,18/05/2018,40194654,"3,157.14",Chegworth Nursing Home Bayswift Ltd,10908,Peoples Services Directorate,Nursing Care - Ext Provider,G311,,
http://opendatacommunities.org/id/london-borough-council/sutton,London Borough of Sutton,18/05/2018,40194655,"3,200.00",Chegworth Nursing Home Bayswift Ltd,10908,Peoples Services Directorate,Nursing Care - Ext Provider,G311,,
http://opendatacommunities.org/id/london-borough-council/sutton,London Borough of Sutton,01/04/2018,6931529,"6,219.58",Chelsea and Westminster NHS ft,28891,Chief Executive's Directorate,Provider Contract Payments,F470,,
http://opendatacommunities.org/id/london-borough-council/sutton,London Borough of Sutton,01/04/2018,6931530,"9,513.61",Chelsea and Westminster NHS ft,28891,Chief Executive's Directorate,Provider Contract Payments,F470,,
http://opendatacommunities.org/id/london-borough-council/sutton,London Borough of Sutton,01/05/2018,6931532,"9,513.61",Chelsea and Westminster NHS ft,28891,Chief Executive's Directorate,Provider Contract Payments,F470,,
http://opendatacommunities.org/id/london-borough-council/sutton,London Borough of Sutton,14/05/2018,6930761,"13,725.00",Chelsea Studios Ltd,32128,"Environment, Housing & Regeneration Directorate",Bed and Breakfast Accommodation,G400,,
http://opendatacommunities.org/id/london-borough-council/sutton,London Borough of Sutton,24/05/2018,6931461,768,Chelsea Studios Ltd,99898,"Environment, Housing & Regeneration Directorate",Depositors,X460,,
http://opendatacommunities.org/id/london-borough-council/sutton,London Borough of Sutton,24/05/2018,6931461,"1,200.00",Chelsea Studios Ltd,99898,"Environment, Housing & Regeneration Directorate",Depositors,X460,,
http://opendatacommunities.org/id/london-borough-council/sutton,London Borough of Sutton,29/04/2018,40190904,490,Chenash Homecare Specialists And Care Agency,25667,Peoples Services Directorate,Home Care,G334,,
http://opendatacommunities.org/id/london-borough-council/sutton,London Borough of Sutton,29/04/2018,40190908,539,Chenash Homecare Specialists And Care Agency,25667,Peoples Services Directorate,Home Care,G334,,
http://opendatacommunities.org/id/london-borough-council/sutton,London Borough of Sutton,29/04/2018,40190909,514.5,Chenash Homecare Specialists And Care Agency,25667,Peoples Services Directorate,Home Care,G334,,
http://opendatacommunities.org/id/london-borough-council/sutton,London Borough of Sutton,22/04/2018,40191084,490,Chenash Homecare Specialists And Care Agency,25667,Peoples Services Directorate,Home Care,G334,,
http://opendatacommunities.org/id/london-borough-council/sutton,London Borough of Sutton,22/04/2018,40191088,525,Chenash Homecare Specialists And Care Agency,25667,Peoples Services Directorate,Home Care,G334,,
http://opendatacommunities.org/id/london-borough-council/sutton,London Borough of Sutton,22/04/2018,40191089,514.5,Chenash Homecare Specialists And Care Agency,25667,Peoples Services Directorate,Home Care,G334,,
http://opendatacommunities.org/id/london-borough-council/sutton,London Borough of Sutton,06/05/2018,40195265,490,Chenash Homecare Specialists And Care Agency,25667,Peoples Services Directorate,Home Care,G334,,
http://opendatacommunities.org/id/london-borough-council/sutton,London Borough of Sutton,13/05/2018,40195266,490,Chenash Homecare Specialists And Care Agency,25667,Peoples Services Directorate,Home Care,G334,,
http://opendatacommunities.org/id/london-borough-council/sutton,London Borough of Sutton,06/05/2018,40195275,514.5,Chenash Homecare Specialists And Care Agency,25667,Peoples Services Directorate,Home Care,G334,,
http://opendatacommunities.org/id/london-borough-council/sutton,London Borough of Sutton,13/05/2018,40195276,528.5,Chenash Homecare Specialists And Care Agency,25667,Peoples Services Directorate,Home Care,G334,,
http://opendatacommunities.org/id/london-borough-council/sutton,London Borough of Sutton,18/05/2018,40194331,"2,725.00",Cherry Lodge,10934,Peoples Services Directorate,Residential Care - Ext Provider,G310,,
http://opendatacommunities.org/id/london-borough-council/sutton,London Borough of Sutton,18/05/2018,40194381,"3,360.00",Cherry Lodge,10934,Peoples Services Directorate,Residential Care - Ext Provider,G310,,
http://opendatacommunities.org/id/london-borough-council/sutton,London Borough of Sutton,18/05/2018,40194971,"23,800.00",CHHG t/a Oak Manor,33235,Peoples Services Directorate,Nursing Care - Ext Provider,G311,,
http://opendatacommunities.org/id/london-borough-council/sutton,London Borough of Sutton,09/04/2018,40189870,"3,342.90",Children First Fostering Agency,21215,Peoples Services Directorate,Foster Parents,G326,,
http://opendatacommunities.org/id/london-borough-council/sutton,London Borough of Sutton,09/04/2018,40189871,"3,229.80",Children First Fostering Agency,21215,Peoples Services Directorate,Foster Parents,G326,,
http://opendatacommunities.org/id/london-borough-council/sutton,London Borough of Sutton,04/04/2018,40189876,"4,417.80",Children of All Nations,19625,Peoples Services Directorate,Foster Parents,G326,,
http://opendatacommunities.org/id/london-borough-council/sutton,London Borough of Sutton,01/05/2018,6930065,688.8,Children of Colour,16870,Peoples Services Directorate,Approved Lodgings,H323,,
http://opendatacommunities.org/id/london-borough-council/sutton,London Borough of Sutton,01/03/2018,6930133,"3,558.80",Children of Colour,16870,Peoples Services Directorate,Approved Lodgings,H323,,
http://opendatacommunities.org/id/london-borough-council/sutton,London Borough of Sutton,03/04/2018,40189879,"2,898.00",Children of Colour,16870,Peoples Services Directorate,Foster Parents,G326,,
http://opendatacommunities.org/id/london-borough-council/sutton,London Borough of Sutton,03/04/2018,40189881,"3,444.00",Children of Colour,16870,Peoples Services Directorate,Foster Parents,G326,,
http://opendatacommunities.org/id/london-borough-council/sutton,London Borough of Sutton,03/04/2018,40189882,"3,276.00",Children of Colour,16870,Peoples Services Directorate,Foster Parents,G326,,
http://opendatacommunities.org/id/london-borough-council/sutton,London Borough of Sutton,23/04/2018,1254557,"12,948.94",Children's Trust,10927,Peoples Services Directorate,NMSS Payments,G061,,
http://opendatacommunities.org/id/london-borough-council/sutton,London Borough of Sutton,18/05/2018,40194278,"10,860.00",Choice Care Group (Surrey) Ltd,22029,Peoples Services Directorate,Residential Care - Ext Provider,G310,,
http://opendatacommunities.org/id/london-borough-council/sutton,London Borough of Sutton,18/05/2018,40194531,"7,682.20",Choice Care Group (Surrey) Ltd,22029,Peoples Services Directorate,Residential Care - Ext Provider,G310,,
http://opendatacommunities.org/id/london-borough-council/sutton,London Borough of Sutton,18/05/2018,40194573,"7,511.00",Choice Care Group (Surrey) Ltd,22029,Peoples Services Directorate,Residential Care - Ext Provider,G310,,
http://opendatacommunities.org/id/london-borough-council/sutton,London Borough of Sutton,01/04/2018,40196488,776.14,Choice Support,22320,Peoples Services Directorate,Supported Living - Ext Provider,G306,,
http://opendatacommunities.org/id/london-borough-council/sutton,London Borough of Sutton,01/04/2018,40196488,"5,000.06",Choice Support,22320,Peoples Services Directorate,Supported Living - Ext Provider,G306,,
http://opendatacommunities.org/id/london-borough-council/sutton,London Borough of Sutton,01/04/2018,40196489,776.14,Choice Support,22320,Peoples Services Directorate,Supported Living - Ext Provider,G306,,
http://opendatacommunities.org/id/london-borough-council/sutton,London Borough of Sutton,01/04/2018,40196489,"6,337.46",Choice Support,22320,Peoples Services Directorate,Supported Living - Ext Provider,G306,,
http://opendatacommunities.org/id/london-borough-council/sutton,London Borough of Sutton,01/04/2018,40196490,776.14,Choice Support,22320,Peoples Services Directorate,Supported Living - Ext Provider,G306,,
http://opendatacommunities.org/id/london-borough-council/sutton,London Borough of Sutton,01/04/2018,40196490,"5,117.96",Choice Support,22320,Peoples Services Directorate,Supported Living - Ext Provider,G306,,
http://opendatacommunities.org/id/london-borough-council/sutton,London Borough of Sutton,01/04/2018,40196491,776.14,Choice Support,22320,Peoples Services Directorate,Supported Living - Ext Provider,G306,,
http://opendatacommunities.org/id/london-borough-council/sutton,London Borough of Sutton,01/04/2018,40196491,"5,776.16",Choice Support,22320,Peoples Services Directorate,Supported Living - Ext Provider,G306,,
http://opendatacommunities.org/id/london-borough-council/sutton,London Borough of Sutton,01/04/2018,40196492,776.14,Choice Support,22320,Peoples Services Directorate,Supported Living - Ext Provider,G306,,
http://opendatacommunities.org/id/london-borough-council/sutton,London Borough of Sutton,01/04/2018,40196492,"4,584.26",Choice Support,22320,Peoples Services Directorate,Supported Living - Ext Provider,G306,,
http://opendatacommunities.org/id/london-borough-council/sutton,London Borough of Sutton,01/04/2018,40196493,776.14,Choice Support,22320,Peoples Services Directorate,Supported Living - Ext Provider,G306,,
http://opendatacommunities.org/id/london-borough-council/sutton,London Borough of Sutton,01/04/2018,40196493,"5,346.56",Choice Support,22320,Peoples Services Directorate,Supported Living - Ext Provider,G306,,
http://opendatacommunities.org/id/london-borough-council/sutton,London Borough of Sutton,01/04/2018,40196494,776.14,Choice Support,22320,Peoples Services Directorate,Supported Living - Ext Provider,G306,,
http://opendatacommunities.org/id/london-borough-council/sutton,London Borough of Sutton,01/04/2018,40196494,"5,006.96",Choice Support,22320,Peoples Services Directorate,Supported Living - Ext Provider,G306,,
http://opendatacommunities.org/id/london-borough-council/sutton,London Borough of Sutton,01/04/2018,40196495,776.14,Choice Support,22320,Peoples Services Directorate,Supported Living - Ext Provider,G306,,
http://opendatacommunities.org/id/london-borough-council/sutton,London Borough of Sutton,01/04/2018,40196495,"5,367.26",Choice Support,22320,Peoples Services Directorate,Supported Living - Ext Provider,G306,,
http://opendatacommunities.org/id/london-borough-council/sutton,London Borough of Sutton,01/04/2018,40196496,"2,587.68",Choice Support,22320,Peoples Services Directorate,Supported Living - Ext Provider,G306,,
http://opendatacommunities.org/id/london-borough-council/sutton,London Borough of Sutton,01/04/2018,40196496,554.4,Choice Support,22320,Peoples Services Directorate,Supported Living - Ext Provider,G306,,
http://opendatacommunities.org/id/london-borough-council/sutton,London Borough of Sutton,01/04/2018,40196496,"1,385.52",Choice Support,22320,Peoples Services Directorate,Supported Living - Ext Provider,G306,,
http://opendatacommunities.org/id/london-borough-council/sutton,London Borough of Sutton,01/04/2018,40196497,"1,559.28",Choice Support,22320,Peoples Services Directorate,Supported Living - Ext Provider,G306,,
http://opendatacommunities.org/id/london-borough-council/sutton,London Borough of Sutton,01/04/2018,40196497,554.4,Choice Support,22320,Peoples Services Directorate,Supported Living - Ext Provider,G306,,
http://opendatacommunities.org/id/london-borough-council/sutton,London Borough of Sutton,01/04/2018,40196497,"1,628.52",Choice Support,22320,Peoples Services Directorate,Supported Living - Ext Provider,G306,,
http://opendatacommunities.org/id/london-borough-council/sutton,London Borough of Sutton,01/04/2018,40196498,"2,148.30",Choice Support,22320,Peoples Services Directorate,Supported Living - Ext Provider,G306,,
http://opendatacommunities.org/id/london-borough-council/sutton,London Borough of Sutton,01/04/2018,40196498,554.4,Choice Support,22320,Peoples Services Directorate,Supported Living - Ext Provider,G306,,
http://opendatacommunities.org/id/london-borough-council/sutton,London Borough of Sutton,01/04/2018,40196498,"1,386.00",Choice Support,22320,Peoples Services Directorate,Supported Living - Ext Provider,G306,,
http://opendatacommunities.org/id/london-borough-council/sutton,London Borough of Sutton,01/04/2018,40196499,"1,517.52",Choice Support,22320,Peoples Services Directorate,Supported Living - Ext Provider,G306,,
http://opendatacommunities.org/id/london-borough-council/sutton,London Borough of Sutton,01/04/2018,40196499,554.4,Choice Support,22320,Peoples Services Directorate,Supported Living - Ext Provider,G306,,
http://opendatacommunities.org/id/london-borough-council/sutton,London Borough of Sutton,01/04/2018,40196499,"1,836.48",Choice Support,22320,Peoples Services Directorate,Supported Living - Ext Provider,G306,,
http://opendatacommunities.org/id/london-borough-council/sutton,London Borough of Sutton,01/04/2018,40196500,"1,261.24",Choice Support,22320,Peoples Services Directorate,Supported Living - Ext Provider,G306,,
http://opendatacommunities.org/id/london-borough-council/sutton,London Borough of Sutton,01/04/2018,40196500,554.4,Choice Support,22320,Peoples Services Directorate,Supported Living - Ext Provider,G306,,
http://opendatacommunities.org/id/london-borough-council/sutton,London Borough of Sutton,01/04/2018,40196500,"1,704.86",Choice Support,22320,Peoples Services Directorate,Supported Living - Ext Provider,G306,,
http://opendatacommunities.org/id/london-borough-council/sutton,London Borough of Sutton,01/04/2018,40196503,"3,292.46",Choice Support,22320,Peoples Services Directorate,Supported Living - Ext Provider,G306,,
http://opendatacommunities.org/id/london-borough-council/sutton,London Borough of Sutton,01/04/2018,40196503,554.4,Choice Support,22320,Peoples Services Directorate,Supported Living - Ext Provider,G306,,
http://opendatacommunities.org/id/london-borough-council/sutton,London Borough of Sutton,01/04/2018,40196503,"2,882.44",Choice Support,22320,Peoples Services Directorate,Supported Living - Ext Provider,G306,,
http://opendatacommunities.org/id/london-borough-council/sutton,London Borough of Sutton,01/04/2018,40196504,554.4,Choice Support,22320,Peoples Services Directorate,Supported Living - Ext Provider,G306,,
http://opendatacommunities.org/id/london-borough-council/sutton,London Borough of Sutton,01/04/2018,40196504,"3,963.90",Choice Support,22320,Peoples Services Directorate,Supported Living - Ext Provider,G306,,
http://opendatacommunities.org/id/london-borough-council/sutton,London Borough of Sutton,02/05/2018,1254142,600,Christchurch Fledgelings Pre-School,10896,Peoples Services Directorate,Non-Maintained Childrens' Nurseries - 3 & 4 yr olds,G405,,
http://opendatacommunities.org/id/london-borough-council/sutton,London Borough of Sutton,21/05/2018,6931533,"63,137.52",Chroma Vision Limited,20351,Resources Directorate,Equipment -General,Y520,,
http://opendatacommunities.org/id/london-borough-council/sutton,London Borough of Sutton,26/04/2018,6930395,"4,497.67",City of London Corporation,22388,"Environment, Housing & Regeneration Directorate",Asbestos CA Disposal,G173,,
http://opendatacommunities.org/id/london-borough-council/sutton,London Borough of Sutton,30/04/2018,6930154,"3,040.00",City Sprint UK (Excel) Ltd,26267,Chief Executive's Directorate,Hired Vehicles,E070,,
http://opendatacommunities.org/id/london-borough-council/sutton,London Borough of Sutton,20/03/2018,6927778,"4,990.00",City Suburban Tree Surgeons,24817,"Environment, Housing & Regeneration Directorate",Nature Conservation,G014,,
http://opendatacommunities.org/id/london-borough-council/sutton,London Borough of Sutton,01/04/2018,6930206,"12,105.00",Cityglen Ltd T/A Hytyme ltd,24115,"Environment, Housing & Regeneration Directorate",Bed and Breakfast Accommodation,G400,,
http://opendatacommunities.org/id/london-borough-council/sutton,London Borough of Sutton,30/04/2018,6930139,"2,050.00",Civica UK Ltd,10978,Resources Directorate,IT Licences,F385,,
http://opendatacommunities.org/id/london-borough-council/sutton,London Borough of Sutton,30/04/2018,6930179,"13,562.00",Civica UK Ltd,10978,Resources Directorate,Purchase of Software,F381,,
http://opendatacommunities.org/id/london-borough-council/sutton,London Borough of Sutton,30/04/2018,6930179,"13,562.00",Civica UK Ltd,10978,Resources Directorate,Purchase of Software,F381,,
http://opendatacommunities.org/id/london-borough-council/sutton,London Borough of Sutton,08/05/2018,6930422,"1,976.00",Civica UK Ltd,10978,Resources Directorate,Purchase of Software,F381,,
http://opendatacommunities.org/id/london-borough-council/sutton,London Borough of Sutton,23/03/2018,6930763,"3,735.00",Civica UK Ltd,10978,"Environment, Housing & Regeneration Directorate",Purchase of Software,F381,,
http://opendatacommunities.org/id/london-borough-council/sutton,London Borough of Sutton,22/05/2018,6931340,"26,778.25",Civica UK Ltd,10978,"Environment, Housing & Regeneration Directorate",Purchase of Software,F381,,
http://opendatacommunities.org/id/london-borough-council/sutton,London Borough of Sutton,18/05/2018,40194291,"3,200.00",Claremont Care Svs Ltd,18724,Peoples Services Directorate,Interim Placements - Ext Provider,G317,,
http://opendatacommunities.org/id/london-borough-council/sutton,London Borough of Sutton,18/05/2018,40194405,"2,805.00",Claremont Care Svs Ltd,18724,Peoples Services Directorate,Nursing Care - Ext Provider,G311,,
http://opendatacommunities.org/id/london-borough-council/sutton,London Borough of Sutton,18/05/2018,40194406,"4,000.00",Claremont Care Svs Ltd,18724,Peoples Services Directorate,Nursing Care - Ext Provider,G311,,
http://opendatacommunities.org/id/london-borough-council/sutton,London Borough of Sutton,18/05/2018,40194505,"4,025.00",Claremont Care Svs Ltd,18724,Peoples Services Directorate,Nursing Care - Ext Provider,G311,,
http://opendatacommunities.org/id/london-borough-council/sutton,London Borough of Sutton,18/05/2018,40194506,"4,200.00",Claremont Care Svs Ltd,18724,Peoples Services Directorate,Nursing Care - Ext Provider,G311,,
http://opendatacommunities.org/id/london-borough-council/sutton,London Borough of Sutton,03/05/2018,1254019,"2,124.92",Clarion Housing Association Ltd,32192,Peoples Services Directorate,Approved Lodgings,H323,,
http://opendatacommunities.org/id/london-borough-council/sutton,London Borough of Sutton,01/05/2018,6930129,"3,645.85",Click Netherfield Ltd,23314,"Environment, Housing & Regeneration Directorate",Furniture & Fittings,Y500,,
http://opendatacommunities.org/id/london-borough-council/sutton,London Borough of Sutton,03/05/2018,6930300,"10,300.00",Click Netherfield Ltd,23314,Chief Executive's Directorate,Repairs to Administrative Equipment,F030,,
http://opendatacommunities.org/id/london-borough-council/sutton,London Borough of Sutton,18/05/2018,40194389,"2,000.00",Cloyda Limited,20402,Peoples Services Directorate,Residential Care - Ext Provider,G310,,
http://opendatacommunities.org/id/london-borough-council/sutton,London Borough of Sutton,18/05/2018,40194425,"2,600.00",Cloyda Limited,20402,Peoples Services Directorate,Residential Care - Ext Provider,G310,,
http://opendatacommunities.org/id/london-borough-council/sutton,London Borough of Sutton,18/05/2018,40194333,"5,416.92",Cmg Homes Ltd,11026,Peoples Services Directorate,Residential Care - Ext Provider,G310,,
http://opendatacommunities.org/id/london-borough-council/sutton,London Borough of Sutton,18/05/2018,40194571,"7,036.00",Cmg Homes Ltd,11026,Peoples Services Directorate,Residential Care - Ext Provider,G310,,
http://opendatacommunities.org/id/london-borough-council/sutton,London Borough of Sutton,18/05/2018,40194645,"7,000.00",Cmg Homes Ltd,11026,Peoples Services Directorate,Residential Care - Ext Provider,G310,,
http://opendatacommunities.org/id/london-borough-council/sutton,London Borough of Sutton,24/05/2018,40196617,"3,162.00",Cmg Homes Ltd,11026,Peoples Services Directorate,Supported Living - Ext Provider,G306,,
http://opendatacommunities.org/id/london-borough-council/sutton,London Borough of Sutton,24/05/2018,40196623,"3,808.57",Cmg Homes Ltd,11026,Peoples Services Directorate,Supported Living - Ext Provider,G306,,
http://opendatacommunities.org/id/london-borough-council/sutton,London Borough of Sutton,24/05/2018,40196633,"4,592.43",Cmg Homes Ltd,11026,Peoples Services Directorate,Supported Living - Ext Provider,G306,,
http://opendatacommunities.org/id/london-borough-council/sutton,London Borough of Sutton,24/05/2018,40196646,"3,644.93",Cmg Homes Ltd,11026,Peoples Services Directorate,Supported Living - Ext Provider,G306,,
http://opendatacommunities.org/id/london-borough-council/sutton,London Borough of Sutton,30/04/2018,6930232,"2,485.45",Cobalt Telephone Technologies,15645,"Environment, Housing & Regeneration Directorate",Credit Card Commission,F460,,
http://opendatacommunities.org/id/london-borough-council/sutton,London Borough of Sutton,24/05/2018,40196641,"3,764.28",Cognithan Ltd,29938,Peoples Services Directorate,Supported Living - Ext Provider,G306,,
http://opendatacommunities.org/id/london-borough-council/sutton,London Borough of Sutton,21/03/2018,1254122,"15,249.02",Coleg Elidyr Camphill Communities,28764,Peoples Services Directorate,Independent Schools,G325,,
http://opendatacommunities.org/id/london-borough-council/sutton,London Borough of Sutton,18/05/2018,40194492,"5,780.68",Coleg Elidyr Camphill Communities,28764,Peoples Services Directorate,Interim Placements - Ext Provider,G317,,
http://opendatacommunities.org/id/london-borough-council/sutton,London Borough of Sutton,04/05/2018,40190806,476,Community Home Care Provider,11097,Peoples Services Directorate,Home Care,G334,,
http://opendatacommunities.org/id/london-borough-council/sutton,London Borough of Sutton,04/05/2018,40190811,708.75,Community Home Care Provider,11097,Peoples Services Directorate,Home Care,G334,,
http://opendatacommunities.org/id/london-borough-council/sutton,London Borough of Sutton,04/05/2018,40191718,472.5,Community Home Care Provider,11097,Peoples Services Directorate,Home Care,G334,,
http://opendatacommunities.org/id/london-borough-council/sutton,London Borough of Sutton,10/05/2018,40195515,476,Community Home Care Provider,11097,Peoples Services Directorate,Home Care,G334,,
http://opendatacommunities.org/id/london-borough-council/sutton,London Borough of Sutton,10/05/2018,40195520,708.75,Community Home Care Provider,11097,Peoples Services Directorate,Home Care,G334,,
http://opendatacommunities.org/id/london-borough-council/sutton,London Borough of Sutton,10/05/2018,40195525,472.5,Community Home Care Provider,11097,Peoples Services Directorate,Home Care,G334,,
http://opendatacommunities.org/id/london-borough-council/sutton,London Borough of Sutton,01/04/2018,40189880,"3,557.10",Compass Fostering London Ltd,25848,Peoples Services Directorate,Foster Parents,G326,,
http://opendatacommunities.org/id/london-borough-council/sutton,London Borough of Sutton,01/04/2018,40189889,"3,342.60",Compass Fostering London Ltd,25848,Peoples Services Directorate,Foster Parents,G326,,
http://opendatacommunities.org/id/london-borough-council/sutton,London Borough of Sutton,01/04/2018,40189890,"3,069.90",Compass Fostering London Ltd,25848,Peoples Services Directorate,Foster Parents,G326,,
http://opendatacommunities.org/id/london-borough-council/sutton,London Borough of Sutton,01/04/2018,40189962,"3,145.50",Compass Fostering South East Limited,32193,Peoples Services Directorate,Foster Parents,G326,,
http://opendatacommunities.org/id/london-borough-council/sutton,London Borough of Sutton,01/04/2018,40189963,"3,145.50",Compass Fostering South East Limited,32193,Peoples Services Directorate,Foster Parents,G326,,
http://opendatacommunities.org/id/london-borough-council/sutton,London Borough of Sutton,01/04/2018,40189894,"3,342.60",Compass Fostering South Ltd,27957,Peoples Services Directorate,Foster Parents,G326,,
http://opendatacommunities.org/id/london-borough-council/sutton,London Borough of Sutton,30/04/2018,6930187,"5,337.50",Conservation By Design Ltd,16409,"Environment, Housing & Regeneration Directorate",Equipment -General,Y520,,
http://opendatacommunities.org/id/london-borough-council/sutton,London Borough of Sutton,08/05/2018,6930580,"1,255.00",Consult54 Ltd,26814,"Environment, Housing & Regeneration Directorate",Fees - Consultants (Ad Hoc),F283,,
http://opendatacommunities.org/id/london-borough-council/sutton,London Borough of Sutton,10/05/2018,6930807,"1,194.52",Contract Security Services,23827,Chief Executive's Directorate,General Office Expenses,F235,,
http://opendatacommunities.org/id/london-borough-council/sutton,London Borough of Sutton,02/05/2018,1254143,"1,200.00",Co-operative Childcare,24665,Peoples Services Directorate,Non-Maintained Childrens' Nurseries - 3 & 4 yr olds,G405,,
http://opendatacommunities.org/id/london-borough-council/sutton,London Borough of Sutton,28/04/2018,6930301,"2,845.00",Core Assets Children's Services Ltd,27511,Peoples Services Directorate,Provider Contract Payments,F470,,
http://opendatacommunities.org/id/london-borough-council/sutton,London Borough of Sutton,31/10/2017,6930999,700,Core Assets Expert Services LTD T/A Carter Brown,29709,Peoples Services Directorate,Training - Course Fees,A520,,
http://opendatacommunities.org/id/london-borough-council/sutton,London Borough of Sutton,26/03/2018,40189859,"13,285.80",Cornerways Childrens Services Ltd,18435,Peoples Services Directorate,Residential Care-Children,G330,,
http://opendatacommunities.org/id/london-borough-council/sutton,London Borough of Sutton,01/05/2018,6930120,"166,565.17",Cranstoun,11184,Chief Executive's Directorate,Provider Contract Payments,F470,,
http://opendatacommunities.org/id/london-borough-council/sutton,London Borough of Sutton,01/04/2018,6930145,"166,565.17",Cranstoun,11184,Chief Executive's Directorate,Provider Contract Payments,F470,,
http://opendatacommunities.org/id/london-borough-council/sutton,London Borough of Sutton,16/04/2018,6930092,"1,695.00",Crest Manor Ltd,25469,Peoples Services Directorate,Approved Lodgings,H323,,
http://opendatacommunities.org/id/london-borough-council/sutton,London Borough of Sutton,16/04/2018,6930134,"1,860.00",Crest Manor Ltd,25469,Peoples Services Directorate,C.C.A Rent & Utilities,H211,,
http://opendatacommunities.org/id/london-borough-council/sutton,London Borough of Sutton,16/04/2018,6930135,"1,995.00",Crest Manor Ltd,25469,Peoples Services Directorate,Approved Lodgings,H323,,
http://opendatacommunities.org/id/london-borough-council/sutton,London Borough of Sutton,16/04/2018,6930136,"2,310.00",Crest Manor Ltd,25469,Peoples Services Directorate,Approved Lodgings,H323,,
http://opendatacommunities.org/id/london-borough-council/sutton,London Borough of Sutton,16/04/2018,6930137,"1,695.00",Crest Manor Ltd,25469,Peoples Services Directorate,Approved Lodgings,H323,,
http://opendatacommunities.org/id/london-borough-council/sutton,London Borough of Sutton,16/04/2018,6930350,975,Crest Manor Ltd,25469,Peoples Services Directorate,Approved Lodgings,H323,,
http://opendatacommunities.org/id/london-borough-council/sutton,London Borough of Sutton,08/05/2018,1255159,650,Cricket Green School,24359,Peoples Services Directorate,Special Educational Needs,G331,,
http://opendatacommunities.org/id/london-borough-council/sutton,London Borough of Sutton,08/05/2018,1255160,"1,300.00",Cricket Green School,24359,Peoples Services Directorate,Special Educational Needs,G331,,
http://opendatacommunities.org/id/london-borough-council/sutton,London Borough of Sutton,08/05/2018,1255161,650,Cricket Green School,24359,Peoples Services Directorate,Special Educational Needs,G331,,
http://opendatacommunities.org/id/london-borough-council/sutton,London Borough of Sutton,18/05/2018,40194263,"3,799.04",CRNH Ltd T/A St Judes Nursing Home,14297,Peoples Services Directorate,Nursing Care - Ext Provider,G311,,
http://opendatacommunities.org/id/london-borough-council/sutton,London Borough of Sutton,18/05/2018,40194390,"7,164.29",CRNH Ltd T/A St Judes Nursing Home,14297,Peoples Services Directorate,Nursing Care - Short Term Placements,G328,,
http://opendatacommunities.org/id/london-borough-council/sutton,London Borough of Sutton,18/05/2018,40194457,"3,984.00",CRNH Ltd T/A St Judes Nursing Home,14297,Peoples Services Directorate,Nursing Care - Ext Provider,G311,,
http://opendatacommunities.org/id/london-borough-council/sutton,London Borough of Sutton,18/05/2018,40194458,"3,700.00",CRNH Ltd T/A St Judes Nursing Home,14297,Peoples Services Directorate,Nursing Care - Ext Provider,G311,,
http://opendatacommunities.org/id/london-borough-council/sutton,London Borough of Sutton,18/05/2018,40194661,"3,400.00",CRNH Ltd T/A St Judes Nursing Home,14297,Peoples Services Directorate,Nursing Care - Ext Provider,G311,,
http://opendatacommunities.org/id/london-borough-council/sutton,London Borough of Sutton,09/04/2018,40189898,"3,105.90",Croham Services for Children Limited,20855,Peoples Services Directorate,Foster Parents,G326,,
http://opendatacommunities.org/id/london-borough-council/sutton,London Borough of Sutton,09/04/2018,40189901,"3,105.90",Croham Services for Children Limited,20855,Peoples Services Directorate,Foster Parents,G326,,
http://opendatacommunities.org/id/london-borough-council/sutton,London Borough of Sutton,09/04/2018,40189902,"3,105.90",Croham Services for Children Limited,20855,Peoples Services Directorate,Foster Parents,G326,,
http://opendatacommunities.org/id/london-borough-council/sutton,London Borough of Sutton,09/04/2018,40189959,"3,105.90",Croham Services for Children Limited,20855,Peoples Services Directorate,Foster Parents,G326,,
http://opendatacommunities.org/id/london-borough-council/sutton,London Borough of Sutton,09/04/2018,40189960,"3,105.90",Croham Services for Children Limited,20855,Peoples Services Directorate,Foster Parents,G326,,
http://opendatacommunities.org/id/london-borough-council/sutton,London Borough of Sutton,09/04/2018,40189961,"3,105.90",Croham Services for Children Limited,20855,Peoples Services Directorate,Foster Parents,G326,,
http://opendatacommunities.org/id/london-borough-council/sutton,London Borough of Sutton,18/05/2018,40194265,"2,288.83",Crossways Community,11187,Peoples Services Directorate,Residential Care - Ext Provider,G310,,
http://opendatacommunities.org/id/london-borough-council/sutton,London Borough of Sutton,18/05/2018,40194320,"4,168.24",Crossways Community,11187,Peoples Services Directorate,Residential Care - Ext Provider,G310,,
http://opendatacommunities.org/id/london-borough-council/sutton,London Borough of Sutton,29/03/2018,6928415,"232,225.69",Croydon Council,11227,"Environment, Housing & Regeneration Directorate",Idverde - Contract Payment,G250,,
http://opendatacommunities.org/id/london-borough-council/sutton,London Borough of Sutton,30/04/2018,6929991,"33,673.15",Croydon Council,11227,"Environment, Housing & Regeneration Directorate",Civic Amenity,G172,,
http://opendatacommunities.org/id/london-borough-council/sutton,London Borough of Sutton,06/04/2018,6931317,"16,653.94",Croydon Council,11227,"Environment, Housing & Regeneration Directorate",Idverde - Contract Payment,G250,,
http://opendatacommunities.org/id/london-borough-council/sutton,London Borough of Sutton,23/03/2018,6930423,"10,795.25",Croydon Health Service NHST,26283,Chief Executive's Directorate,Provider Contract Payments,F470,,
http://opendatacommunities.org/id/london-borough-council/sutton,London Borough of Sutton,30/04/2018,1254569,"1,510.00",Cruisers Ltd,18087,Peoples Services Directorate,Hired Peoples Transport (Children),E072,,
http://opendatacommunities.org/id/london-borough-council/sutton,London Borough of Sutton,30/04/2018,1254570,"1,815.00",Cruisers Ltd,18087,Peoples Services Directorate,Hired Peoples Transport (Children),E072,,
http://opendatacommunities.org/id/london-borough-council/sutton,London Borough of Sutton,18/05/2018,40194292,"3,330.40",CSS Ltd t/a Grove Care,19184,Peoples Services Directorate,Interim Placements - Ext Provider,G317,,
http://opendatacommunities.org/id/london-borough-council/sutton,London Borough of Sutton,18/05/2018,40194471,"6,196.00",CSS Ltd t/a Grove Care,19184,Peoples Services Directorate,Residential Care - Ext Provider,G310,,
http://opendatacommunities.org/id/london-borough-council/sutton,London Borough of Sutton,16/05/2018,6931018,"4,702.81",Curl La Tourelle Architects,18610,Resources Directorate,External Fees  - Architects,Y100,,
http://opendatacommunities.org/id/london-borough-council/sutton,London Borough of Sutton,31/03/2018,6930361,"1,116.00",Cyberstyle Letting Limited,29264,"Environment, Housing & Regeneration Directorate",Bed and Breakfast Accommodation,G400,,
http://opendatacommunities.org/id/london-borough-council/sutton,London Borough of Sutton,31/03/2018,6930362,"1,116.00",Cyberstyle Letting Limited,29264,"Environment, Housing & Regeneration Directorate",Bed and Breakfast Accommodation,G400,,
http://opendatacommunities.org/id/london-borough-council/sutton,London Borough of Sutton,31/03/2018,6930363,720,Cyberstyle Letting Limited,29264,"Environment, Housing & Regeneration Directorate",Bed and Breakfast Accommodation,G400,,
http://opendatacommunities.org/id/london-borough-council/sutton,London Borough of Sutton,31/03/2018,6930364,"1,658.50",Cyberstyle Letting Limited,29264,"Environment, Housing & Regeneration Directorate",Bed and Breakfast Accommodation,G400,,
http://opendatacommunities.org/id/london-borough-council/sutton,London Borough of Sutton,31/03/2018,6930365,"2,077.00",Cyberstyle Letting Limited,29264,"Environment, Housing & Regeneration Directorate",Bed and Breakfast Accommodation,G400,,
http://opendatacommunities.org/id/london-borough-council/sutton,London Borough of Sutton,31/03/2018,6930366,"2,077.00",Cyberstyle Letting Limited,29264,"Environment, Housing & Regeneration Directorate",Bed and Breakfast Accommodation,G400,,
http://opendatacommunities.org/id/london-borough-council/sutton,London Borough of Sutton,30/04/2018,6931103,588.5,Cyberstyle Letting Limited,29264,"Environment, Housing & Regeneration Directorate",Bed and Breakfast Accommodation,G400,,
http://opendatacommunities.org/id/london-borough-council/sutton,London Borough of Sutton,30/04/2018,6931104,"1,139.00",Cyberstyle Letting Limited,29264,"Environment, Housing & Regeneration Directorate",Bed and Breakfast Accommodation,G400,,
http://opendatacommunities.org/id/london-borough-council/sutton,London Borough of Sutton,30/04/2018,6931105,"2,010.00",Cyberstyle Letting Limited,29264,"Environment, Housing & Regeneration Directorate",Bed and Breakfast Accommodation,G400,,
http://opendatacommunities.org/id/london-borough-council/sutton,London Borough of Sutton,30/04/2018,6931106,"1,080.00",Cyberstyle Letting Limited,29264,"Environment, Housing & Regeneration Directorate",Bed and Breakfast Accommodation,G400,,
http://opendatacommunities.org/id/london-borough-council/sutton,London Borough of Sutton,30/04/2018,6931107,"1,080.00",Cyberstyle Letting Limited,29264,"Environment, Housing & Regeneration Directorate",Bed and Breakfast Accommodation,G400,,
http://opendatacommunities.org/id/london-borough-council/sutton,London Borough of Sutton,11/05/2018,6930633,"1,850.00",Cygnet IT Services CIC,25840,Peoples Services Directorate,Desktop Support - Acquisitions,F383,,
http://opendatacommunities.org/id/london-borough-council/sutton,London Borough of Sutton,01/05/2018,6930556,746,D Karapinar,26474,"Environment, Housing & Regeneration Directorate",Bed and Breakfast Accommodation,G400,,
http://opendatacommunities.org/id/london-borough-council/sutton,London Borough of Sutton,03/05/2018,1254299,495,Dale and Collins Estate Agents Ltd,32169,Peoples Services Directorate,Education Allowance,H321,,
http://opendatacommunities.org/id/london-borough-council/sutton,London Borough of Sutton,24/05/2018,1255313,495,Dale and Collins Estate Agents Ltd,32169,Peoples Services Directorate,Approved Lodgings,H323,,
http://opendatacommunities.org/id/london-borough-council/sutton,London Borough of Sutton,17/04/2018,40189829,"3,273.67",Daley Bread Ltd T/A Daley Care,28917,Peoples Services Directorate,Accommodation - Supported Living,H201,,
http://opendatacommunities.org/id/london-borough-council/sutton,London Borough of Sutton,17/04/2018,40189834,"4,463.38",Daley Bread Ltd T/A Daley Care,28917,Peoples Services Directorate,Approved Lodgings,H323,,
http://opendatacommunities.org/id/london-borough-council/sutton,London Borough of Sutton,15/05/2018,40194913,"3,000.00",Daley Bread Ltd T/A Daley Care,28917,Peoples Services Directorate,Accommodation - Supported Living,H201,,
http://opendatacommunities.org/id/london-borough-council/sutton,London Borough of Sutton,14/05/2018,40194917,"2,838.25",Daley Bread Ltd T/A Daley Care,28917,Peoples Services Directorate,Approved Lodgings,H323,,
http://opendatacommunities.org/id/london-borough-council/sutton,London Borough of Sutton,16/05/2018,6931398,732.56,Dauphin Acrylic Design Ltd,33246,Chief Executive's Directorate,Nature Conservation,G014,,
http://opendatacommunities.org/id/london-borough-council/sutton,London Borough of Sutton,21/05/2018,6931268,"1,209.00",David V.  Randall,29122,"Environment, Housing & Regeneration Directorate",Bed and Breakfast Accommodation,G400,,
http://opendatacommunities.org/id/london-borough-council/sutton,London Borough of Sutton,16/04/2018,6931423,"1,209.00",David V.  Randall,29122,"Environment, Housing & Regeneration Directorate",Bed and Breakfast Accommodation,G400,,
http://opendatacommunities.org/id/london-borough-council/sutton,London Borough of Sutton,30/04/2018,40189155,590,Day and Nite Services,26773,Peoples Services Directorate,Home Care,G334,,
http://opendatacommunities.org/id/london-borough-council/sutton,London Borough of Sutton,30/04/2018,40189157,492,Day and Nite Services,26773,Peoples Services Directorate,Home Care,G334,,
http://opendatacommunities.org/id/london-borough-council/sutton,London Borough of Sutton,30/04/2018,40189159,492,Day and Nite Services,26773,Peoples Services Directorate,Home Care,G334,,
http://opendatacommunities.org/id/london-borough-council/sutton,London Borough of Sutton,08/05/2018,40195528,492,Day and Nite Services,26773,Peoples Services Directorate,Home Care,G334,,
http://opendatacommunities.org/id/london-borough-council/sutton,London Borough of Sutton,08/05/2018,40195529,590,Day and Nite Services,26773,Peoples Services Directorate,Home Care,G334,,
http://opendatacommunities.org/id/london-borough-council/sutton,London Borough of Sutton,08/05/2018,40195532,492,Day and Nite Services,26773,Peoples Services Directorate,Home Care,G334,,
http://opendatacommunities.org/id/london-borough-council/sutton,London Borough of Sutton,08/05/2018,40195537,464,Day and Nite Services,26773,Peoples Services Directorate,Home Care,G334,,
http://opendatacommunities.org/id/london-borough-council/sutton,London Borough of Sutton,14/05/2018,40195549,736,Day and Nite Services,26773,Peoples Services Directorate,Home Care,G334,,
http://opendatacommunities.org/id/london-borough-council/sutton,London Borough of Sutton,14/05/2018,40195567,672,Day and Nite Services,26773,Peoples Services Directorate,Home Care,G334,,
http://opendatacommunities.org/id/london-borough-council/sutton,London Borough of Sutton,14/05/2018,40195569,560,Day and Nite Services,26773,Peoples Services Directorate,Home Care,G334,,
http://opendatacommunities.org/id/london-borough-council/sutton,London Borough of Sutton,14/05/2018,40195600,528,Day and Nite Services,26773,Peoples Services Directorate,Home Care,G334,,
http://opendatacommunities.org/id/london-borough-council/sutton,London Borough of Sutton,21/05/2018,40197067,492,Day and Nite Services,26773,Peoples Services Directorate,Home Care,G334,,
http://opendatacommunities.org/id/london-borough-council/sutton,London Borough of Sutton,21/05/2018,40197130,508,Day and Nite Services,26773,Peoples Services Directorate,Home Care,G334,,
http://opendatacommunities.org/id/london-borough-council/sutton,London Borough of Sutton,21/05/2018,40197131,590,Day and Nite Services,26773,Peoples Services Directorate,Home Care,G334,,
http://opendatacommunities.org/id/london-borough-council/sutton,London Borough of Sutton,21/05/2018,40197138,464,Day and Nite Services,26773,Peoples Services Directorate,Home Care,G334,,
http://opendatacommunities.org/id/london-borough-council/sutton,London Borough of Sutton,30/04/2018,6930498,614.28,Deepstore Ltd,21074,Resources Directorate,Offsite Storage,F231,,
http://opendatacommunities.org/id/london-borough-council/sutton,London Borough of Sutton,30/04/2018,6930499,477.81,Deepstore Ltd,21074,Resources Directorate,Offsite Storage,F231,,
http://opendatacommunities.org/id/london-borough-council/sutton,London Borough of Sutton,30/04/2018,6930130,"1,065.00",Demco Europe Ltd,15812,Chief Executive's Directorate,Materials - General,F100,,
http://opendatacommunities.org/id/london-borough-council/sutton,London Borough of Sutton,30/04/2018,6930131,"1,560.00",Demco Europe Ltd,15812,"Environment, Housing & Regeneration Directorate",Furniture & Fittings,Y500,,
http://opendatacommunities.org/id/london-borough-council/sutton,London Borough of Sutton,30/04/2018,6930105,751,Democracy Counts Ltd,30131,Resources Directorate,Fees - Computer Software,F384,,
http://opendatacommunities.org/id/london-borough-council/sutton,London Borough of Sutton,14/03/2018,6931024,"1,596.00",Denhan Property Services,28353,"Environment, Housing & Regeneration Directorate",Bed and Breakfast Accommodation,G400,,
http://opendatacommunities.org/id/london-borough-council/sutton,London Borough of Sutton,23/03/2018,6931025,"1,054.00",Denhan Property Services,28353,"Environment, Housing & Regeneration Directorate",Bed and Breakfast Accommodation,G400,,
http://opendatacommunities.org/id/london-borough-council/sutton,London Borough of Sutton,23/03/2018,6931026,"1,767.00",Denhan Property Services,28353,"Environment, Housing & Regeneration Directorate",Bed and Breakfast Accommodation,G400,,
http://opendatacommunities.org/id/london-borough-council/sutton,London Borough of Sutton,23/03/2018,6931027,"1,085.00",Denhan Property Services,28353,"Environment, Housing & Regeneration Directorate",Bed and Breakfast Accommodation,G400,,
http://opendatacommunities.org/id/london-borough-council/sutton,London Borough of Sutton,23/03/2018,6931028,"1,410.50",Denhan Property Services,28353,"Environment, Housing & Regeneration Directorate",Bed and Breakfast Accommodation,G400,,
http://opendatacommunities.org/id/london-borough-council/sutton,London Borough of Sutton,23/03/2018,6931029,"1,178.00",Denhan Property Services,28353,"Environment, Housing & Regeneration Directorate",Bed and Breakfast Accommodation,G400,,
http://opendatacommunities.org/id/london-borough-council/sutton,London Borough of Sutton,23/03/2018,6931030,"1,271.00",Denhan Property Services,28353,"Environment, Housing & Regeneration Directorate",Bed and Breakfast Accommodation,G400,,
http://opendatacommunities.org/id/london-borough-council/sutton,London Borough of Sutton,23/03/2018,6931031,"1,943.70",Denhan Property Services,28353,"Environment, Housing & Regeneration Directorate",Bed and Breakfast Accommodation,G400,,
http://opendatacommunities.org/id/london-borough-council/sutton,London Borough of Sutton,23/03/2018,6931032,"1,302.00",Denhan Property Services,28353,"Environment, Housing & Regeneration Directorate",Bed and Breakfast Accommodation,G400,,
http://opendatacommunities.org/id/london-borough-council/sutton,London Borough of Sutton,23/03/2018,6931033,"1,171.80",Denhan Property Services,28353,"Environment, Housing & Regeneration Directorate",Bed and Breakfast Accommodation,G400,,
http://opendatacommunities.org/id/london-borough-council/sutton,London Borough of Sutton,23/03/2018,6931034,700.7,Denhan Property Services,28353,"Environment, Housing & Regeneration Directorate",Bed and Breakfast Accommodation,G400,,
http://opendatacommunities.org/id/london-borough-council/sutton,London Borough of Sutton,23/03/2018,6931035,"1,236.90",Denhan Property Services,28353,"Environment, Housing & Regeneration Directorate",Bed and Breakfast Accommodation,G400,,
http://opendatacommunities.org/id/london-borough-council/sutton,London Borough of Sutton,23/03/2018,6931036,"1,441.50",Denhan Property Services,28353,"Environment, Housing & Regeneration Directorate",Bed and Breakfast Accommodation,G400,,
http://opendatacommunities.org/id/london-borough-council/sutton,London Borough of Sutton,22/04/2018,6931612,"1,300.00",D'Gama Ltd,26438,"Environment, Housing & Regeneration Directorate",General Office Expenses,F235,,
http://opendatacommunities.org/id/london-borough-council/sutton,London Borough of Sutton,06/04/2018,40189179,"2,664.48",Direct Care And Support Services,23268,Peoples Services Directorate,Supported Living - Ext Provider,G306,,
http://opendatacommunities.org/id/london-borough-council/sutton,London Borough of Sutton,06/04/2018,40189180,"3,697.12",Direct Care And Support Services,23268,Peoples Services Directorate,Supported Living - Ext Provider,G306,,
http://opendatacommunities.org/id/london-borough-council/sutton,London Borough of Sutton,06/04/2018,40189181,"2,396.00",Direct Care And Support Services,23268,Peoples Services Directorate,Supported Living - Ext Provider,G306,,
http://opendatacommunities.org/id/london-borough-council/sutton,London Borough of Sutton,06/04/2018,40189182,"4,062.24",Direct Care And Support Services,23268,Peoples Services Directorate,Supported Living - Ext Provider,G306,,
http://opendatacommunities.org/id/london-borough-council/sutton,London Borough of Sutton,06/04/2018,40189183,"3,496.00",Direct Care And Support Services,23268,Peoples Services Directorate,Supported Living - Ext Provider,G306,,
http://opendatacommunities.org/id/london-borough-council/sutton,London Borough of Sutton,06/04/2018,40189184,"2,232.44",Direct Care And Support Services,23268,Peoples Services Directorate,Supported Living - Ext Provider,G306,,
http://opendatacommunities.org/id/london-borough-council/sutton,London Borough of Sutton,06/04/2018,40189185,"2,204.16",Direct Care And Support Services,23268,Peoples Services Directorate,Supported Living - Ext Provider,G306,,
http://opendatacommunities.org/id/london-borough-council/sutton,London Borough of Sutton,06/04/2018,40189186,"2,261.84",Direct Care And Support Services,23268,Peoples Services Directorate,Supported Living - Ext Provider,G306,,
http://opendatacommunities.org/id/london-borough-council/sutton,London Borough of Sutton,06/04/2018,40189187,"2,256.24",Direct Care And Support Services,23268,Peoples Services Directorate,Supported Living - Ext Provider,G306,,
http://opendatacommunities.org/id/london-borough-council/sutton,London Borough of Sutton,04/05/2018,40189201,"2,664.48",Direct Care And Support Services,23268,Peoples Services Directorate,Supported Living - Ext Provider,G306,,
http://opendatacommunities.org/id/london-borough-council/sutton,London Borough of Sutton,04/05/2018,40189202,"2,396.00",Direct Care And Support Services,23268,Peoples Services Directorate,Supported Living - Ext Provider,G306,,
http://opendatacommunities.org/id/london-borough-council/sutton,London Borough of Sutton,04/05/2018,40189203,"3,496.00",Direct Care And Support Services,23268,Peoples Services Directorate,Supported Living - Ext Provider,G306,,
http://opendatacommunities.org/id/london-borough-council/sutton,London Borough of Sutton,04/05/2018,40189204,"2,256.24",Direct Care And Support Services,23268,Peoples Services Directorate,Supported Living - Ext Provider,G306,,
http://opendatacommunities.org/id/london-borough-council/sutton,London Borough of Sutton,04/05/2018,40189205,"2,232.44",Direct Care And Support Services,23268,Peoples Services Directorate,Supported Living - Ext Provider,G306,,
http://opendatacommunities.org/id/london-borough-council/sutton,London Borough of Sutton,04/05/2018,40189206,"2,204.16",Direct Care And Support Services,23268,Peoples Services Directorate,Supported Living - Ext Provider,G306,,
http://opendatacommunities.org/id/london-borough-council/sutton,London Borough of Sutton,04/05/2018,40189207,"2,261.84",Direct Care And Support Services,23268,Peoples Services Directorate,Supported Living - Ext Provider,G306,,
http://opendatacommunities.org/id/london-borough-council/sutton,London Borough of Sutton,04/05/2018,40189208,"7,655.20",Direct Care And Support Services,23268,Peoples Services Directorate,Supported Living - Ext Provider,G306,,
http://opendatacommunities.org/id/london-borough-council/sutton,London Borough of Sutton,04/05/2018,40189209,"3,697.12",Direct Care And Support Services,23268,Peoples Services Directorate,Supported Living - Ext Provider,G306,,
http://opendatacommunities.org/id/london-borough-council/sutton,London Borough of Sutton,04/05/2018,40189210,"4,062.24",Direct Care And Support Services,23268,Peoples Services Directorate,Supported Living - Ext Provider,G306,,
http://opendatacommunities.org/id/london-borough-council/sutton,London Borough of Sutton,06/04/2018,40189419,"3,132.80",Direct Care And Support Services,23268,Peoples Services Directorate,Supported Living - Ext Provider,G306,,
http://opendatacommunities.org/id/london-borough-council/sutton,London Borough of Sutton,06/04/2018,40189420,"2,116.80",Direct Care And Support Services,23268,Peoples Services Directorate,Supported Living - Ext Provider,G306,,
http://opendatacommunities.org/id/london-borough-council/sutton,London Borough of Sutton,06/04/2018,40189421,"2,128.28",Direct Care And Support Services,23268,Peoples Services Directorate,Supported Living - Ext Provider,G306,,
http://opendatacommunities.org/id/london-borough-council/sutton,London Borough of Sutton,04/05/2018,40189430,"3,132.80",Direct Care And Support Services,23268,Peoples Services Directorate,Supported Living - Ext Provider,G306,,
http://opendatacommunities.org/id/london-borough-council/sutton,London Borough of Sutton,04/05/2018,40189431,"2,116.80",Direct Care And Support Services,23268,Peoples Services Directorate,Supported Living - Ext Provider,G306,,
http://opendatacommunities.org/id/london-borough-council/sutton,London Borough of Sutton,04/05/2018,40189432,"2,128.28",Direct Care And Support Services,23268,Peoples Services Directorate,Supported Living - Ext Provider,G306,,
http://opendatacommunities.org/id/london-borough-council/sutton,London Borough of Sutton,31/03/2018,40189845,"5,000.00",Direct Care Ltd,28832,Peoples Services Directorate,Residential Care-Children,G330,,
http://opendatacommunities.org/id/london-borough-council/sutton,London Borough of Sutton,20/04/2018,40189903,"17,100.00",Direct Care Ltd,28832,Peoples Services Directorate,Residential Care-Children,G330,,
http://opendatacommunities.org/id/london-borough-council/sutton,London Borough of Sutton,03/05/2018,6930385,"27,900.00",Dollman and Pritchard Client Account,99827,Peoples Services Directorate,Purchase Price,Y010,,
http://opendatacommunities.org/id/london-borough-council/sutton,London Borough of Sutton,08/05/2018,6930485,"1,000.00",Dr Bilikisu A Alatishe,27008,"Environment, Housing & Regeneration Directorate",Bed and Breakfast Accommodation,G400,,
http://opendatacommunities.org/id/london-borough-council/sutton,London Borough of Sutton,07/04/2018,6931410,"1,000.00",Dr Bilikisu A Alatishe,27008,"Environment, Housing & Regeneration Directorate",Bed and Breakfast Accommodation,G400,,
http://opendatacommunities.org/id/london-borough-council/sutton,London Borough of Sutton,07/05/2018,6930371,"3,759.88",Dr Gbenga Sunday Asigo,26990,Peoples Services Directorate,Fees - Other,F299,,
http://opendatacommunities.org/id/london-borough-council/sutton,London Borough of Sutton,30/04/2018,6930074,700,Dr L Spirling,27020,Peoples Services Directorate,Fees - Other,F299,,
http://opendatacommunities.org/id/london-borough-council/sutton,London Borough of Sutton,22/05/2018,6931316,"1,050.00",Dr L Spirling,27020,Peoples Services Directorate,Fees - Other,F299,,
http://opendatacommunities.org/id/london-borough-council/sutton,London Borough of Sutton,09/05/2018,6930718,"2,957.00",Dr M O Oladinni,26649,Peoples Services Directorate,Fees - Consultants (Ad Hoc),F283,,
http://opendatacommunities.org/id/london-borough-council/sutton,London Borough of Sutton,02/04/2018,6929999,852.5,Dr S Kanthan and Dr K Kanthan,28475,Chief Executive's Directorate,Provider Contract Payments,F470,,
http://opendatacommunities.org/id/london-borough-council/sutton,London Borough of Sutton,01/05/2018,6930064,"2,360.00",Dreamlettings,11391,"Environment, Housing & Regeneration Directorate",Bed and Breakfast Accommodation,G400,,
http://opendatacommunities.org/id/london-borough-council/sutton,London Borough of Sutton,30/03/2018,6930168,"3,500.00",DSA Engineering Limited,32119,Peoples Services Directorate,External Fees  - Other,Y130,,
http://opendatacommunities.org/id/london-borough-council/sutton,London Borough of Sutton,30/03/2018,6930169,"3,500.00",DSA Engineering Limited,32119,Peoples Services Directorate,External Fees  - Other,Y130,,
http://opendatacommunities.org/id/london-borough-council/sutton,London Borough of Sutton,31/01/2018,6930826,"6,000.00",DSA Engineering Limited,32119,Peoples Services Directorate,External Fees  - Other,Y130,,
http://opendatacommunities.org/id/london-borough-council/sutton,London Borough of Sutton,28/02/2018,6930827,"2,600.00",DSA Engineering Limited,32119,Peoples Services Directorate,External Fees  - Other,Y130,,
http://opendatacommunities.org/id/london-borough-council/sutton,London Borough of Sutton,30/04/2018,6930828,"1,700.00",DSA Engineering Limited,32119,Peoples Services Directorate,External Fees  - Other,Y130,,
http://opendatacommunities.org/id/london-borough-council/sutton,London Borough of Sutton,31/01/2018,6930829,"7,900.00",DSA Engineering Limited,32119,Peoples Services Directorate,External Fees  - Other,Y130,,
http://opendatacommunities.org/id/london-borough-council/sutton,London Borough of Sutton,28/02/2018,6930830,"3,300.00",DSA Engineering Limited,32119,Peoples Services Directorate,External Fees  - Other,Y130,,
http://opendatacommunities.org/id/london-borough-council/sutton,London Borough of Sutton,30/04/2018,6930831,"1,900.00",DSA Engineering Limited,32119,Peoples Services Directorate,External Fees  - Other,Y130,,
http://opendatacommunities.org/id/london-borough-council/sutton,London Borough of Sutton,02/05/2018,6930247,"2,721.68",DSI Billing Services Ltd,17962,Resources Directorate,Postages - General,F350,,
http://opendatacommunities.org/id/london-borough-council/sutton,London Borough of Sutton,15/05/2018,6931064,"1,281.06",DSI Billing Services Ltd,17962,Resources Directorate,Postages - General,F350,,
http://opendatacommunities.org/id/london-borough-council/sutton,London Borough of Sutton,16/05/2018,6931141,"1,192.76",DSI Billing Services Ltd,17962,Resources Directorate,Postages - General,F350,,
http://opendatacommunities.org/id/london-borough-council/sutton,London Borough of Sutton,24/05/2018,6931443,"1,672.99",DSI Billing Services Ltd,17962,Resources Directorate,Postages - General,F350,,
http://opendatacommunities.org/id/london-borough-council/sutton,London Borough of Sutton,02/04/2018,6930020,"2,185.71",Dunfield & Mead Ltd,28055,Peoples Services Directorate,Approved Lodgings,H323,,
http://opendatacommunities.org/id/london-borough-council/sutton,London Borough of Sutton,16/04/2018,6930253,"1,864.28",Dunfield & Mead Ltd,28055,Peoples Services Directorate,Approved Lodgings,H323,,
http://opendatacommunities.org/id/london-borough-council/sutton,London Borough of Sutton,16/04/2018,6930254,857.14,Dunfield & Mead Ltd,28055,Peoples Services Directorate,Approved Lodgings,H323,,
http://opendatacommunities.org/id/london-borough-council/sutton,London Borough of Sutton,16/04/2018,6930255,"1,864.28",Dunfield & Mead Ltd,28055,Peoples Services Directorate,Approved Lodgings,H323,,
http://opendatacommunities.org/id/london-borough-council/sutton,London Borough of Sutton,16/04/2018,6930256,"1,864.28",Dunfield & Mead Ltd,28055,Peoples Services Directorate,Approved Lodgings,H323,,
http://opendatacommunities.org/id/london-borough-council/sutton,London Borough of Sutton,16/04/2018,6930257,"2,071.42",Dunfield & Mead Ltd,28055,Peoples Services Directorate,Approved Lodgings,H323,,
http://opendatacommunities.org/id/london-borough-council/sutton,London Borough of Sutton,16/04/2018,6930258,"3,521.42",Dunfield & Mead Ltd,28055,Peoples Services Directorate,Approved Lodgings,H323,,
http://opendatacommunities.org/id/london-borough-council/sutton,London Borough of Sutton,16/04/2018,6930259,"2,071.42",Dunfield & Mead Ltd,28055,Peoples Services Directorate,Approved Lodgings,H323,,
http://opendatacommunities.org/id/london-borough-council/sutton,London Borough of Sutton,16/04/2018,6930360,"2,071.42",Dunfield & Mead Ltd,28055,Peoples Services Directorate,Approved Lodgings,H323,,
http://opendatacommunities.org/id/london-borough-council/sutton,London Borough of Sutton,16/04/2018,6930439,"2,071.42",Dunfield & Mead Ltd,28055,Peoples Services Directorate,Approved Lodgings,H323,,
http://opendatacommunities.org/id/london-borough-council/sutton,London Borough of Sutton,16/04/2018,6931102,"1,553.57",Dunfield & Mead Ltd,28055,Peoples Services Directorate,Approved Lodgings,H323,,
http://opendatacommunities.org/id/london-borough-council/sutton,London Borough of Sutton,26/03/2018,40189831,"1,094.74",Dunfield & Mead Ltd,28055,Peoples Services Directorate,Approved Lodgings,H323,,
http://opendatacommunities.org/id/london-borough-council/sutton,London Borough of Sutton,30/04/2018,40189911,"3,706.71",Dunfield & Mead Ltd,28055,Peoples Services Directorate,Approved Lodgings,H323,,
http://opendatacommunities.org/id/london-borough-council/sutton,London Borough of Sutton,30/04/2018,40189912,"3,962.42",Dunfield & Mead Ltd,28055,Peoples Services Directorate,Approved Lodgings,H323,,
http://opendatacommunities.org/id/london-borough-council/sutton,London Borough of Sutton,30/04/2018,40189939,800,Dunfield & Mead Ltd,28055,Peoples Services Directorate,Approved Lodgings,H323,,
http://opendatacommunities.org/id/london-borough-council/sutton,London Borough of Sutton,30/04/2018,40189965,"1,962.42",Dunfield & Mead Ltd,28055,Peoples Services Directorate,Accommodation - Supported Living,H201,,
http://opendatacommunities.org/id/london-borough-council/sutton,London Borough of Sutton,18/05/2018,40194433,"2,999.92",Dunheved Lodge,11403,Peoples Services Directorate,Residential Care - Ext Provider,G310,,
http://opendatacommunities.org/id/london-borough-council/sutton,London Borough of Sutton,29/04/2018,6931096,"1,484.00",Dunheved Partnership Ltd,26353,"Environment, Housing & Regeneration Directorate",Bed and Breakfast Accommodation,G400,,
http://opendatacommunities.org/id/london-borough-council/sutton,London Borough of Sutton,06/05/2018,6931168,"1,652.00",Dunheved Partnership Ltd,26353,"Environment, Housing & Regeneration Directorate",Bed and Breakfast Accommodation,G400,,
http://opendatacommunities.org/id/london-borough-council/sutton,London Borough of Sutton,13/05/2018,6931169,"1,680.00",Dunheved Partnership Ltd,26353,"Environment, Housing & Regeneration Directorate",Bed and Breakfast Accommodation,G400,,
http://opendatacommunities.org/id/london-borough-council/sutton,London Borough of Sutton,01/05/2018,40191664,"2,730.00",DWT Windows & Doors,97215,Peoples Services Directorate,Building Works -Main Contractor,Y350,,
http://opendatacommunities.org/id/london-borough-council/sutton,London Borough of Sutton,01/05/2018,6930240,"3,964.28",Dynamic Care Ltd,29928,Peoples Services Directorate,Approved Lodgings,H323,,
http://opendatacommunities.org/id/london-borough-council/sutton,London Borough of Sutton,01/05/2018,40189952,"5,283.85",Dynamic Care Ltd,29928,Peoples Services Directorate,Approved Lodgings,H323,,
http://opendatacommunities.org/id/london-borough-council/sutton,London Borough of Sutton,30/04/2018,6930558,"14,815.31",E Homes And Shelters,28378,"Environment, Housing & Regeneration Directorate",Bed and Breakfast Accommodation,G400,,
http://opendatacommunities.org/id/london-borough-council/sutton,London Borough of Sutton,30/04/2018,40190865,"2,940.00",Eager Health TA Care24Seven,29920,Peoples Services Directorate,Home Care,G334,,
http://opendatacommunities.org/id/london-borough-council/sutton,London Borough of Sutton,07/05/2018,40195508,"2,940.00",Eager Health TA Care24Seven,29920,Peoples Services Directorate,Home Care,G334,,
http://opendatacommunities.org/id/london-borough-council/sutton,London Borough of Sutton,14/05/2018,40195556,"3,150.00",Eager Health TA Care24Seven,29920,Peoples Services Directorate,Home Care,G334,,
http://opendatacommunities.org/id/london-borough-council/sutton,London Borough of Sutton,21/05/2018,40197119,"2,940.00",Eager Health TA Care24Seven,29920,Peoples Services Directorate,Home Care,G334,,
http://opendatacommunities.org/id/london-borough-council/sutton,London Borough of Sutton,18/05/2018,40194329,"3,300.00",Eastcroft Nursing Home,11420,Peoples Services Directorate,Nursing Care - Ext Provider,G311,,
http://opendatacommunities.org/id/london-borough-council/sutton,London Borough of Sutton,18/05/2018,40194473,"3,400.00",Eastcroft Nursing Home,11420,Peoples Services Directorate,Nursing Care - Ext Provider,G311,,
http://opendatacommunities.org/id/london-borough-council/sutton,London Borough of Sutton,18/05/2018,40194523,"3,400.00",Eastcroft Nursing Home,11420,Peoples Services Directorate,Nursing Care - Ext Provider,G311,,
http://opendatacommunities.org/id/london-borough-council/sutton,London Borough of Sutton,18/05/2018,40194569,"3,400.00",Eastcroft Nursing Home,11420,Peoples Services Directorate,Nursing Care - Ext Provider,G311,,
http://opendatacommunities.org/id/london-borough-council/sutton,London Borough of Sutton,23/05/2018,6931387,"1,954.60",Ede's (UK) Ltd,16609,Resources Directorate,Miscellaneous Expenses,F620,,
http://opendatacommunities.org/id/london-borough-council/sutton,London Borough of Sutton,23/04/2018,6930034,522.91,EDF Energy (Seeboard),13999,HRA Directorate,Electricity - Anti Hypothermia Heating,D622,,
http://opendatacommunities.org/id/london-borough-council/sutton,London Borough of Sutton,27/04/2018,6930321,"1,051.71",EDF Energy (Seeboard),13999,HRA Directorate,Electricity - Anti Hypothermia Heating,D622,,
http://opendatacommunities.org/id/london-borough-council/sutton,London Borough of Sutton,27/04/2018,6930321,"-1,065.46",EDF Energy (Seeboard),13999,HRA Directorate,Electricity - Anti Hypothermia Heating,D622,,
http://opendatacommunities.org/id/london-borough-council/sutton,London Borough of Sutton,01/05/2018,6931332,821.15,EDF Energy (Seeboard),13999,"Environment, Housing & Regeneration Directorate",Electricity - General,D620,,
http://opendatacommunities.org/id/london-borough-council/sutton,London Borough of Sutton,20/05/2018,6931199,875,Edge Training,22919,Peoples Services Directorate,Training - Course Fees,A520,,
http://opendatacommunities.org/id/london-borough-council/sutton,London Borough of Sutton,31/03/2018,6929071,"14,360.98",Eldercare,22163,HRA Directorate,Supporting People - Alarm Services,H237,,
http://opendatacommunities.org/id/london-borough-council/sutton,London Borough of Sutton,31/03/2018,6929074,"1,207.00",Eldercare,22163,Peoples Services Directorate,Agency Services,G431,,
http://opendatacommunities.org/id/london-borough-council/sutton,London Borough of Sutton,31/03/2018,6931236,"12,351.17",Eldercare,22163,Peoples Services Directorate,Agency Services,G431,,
http://opendatacommunities.org/id/london-borough-council/sutton,London Borough of Sutton,18/05/2018,40194387,"4,484.80",Eleanor Nursing & Social Care Ltd,25134,Peoples Services Directorate,Residential Care - Ext Provider,G310,,
http://opendatacommunities.org/id/london-borough-council/sutton,London Borough of Sutton,18/05/2018,40194279,"1,868.00",REDACTED - PERSONAL DATA,30137,Peoples Services Directorate,Residential Care - Ext Provider,G310,,
http://opendatacommunities.org/id/london-borough-council/sutton,London Borough of Sutton,18/05/2018,40194522,"1,971.80",REDACTED - PERSONAL DATA,30137,Peoples Services Directorate,Nursing Care - Ext Provider,G311,,
http://opendatacommunities.org/id/london-borough-council/sutton,London Borough of Sutton,07/04/2018,1254825,"1,100.00",REDACTED - PERSONAL DATA,32237,Peoples Services Directorate,Special Educational Needs,G331,,
http://opendatacommunities.org/id/london-borough-council/sutton,London Borough of Sutton,20/04/2018,6931197,"8,285.16",Employee Advisory Resource Ltd T/A Workplace Options,23969,Resources Directorate,Insurance Premiums (Other),F330,,
http://opendatacommunities.org/id/london-borough-council/sutton,London Borough of Sutton,14/03/2018,6931154,"16,276.00",Encompass,29087,"Environment, Housing & Regeneration Directorate",Grants,F473,,
http://opendatacommunities.org/id/london-borough-council/sutton,London Borough of Sutton,22/03/2018,6931155,"37,995.00",Encompass,29087,"Environment, Housing & Regeneration Directorate",Grants,F473,,
http://opendatacommunities.org/id/london-borough-council/sutton,London Borough of Sutton,09/04/2018,40190457,763.14,Enviva Paediatric Care/formerlyPNL Nursing Link Ltd (Pnl),28212,Peoples Services Directorate,Provider Contract Payments,F470,,
http://opendatacommunities.org/id/london-borough-council/sutton,London Borough of Sutton,25/04/2018,40190468,799.49,Enviva Paediatric Care/formerlyPNL Nursing Link Ltd (Pnl),28212,Peoples Services Directorate,Provider Contract Payments,F470,,
http://opendatacommunities.org/id/london-borough-council/sutton,London Borough of Sutton,09/05/2018,40191814,"1,146.88",Enviva Paediatric Care/formerlyPNL Nursing Link Ltd (Pnl),28212,Peoples Services Directorate,Provider Contract Payments,F470,,
http://opendatacommunities.org/id/london-borough-council/sutton,London Borough of Sutton,02/05/2018,40191817,"1,444.55",Enviva Paediatric Care/formerlyPNL Nursing Link Ltd (Pnl),28212,Peoples Services Directorate,Provider Contract Payments,F470,,
http://opendatacommunities.org/id/london-borough-council/sutton,London Borough of Sutton,07/03/2018,40191821,"1,426.37",Enviva Paediatric Care/formerlyPNL Nursing Link Ltd (Pnl),28212,Peoples Services Directorate,Provider Contract Payments,F470,,
http://opendatacommunities.org/id/london-borough-council/sutton,London Borough of Sutton,16/05/2018,40194922,"1,226.49",Enviva Paediatric Care/formerlyPNL Nursing Link Ltd (Pnl),28212,Peoples Services Directorate,Provider Contract Payments,F470,,
http://opendatacommunities.org/id/london-borough-council/sutton,London Borough of Sutton,18/05/2018,40194354,"2,948.00",Eothen Homes Ltd,11539,Peoples Services Directorate,Residential Care - Ext Provider,G310,,
http://opendatacommunities.org/id/london-borough-council/sutton,London Borough of Sutton,18/05/2018,40194508,"1,724.00",Eothen Homes Ltd,11539,Peoples Services Directorate,Residential Care - Ext Provider,G310,,
http://opendatacommunities.org/id/london-borough-council/sutton,London Borough of Sutton,18/05/2018,40194554,"1,724.16",Eothen Homes Ltd,11539,Peoples Services Directorate,Residential Care - Ext Provider,G310,,
http://opendatacommunities.org/id/london-borough-council/sutton,London Borough of Sutton,02/05/2018,1254169,"1,200.00",Epsom & St Helier Nhs Trust,11542,Peoples Services Directorate,Non-Maintained Childrens' Nurseries - 3 & 4 yr olds,G405,,
http://opendatacommunities.org/id/london-borough-council/sutton,London Borough of Sutton,30/04/2018,6930106,"8,365.00",ESRI (UK) Ltd,15407,Resources Directorate,Internal Fees - Project Management,Y180,,
http://opendatacommunities.org/id/london-borough-council/sutton,London Borough of Sutton,28/03/2018,6930315,660,Etc. Venues Ltd,26455,Chief Executive's Directorate,Contractual Consultant Fees,G430,,
http://opendatacommunities.org/id/london-borough-council/sutton,London Borough of Sutton,18/04/2018,6930339,884.5,Etc. Venues Ltd,26455,Chief Executive's Directorate,Contractual Consultant Fees,G430,,
http://opendatacommunities.org/id/london-borough-council/sutton,London Borough of Sutton,05/05/2018,1254560,"6,173.78",Ethelbert Specialist Homes Ltd,11560,Peoples Services Directorate,Independent Schools,G325,,
http://opendatacommunities.org/id/london-borough-council/sutton,London Borough of Sutton,05/04/2018,40189867,"3,954.94",Ethelbert Specialist Homes Ltd,11560,Peoples Services Directorate,Foster Parents,G326,,
http://opendatacommunities.org/id/london-borough-council/sutton,London Borough of Sutton,05/04/2018,40189868,"8,250.73",Ethelbert Specialist Homes Ltd,11560,Peoples Services Directorate,Residential Care-Children,G330,,
http://opendatacommunities.org/id/london-borough-council/sutton,London Borough of Sutton,22/04/2018,6931093,"2,919.00",Euro Hotels (Croydon Court) Ltd,21414,"Environment, Housing & Regeneration Directorate",Bed and Breakfast Accommodation,G400,,
http://opendatacommunities.org/id/london-borough-council/sutton,London Borough of Sutton,01/04/2018,6931594,"2,548.00",Euro Hotels (Croydon Court) Ltd,21414,"Environment, Housing & Regeneration Directorate",Bed and Breakfast Accommodation,G400,,
http://opendatacommunities.org/id/london-borough-council/sutton,London Borough of Sutton,08/04/2018,6930299,"4,721.00",Euro Hotels (Gilroy Court) Ltd,25822,"Environment, Housing & Regeneration Directorate",Bed and Breakfast Accommodation,G400,,
http://opendatacommunities.org/id/london-borough-council/sutton,London Borough of Sutton,01/04/2018,6930960,"2,247.00",Euro Hotels (Gilroy Court) Ltd,25822,"Environment, Housing & Regeneration Directorate",Bed and Breakfast Accommodation,G400,,
http://opendatacommunities.org/id/london-borough-council/sutton,London Borough of Sutton,29/04/2018,6931099,"4,721.00",Euro Hotels (Gilroy Court) Ltd,25822,"Environment, Housing & Regeneration Directorate",Bed and Breakfast Accommodation,G400,,
http://opendatacommunities.org/id/london-borough-council/sutton,London Borough of Sutton,29/04/2018,6931171,"1,498.00",Euro Hotels (Gilroy Court) Ltd,25822,"Environment, Housing & Regeneration Directorate",Bed and Breakfast Accommodation,G400,,
http://opendatacommunities.org/id/london-borough-council/sutton,London Borough of Sutton,08/04/2018,6931487,"1,872.50",Euro Hotels (Gilroy Court) Ltd,25822,"Environment, Housing & Regeneration Directorate",Bed and Breakfast Accommodation,G400,,
http://opendatacommunities.org/id/london-borough-council/sutton,London Borough of Sutton,06/05/2018,6931508,"4,684.00",Euro Hotels (Gilroy Court) Ltd,25822,"Environment, Housing & Regeneration Directorate",Bed and Breakfast Accommodation,G400,,
http://opendatacommunities.org/id/london-borough-council/sutton,London Borough of Sutton,20/05/2018,6931548,"1,498.00",Euro Hotels (Gilroy Court) Ltd,25822,"Environment, Housing & Regeneration Directorate",Bed and Breakfast Accommodation,G400,,
http://opendatacommunities.org/id/london-borough-council/sutton,London Borough of Sutton,13/05/2018,6931551,"4,536.00",Euro Hotels (Gilroy Court) Ltd,25822,"Environment, Housing & Regeneration Directorate",Bed and Breakfast Accommodation,G400,,
http://opendatacommunities.org/id/london-borough-council/sutton,London Borough of Sutton,06/05/2018,6931578,"1,498.00",Euro Hotels (Gilroy Court) Ltd,25822,"Environment, Housing & Regeneration Directorate",Bed and Breakfast Accommodation,G400,,
http://opendatacommunities.org/id/london-borough-council/sutton,London Borough of Sutton,13/05/2018,6931584,"1,498.00",Euro Hotels (Gilroy Court) Ltd,25822,"Environment, Housing & Regeneration Directorate",Bed and Breakfast Accommodation,G400,,
http://opendatacommunities.org/id/london-borough-council/sutton,London Borough of Sutton,01/04/2018,6930208,"6,524.95",Euro Hotels (Thornton Heath) Ltd,10030,"Environment, Housing & Regeneration Directorate",Bed and Breakfast Accommodation,G400,,
http://opendatacommunities.org/id/london-borough-council/sutton,London Borough of Sutton,01/04/2018,6930209,595,Euro Hotels (Thornton Heath) Ltd,10030,"Environment, Housing & Regeneration Directorate",Bed and Breakfast Accommodation,G400,,
http://opendatacommunities.org/id/london-borough-council/sutton,London Borough of Sutton,08/04/2018,6930294,"6,641.95",Euro Hotels (Thornton Heath) Ltd,10030,"Environment, Housing & Regeneration Directorate",Bed and Breakfast Accommodation,G400,,
http://opendatacommunities.org/id/london-borough-council/sutton,London Borough of Sutton,08/04/2018,6930298,595,Euro Hotels (Thornton Heath) Ltd,10030,"Environment, Housing & Regeneration Directorate",Bed and Breakfast Accommodation,G400,,
http://opendatacommunities.org/id/london-borough-council/sutton,London Borough of Sutton,29/04/2018,6931097,"6,143.20",Euro Hotels (Thornton Heath) Ltd,10030,"Environment, Housing & Regeneration Directorate",Bed and Breakfast Accommodation,G400,,
http://opendatacommunities.org/id/london-borough-council/sutton,London Borough of Sutton,29/04/2018,6931098,595,Euro Hotels (Thornton Heath) Ltd,10030,"Environment, Housing & Regeneration Directorate",Bed and Breakfast Accommodation,G400,,
http://opendatacommunities.org/id/london-borough-council/sutton,London Borough of Sutton,03/12/2017,6931173,"3,731.00",Euro Hotels (Thornton Heath) Ltd,10030,"Environment, Housing & Regeneration Directorate",Bed and Breakfast Accommodation,G400,,
http://opendatacommunities.org/id/london-borough-council/sutton,London Borough of Sutton,03/12/2017,6931188,595,Euro Hotels (Thornton Heath) Ltd,10030,"Environment, Housing & Regeneration Directorate",Bed and Breakfast Accommodation,G400,,
http://opendatacommunities.org/id/london-borough-council/sutton,London Borough of Sutton,10/12/2017,6931189,"3,743.00",Euro Hotels (Thornton Heath) Ltd,10030,"Environment, Housing & Regeneration Directorate",Bed and Breakfast Accommodation,G400,,
http://opendatacommunities.org/id/london-borough-council/sutton,London Borough of Sutton,10/12/2017,6931200,595,Euro Hotels (Thornton Heath) Ltd,10030,"Environment, Housing & Regeneration Directorate",Bed and Breakfast Accommodation,G400,,
http://opendatacommunities.org/id/london-borough-council/sutton,London Borough of Sutton,17/12/2017,6931201,"4,080.00",Euro Hotels (Thornton Heath) Ltd,10030,"Environment, Housing & Regeneration Directorate",Bed and Breakfast Accommodation,G400,,
http://opendatacommunities.org/id/london-borough-council/sutton,London Borough of Sutton,17/12/2017,6931206,595,Euro Hotels (Thornton Heath) Ltd,10030,"Environment, Housing & Regeneration Directorate",Bed and Breakfast Accommodation,G400,,
http://opendatacommunities.org/id/london-borough-council/sutton,London Borough of Sutton,24/12/2017,6931208,"4,970.40",Euro Hotels (Thornton Heath) Ltd,10030,"Environment, Housing & Regeneration Directorate",Bed and Breakfast Accommodation,G400,,
http://opendatacommunities.org/id/london-borough-council/sutton,London Borough of Sutton,24/12/2017,6931226,595,Euro Hotels (Thornton Heath) Ltd,10030,"Environment, Housing & Regeneration Directorate",Bed and Breakfast Accommodation,G400,,
http://opendatacommunities.org/id/london-borough-council/sutton,London Borough of Sutton,31/12/2017,6931227,"5,018.30",Euro Hotels (Thornton Heath) Ltd,10030,"Environment, Housing & Regeneration Directorate",Bed and Breakfast Accommodation,G400,,
http://opendatacommunities.org/id/london-borough-council/sutton,London Borough of Sutton,31/12/2017,6931230,595,Euro Hotels (Thornton Heath) Ltd,10030,"Environment, Housing & Regeneration Directorate",Bed and Breakfast Accommodation,G400,,
http://opendatacommunities.org/id/london-borough-council/sutton,London Borough of Sutton,06/05/2018,6931293,"6,143.20",Euro Hotels (Thornton Heath) Ltd,10030,"Environment, Housing & Regeneration Directorate",Bed and Breakfast Accommodation,G400,,
http://opendatacommunities.org/id/london-borough-council/sutton,London Borough of Sutton,18/03/2018,6931435,"6,095.95",Euro Hotels (Thornton Heath) Ltd,10030,"Environment, Housing & Regeneration Directorate",Bed and Breakfast Accommodation,G400,,
http://opendatacommunities.org/id/london-borough-council/sutton,London Borough of Sutton,06/05/2018,6931458,595,Euro Hotels (Thornton Heath) Ltd,10030,"Environment, Housing & Regeneration Directorate",Bed and Breakfast Accommodation,G400,,
http://opendatacommunities.org/id/london-borough-council/sutton,London Borough of Sutton,13/05/2018,6931514,"5,783.20",Euro Hotels (Thornton Heath) Ltd,10030,"Environment, Housing & Regeneration Directorate",Bed and Breakfast Accommodation,G400,,
http://opendatacommunities.org/id/london-borough-council/sutton,London Borough of Sutton,13/05/2018,6931515,595,Euro Hotels (Thornton Heath) Ltd,10030,"Environment, Housing & Regeneration Directorate",Bed and Breakfast Accommodation,G400,,
http://opendatacommunities.org/id/london-borough-council/sutton,London Borough of Sutton,27/03/2018,6928837,"50,000.00",F M Conway Limited,97060,"Environment, Housing & Regeneration Directorate",Roads & Sewers Etc-Main Contract,Y300,,
http://opendatacommunities.org/id/london-borough-council/sutton,London Borough of Sutton,25/05/2018,6931450,"139,990.33",F M Conway Limited,97060,"Environment, Housing & Regeneration Directorate",Roads & Sewers Etc-Main Contract,Y300,,
http://opendatacommunities.org/id/london-borough-council/sutton,London Borough of Sutton,23/03/2018,40189848,"15,428.58",Fairport Care Services Ltd,29873,Peoples Services Directorate,Residential Care-Children,G330,,
http://opendatacommunities.org/id/london-borough-council/sutton,London Borough of Sutton,02/02/2018,6930166,880,Faithorn Farrell Timms Llp,27878,Peoples Services Directorate,Building Works -Main Contractor,Y350,,
http://opendatacommunities.org/id/london-borough-council/sutton,London Borough of Sutton,04/05/2018,6930952,"4,560.00",Falcon Builders,99815,"Environment, Housing & Regeneration Directorate",Grants -Made,Y610,,
http://opendatacommunities.org/id/london-borough-council/sutton,London Borough of Sutton,28/05/2018,6931671,"3,168.00",Falcon Builders,99815,"Environment, Housing & Regeneration Directorate",Grants -Made,Y610,,
http://opendatacommunities.org/id/london-borough-council/sutton,London Borough of Sutton,28/02/2018,6931379,500,Family Action Enterprises Ltd,29710,Peoples Services Directorate,Training - Course Fees,A520,,
http://opendatacommunities.org/id/london-borough-council/sutton,London Borough of Sutton,31/05/2018,1255365,"25,916.67",Family Mosaic Housing,21012,"Environment, Housing & Regeneration Directorate",Supporting People - Mental Health Services,H243,,
http://opendatacommunities.org/id/london-borough-council/sutton,London Borough of Sutton,31/05/2018,1255366,"15,494.58",Family Mosaic Housing,21012,"Environment, Housing & Regeneration Directorate",Supporting People - Generic Services,H241,,
http://opendatacommunities.org/id/london-borough-council/sutton,London Borough of Sutton,18/05/2018,40194430,"2,400.00",Family Star Ltd,19653,Peoples Services Directorate,Nursing Care - Ext Provider,G311,,
http://opendatacommunities.org/id/london-borough-council/sutton,London Borough of Sutton,18/05/2018,40194578,"3,400.00",Family Star Ltd,19653,Peoples Services Directorate,Nursing Care - Ext Provider,G311,,
http://opendatacommunities.org/id/london-borough-council/sutton,London Borough of Sutton,29/03/2018,1254110,"9,100.00",Farney Close School Ltd,11600,Peoples Services Directorate,Independent Schools,G325,,
http://opendatacommunities.org/id/london-borough-council/sutton,London Borough of Sutton,29/03/2018,1254110,"12,566.66",Farney Close School Ltd,11600,Peoples Services Directorate,Payments to Schools,G065,,
http://opendatacommunities.org/id/london-borough-council/sutton,London Borough of Sutton,26/04/2018,6929931,"26,790.00",Farrells (London) LLP,32105,"Environment, Housing & Regeneration Directorate",Consultants/Hons,A310,,
http://opendatacommunities.org/id/london-borough-council/sutton,London Borough of Sutton,01/05/2018,6931593,"8,646.00",Fern Court London Limited,26961,"Environment, Housing & Regeneration Directorate",Bed and Breakfast Accommodation,G400,,
http://opendatacommunities.org/id/london-borough-council/sutton,London Borough of Sutton,01/05/2018,6931601,"4,104.00",Fern Court London Limited,26961,"Environment, Housing & Regeneration Directorate",Bed and Breakfast Accommodation,G400,,
http://opendatacommunities.org/id/london-borough-council/sutton,London Borough of Sutton,02/05/2018,6931162,"5,000.00",Fhw Events and Marketing Ltd,26086,"Environment, Housing & Regeneration Directorate",Fees - Consultants (Ad Hoc),F283,,
http://opendatacommunities.org/id/london-borough-council/sutton,London Borough of Sutton,01/05/2018,6930455,"1,740.00",Fierce Neutral Ltd,16535,"Environment, Housing & Regeneration Directorate",Bed and Breakfast Accommodation,G400,,
http://opendatacommunities.org/id/london-borough-council/sutton,London Borough of Sutton,01/05/2018,6930462,840,Fierce Neutral Ltd,16535,"Environment, Housing & Regeneration Directorate",Bed and Breakfast Accommodation,G400,,
http://opendatacommunities.org/id/london-borough-council/sutton,London Borough of Sutton,01/05/2018,6930463,"1,110.00",Fierce Neutral Ltd,16535,"Environment, Housing & Regeneration Directorate",Bed and Breakfast Accommodation,G400,,
http://opendatacommunities.org/id/london-borough-council/sutton,London Borough of Sutton,01/05/2018,6930464,"1,110.00",Fierce Neutral Ltd,16535,"Environment, Housing & Regeneration Directorate",Bed and Breakfast Accommodation,G400,,
http://opendatacommunities.org/id/london-borough-council/sutton,London Borough of Sutton,01/05/2018,6930465,812,Fierce Neutral Ltd,16535,"Environment, Housing & Regeneration Directorate",Bed and Breakfast Accommodation,G400,,
http://opendatacommunities.org/id/london-borough-council/sutton,London Borough of Sutton,01/05/2018,6930466,"1,110.00",Fierce Neutral Ltd,16535,"Environment, Housing & Regeneration Directorate",Bed and Breakfast Accommodation,G400,,
http://opendatacommunities.org/id/london-borough-council/sutton,London Borough of Sutton,01/05/2018,6930467,"1,110.00",Fierce Neutral Ltd,16535,"Environment, Housing & Regeneration Directorate",Bed and Breakfast Accommodation,G400,,
http://opendatacommunities.org/id/london-borough-council/sutton,London Borough of Sutton,01/05/2018,6930469,"1,110.00",Fierce Neutral Ltd,16535,"Environment, Housing & Regeneration Directorate",Bed and Breakfast Accommodation,G400,,
http://opendatacommunities.org/id/london-borough-council/sutton,London Borough of Sutton,01/05/2018,6930471,"1,110.00",Fierce Neutral Ltd,16535,"Environment, Housing & Regeneration Directorate",Bed and Breakfast Accommodation,G400,,
http://opendatacommunities.org/id/london-borough-council/sutton,London Borough of Sutton,01/05/2018,6930472,840,Fierce Neutral Ltd,16535,"Environment, Housing & Regeneration Directorate",Bed and Breakfast Accommodation,G400,,
http://opendatacommunities.org/id/london-borough-council/sutton,London Borough of Sutton,01/05/2018,6930473,990,Fierce Neutral Ltd,16535,"Environment, Housing & Regeneration Directorate",Bed and Breakfast Accommodation,G400,,
http://opendatacommunities.org/id/london-borough-council/sutton,London Borough of Sutton,01/05/2018,6930474,840,Fierce Neutral Ltd,16535,"Environment, Housing & Regeneration Directorate",Bed and Breakfast Accommodation,G400,,
http://opendatacommunities.org/id/london-borough-council/sutton,London Borough of Sutton,01/05/2018,6930475,"1,110.00",Fierce Neutral Ltd,16535,"Environment, Housing & Regeneration Directorate",Bed and Breakfast Accommodation,G400,,
http://opendatacommunities.org/id/london-borough-council/sutton,London Borough of Sutton,01/05/2018,6930476,990,Fierce Neutral Ltd,16535,"Environment, Housing & Regeneration Directorate",Bed and Breakfast Accommodation,G400,,
http://opendatacommunities.org/id/london-borough-council/sutton,London Borough of Sutton,01/05/2018,6930477,840,Fierce Neutral Ltd,16535,"Environment, Housing & Regeneration Directorate",Bed and Breakfast Accommodation,G400,,
http://opendatacommunities.org/id/london-borough-council/sutton,London Borough of Sutton,01/05/2018,6930479,"1,110.00",Fierce Neutral Ltd,16535,"Environment, Housing & Regeneration Directorate",Bed and Breakfast Accommodation,G400,,
http://opendatacommunities.org/id/london-borough-council/sutton,London Borough of Sutton,01/05/2018,6930480,"1,110.00",Fierce Neutral Ltd,16535,"Environment, Housing & Regeneration Directorate",Bed and Breakfast Accommodation,G400,,
http://opendatacommunities.org/id/london-borough-council/sutton,London Borough of Sutton,01/04/2018,6929893,"1,508.93",Financial Data Management PLC,28773,Resources Directorate,Printing - General,F215,,
http://opendatacommunities.org/id/london-borough-council/sutton,London Borough of Sutton,30/04/2018,6930451,"1,550.00",REDACTED - PERSONAL DATA,99562,Peoples Services Directorate,Client Care/Assistance,H301,,
http://opendatacommunities.org/id/london-borough-council/sutton,London Borough of Sutton,18/05/2018,40194257,"3,438.00",Fircroft Homes,11660,Peoples Services Directorate,Residential Care - Ext Provider,G310,,
http://opendatacommunities.org/id/london-borough-council/sutton,London Borough of Sutton,02/05/2018,1254144,"1,500.00",First Little Steps  Day Nursery,27125,Peoples Services Directorate,Non-Maintained Childrens' Nurseries - 3 & 4 yr olds,G405,,
http://opendatacommunities.org/id/london-borough-council/sutton,London Borough of Sutton,18/05/2018,40194630,"2,600.00",Firtree House Nursing Home,11653,Peoples Services Directorate,Nursing Care - Ext Provider,G311,,
http://opendatacommunities.org/id/london-borough-council/sutton,London Borough of Sutton,18/05/2018,40194636,"3,758.08",Fitzroy,11657,Peoples Services Directorate,Residential Care - Ext Provider,G310,,
http://opendatacommunities.org/id/london-borough-council/sutton,London Borough of Sutton,02/05/2018,6930123,"1,833.42",Fitzwilliam College Bursac,29069,Peoples Services Directorate,Education Allowance,H321,,
http://opendatacommunities.org/id/london-borough-council/sutton,London Borough of Sutton,01/04/2018,40189958,"16,928.57",Five Rivers Child Care Ltd,29141,Peoples Services Directorate,Residential Care-Children,G330,,
http://opendatacommunities.org/id/london-borough-council/sutton,London Borough of Sutton,31/03/2018,6929997,"3,344.00",Fleet Tutors,18973,Peoples Services Directorate,LAC - Education,F269,,
http://opendatacommunities.org/id/london-borough-council/sutton,London Borough of Sutton,18/05/2018,40194437,"7,200.00",Florence Avenue Care Home Ltd,26881,Peoples Services Directorate,Residential Care - Ext Provider,G310,,
http://opendatacommunities.org/id/london-borough-council/sutton,London Borough of Sutton,01/05/2018,40189938,"4,050.00",Flying Colours Foster Care Ltd,24309,Peoples Services Directorate,Foster Parents,G326,,
http://opendatacommunities.org/id/london-borough-council/sutton,London Borough of Sutton,01/03/2018,40189846,"2,954.10",Foster Care Associates Ltd,11729,Peoples Services Directorate,Foster Parents,G326,,
http://opendatacommunities.org/id/london-borough-council/sutton,London Borough of Sutton,01/03/2018,40189847,"3,509.70",Foster Care Associates Ltd,11729,Peoples Services Directorate,Foster Parents,G326,,
http://opendatacommunities.org/id/london-borough-council/sutton,London Borough of Sutton,01/03/2018,40189872,"2,954.10",Foster Care Associates Ltd,11729,Peoples Services Directorate,Foster Parents,G326,,
http://opendatacommunities.org/id/london-borough-council/sutton,London Borough of Sutton,01/03/2018,40189873,"2,954.10",Foster Care Associates Ltd,11729,Peoples Services Directorate,Foster Parents,G326,,
http://opendatacommunities.org/id/london-borough-council/sutton,London Borough of Sutton,16/05/2018,6931058,"1,057.00",Foster Refrigerator (Uk) Ltd,11720,Chief Executive's Directorate,Other Equipment - Purchase,F015,,
http://opendatacommunities.org/id/london-borough-council/sutton,London Borough of Sutton,30/04/2018,40189840,"3,265.63",Fostering For You,24993,Peoples Services Directorate,Foster Parents,G326,,
http://opendatacommunities.org/id/london-borough-council/sutton,London Borough of Sutton,30/04/2018,40189841,"3,128.57",Fostering For You,24993,Peoples Services Directorate,Foster Parents,G326,,
http://opendatacommunities.org/id/london-borough-council/sutton,London Borough of Sutton,30/04/2018,40189842,"3,332.40",Fostering For You,24993,Peoples Services Directorate,Foster Parents,G326,,
http://opendatacommunities.org/id/london-borough-council/sutton,London Borough of Sutton,30/04/2018,40189843,"3,265.63",Fostering For You,24993,Peoples Services Directorate,Foster Parents,G326,,
http://opendatacommunities.org/id/london-borough-council/sutton,London Borough of Sutton,30/04/2018,40194919,"2,942.63",Fostering For You,24993,Peoples Services Directorate,Foster Parents,G326,,
http://opendatacommunities.org/id/london-borough-council/sutton,London Borough of Sutton,30/04/2018,40189907,"3,309.30",Fostering Support Group (FSG),27514,Peoples Services Directorate,Foster Parents,G326,,
http://opendatacommunities.org/id/london-borough-council/sutton,London Borough of Sutton,30/04/2018,40189908,"4,434.00",Fostering Support Group (FSG),27514,Peoples Services Directorate,Foster Parents,G326,,
http://opendatacommunities.org/id/london-borough-council/sutton,London Borough of Sutton,18/05/2018,40194240,"4,497.19",Foxes Academy Ltd,25760,Peoples Services Directorate,Residential Care - Ext Provider,G310,,
http://opendatacommunities.org/id/london-borough-council/sutton,London Borough of Sutton,18/05/2018,40194336,"2,200.00",Foxley Lodge,16555,Peoples Services Directorate,Interim Placements - Ext Provider,G317,,
http://opendatacommunities.org/id/london-borough-council/sutton,London Borough of Sutton,18/05/2018,40194428,"2,200.00",Foxley Lodge,16555,Peoples Services Directorate,Residential Care - Ext Provider,G310,,
http://opendatacommunities.org/id/london-borough-council/sutton,London Borough of Sutton,25/04/2018,6929823,"1,420.00",Freedom Ability Ltd,22963,Chief Executive's Directorate,Materials - General,F100,,
http://opendatacommunities.org/id/london-borough-council/sutton,London Borough of Sutton,05/02/2018,1254125,"3,672.00",Fresh Start In Education Ltd,28509,Peoples Services Directorate,Independent Schools,G325,,
http://opendatacommunities.org/id/london-borough-council/sutton,London Borough of Sutton,02/03/2018,1254126,816,Fresh Start In Education Ltd,28509,Peoples Services Directorate,Independent Schools,G325,,
http://opendatacommunities.org/id/london-borough-council/sutton,London Borough of Sutton,05/02/2018,1254128,"5,040.00",Fresh Start In Education Ltd,28509,Peoples Services Directorate,Independent Schools,G325,,
http://opendatacommunities.org/id/london-borough-council/sutton,London Borough of Sutton,30/03/2018,1254134,"5,040.00",Fresh Start In Education Ltd,28509,Peoples Services Directorate,Independent Schools,G325,,
http://opendatacommunities.org/id/london-borough-council/sutton,London Borough of Sutton,30/04/2018,1254834,"2,940.00",Fresh Start In Education Ltd,28509,Peoples Services Directorate,Independent Schools,G325,,
http://opendatacommunities.org/id/london-borough-council/sutton,London Borough of Sutton,30/04/2018,1254836,"2,380.00",Fresh Start In Education Ltd,28509,Peoples Services Directorate,Independent Schools,G325,,
http://opendatacommunities.org/id/london-borough-council/sutton,London Borough of Sutton,30/04/2018,1254837,"1,836.00",Fresh Start In Education Ltd,28509,Peoples Services Directorate,Independent Schools,G325,,
http://opendatacommunities.org/id/london-borough-council/sutton,London Borough of Sutton,30/04/2018,1254838,612,Fresh Start In Education Ltd,28509,Peoples Services Directorate,Independent Schools,G325,,
http://opendatacommunities.org/id/london-borough-council/sutton,London Borough of Sutton,30/04/2018,1254839,"4,620.00",Fresh Start In Education Ltd,28509,Peoples Services Directorate,Independent Schools,G325,,
http://opendatacommunities.org/id/london-borough-council/sutton,London Borough of Sutton,30/04/2018,40189839,"16,588.50",Freshstart Care Solutions,28855,Peoples Services Directorate,Approved Lodgings,H323,,
http://opendatacommunities.org/id/london-borough-council/sutton,London Borough of Sutton,30/04/2018,40189929,"2,178.71",Freshstart Care Solutions,28855,Peoples Services Directorate,Approved Lodgings,H323,,
http://opendatacommunities.org/id/london-borough-council/sutton,London Borough of Sutton,18/05/2018,40194321,"3,212.00",Friends Of The Elderly,11766,Peoples Services Directorate,Residential Care - Ext Provider,G310,,
http://opendatacommunities.org/id/london-borough-council/sutton,London Borough of Sutton,18/05/2018,40194416,"4,192.00",Friends Of The Elderly,11766,Peoples Services Directorate,Nursing Care - Ext Provider,G311,,
http://opendatacommunities.org/id/london-borough-council/sutton,London Borough of Sutton,18/05/2018,40194564,"2,800.00",Friends Of The Elderly,11766,Peoples Services Directorate,Residential Care - Ext Provider,G310,,
http://opendatacommunities.org/id/london-borough-council/sutton,London Borough of Sutton,18/05/2018,40194565,"1,692.00",Friends Of The Elderly,11766,Peoples Services Directorate,Residential Care - Ext Provider,G310,,
http://opendatacommunities.org/id/london-borough-council/sutton,London Borough of Sutton,18/05/2018,40194615,"3,212.00",Friends Of The Elderly,11766,Peoples Services Directorate,Residential Care - Ext Provider,G310,,
http://opendatacommunities.org/id/london-borough-council/sutton,London Borough of Sutton,26/03/2018,6931177,455.5,Future Families (West Midlands),24978,Peoples Services Directorate,C.C.A Food & Clothing,H213,,
